Organisation Code,Organisation Label,Effective Date,Organisational Unit,Service Division Label,Category Internal Name,Purpose,Detailed Expenditure Code,Payment Date,Transaction Number,Irrecoverable VAT Amount,Amount,Capital Or Revenue,Benificiary Name,Procurement Card
Http://opendatacommunities.org/id/metropolitan-district-council/leeds,Leeds City Council,31/10/2019,Adults and Health,Services For Older People Under 65 P/Dis,Third Party Payments,Sheltered Accommodation,569,16/10/2019,1910-00001,0.00,5400.00,R,A & V Transitional Homes,No
Http://opendatacommunities.org/id/metropolitan-district-council/leeds,Leeds City Council,31/10/2019,Resources and Housing,HRA Housing Leeds,Capital,Other Costs,7,17/10/2019,1910-00002,0.00,100.00,C,REDACTED PERSONAL DATA,No
Http://opendatacommunities.org/id/metropolitan-district-council/leeds,Leeds City Council,31/10/2019,Resources and Housing,Leeds Building Services,Supplies and Services,Operational Materials,205,04/10/2019,1910-00003,0.00,26.09,R,A Andrews & Sons (Marbles & Tiles),No
Http://opendatacommunities.org/id/metropolitan-district-council/leeds,Leeds City Council,31/10/2019,Resources and Housing,Leeds Building Services,Supplies and Services,Operational Materials,205,04/10/2019,1910-00004,0.00,6.40,R,A Andrews & Sons (Marbles & Tiles),No
Http://opendatacommunities.org/id/metropolitan-district-council/leeds,Leeds City Council,31/10/2019,Resources and Housing,Leeds Building Services,Supplies and Services,Operational Materials,205,30/10/2019,1910-00005,0.00,49.48,R,A Andrews & Sons (Marbles & Tiles),No
Http://opendatacommunities.org/id/metropolitan-district-council/leeds,Leeds City Council,31/10/2019,Children and Families,Social Care,Third Party Payments,Services Rendered By Other Organisations,511,04/10/2019,1910-00006,0.00,225.75,R,REDACTED PERSONAL DATA,No
Http://opendatacommunities.org/id/metropolitan-district-council/leeds,Leeds City Council,31/10/2019,Resources and Housing,Commercial Services,Supplies and Services,Clothing & Uniforms,241,14/10/2019,1910-00007,0.00,10.00,R,REDACTED PERSONAL DATA,No
Http://opendatacommunities.org/id/metropolitan-district-council/leeds,Leeds City Council,31/10/2019,Resources and Housing,Leeds Building Services,Supplies and Services,Other Hired And Contracted Services,265,17/10/2019,1910-00008,0.00,16065.00,R,A Buckler (Haulage) Ltd,No
Http://opendatacommunities.org/id/metropolitan-district-council/leeds,Leeds City Council,31/10/2019,Resources and Housing,Leeds Building Services,Supplies and Services,Other Hired And Contracted Services,265,17/10/2019,1910-00009,0.00,7750.00,R,A Buckler (Haulage) Ltd,No
Http://opendatacommunities.org/id/metropolitan-district-council/leeds,Leeds City Council,31/10/2019,Resources and Housing,Leeds Building Services,Supplies and Services,Other Hired And Contracted Services,265,17/10/2019,1910-00010,0.00,7865.00,R,A Buckler (Haulage) Ltd,No
Http://opendatacommunities.org/id/metropolitan-district-council/leeds,Leeds City Council,31/10/2019,City Development,Libraries  Arts & Heritage,Supplies and Services,Operational Materials,205,10/10/2019,1910-00011,0.00,469.38,R,A C Entertainment Technologies Ltd,No
Http://opendatacommunities.org/id/metropolitan-district-council/leeds,Leeds City Council,31/10/2019,City Development,Libraries  Arts & Heritage,Supplies and Services,Operational Materials,205,18/10/2019,1910-00012,0.00,1601.49,R,A C Entertainment Technologies Ltd,No
Http://opendatacommunities.org/id/metropolitan-district-council/leeds,Leeds City Council,31/10/2019,Children and Families,Social Care,Third Party Payments,Services Rendered By Other Organisations,511,04/10/2019,1910-00013,0.00,501.67,R,REDACTED PERSONAL DATA,No
Http://opendatacommunities.org/id/metropolitan-district-council/leeds,Leeds City Council,31/10/2019,Children and Families,Social Care,Third Party Payments,Services Rendered By Other Organisations,511,02/10/2019,1910-00014,0.00,273.00,R,REDACTED PERSONAL DATA,No
Http://opendatacommunities.org/id/metropolitan-district-council/leeds,Leeds City Council,31/10/2019,Children and Families,Social Care,Third Party Payments,Services Rendered By Other Organisations,511,04/10/2019,1910-00015,0.00,451.50,R,REDACTED PERSONAL DATA,No
Http://opendatacommunities.org/id/metropolitan-district-council/leeds,Leeds City Council,31/10/2019,Resources and Housing,HRA Housing Leeds,Capital,Other Costs,7,10/10/2019,1910-00016,0.00,80.00,C,REDACTED PERSONAL DATA,No
Http://opendatacommunities.org/id/metropolitan-district-council/leeds,Leeds City Council,31/10/2019,Resources and Housing,HRA Housing Leeds,Capital,Construction,3,08/10/2019,1910-00017,0.00,230990.88,C,A Connolly Limited,No
Http://opendatacommunities.org/id/metropolitan-district-council/leeds,Leeds City Council,31/10/2019,Resources and Housing,Leeds Building Services,Supplies and Services,Other Hired And Contracted Services,265,02/10/2019,1910-00018,0.00,160.00,R,A Coole Electrical Ltd,No
Http://opendatacommunities.org/id/metropolitan-district-council/leeds,Leeds City Council,31/10/2019,Resources and Housing,Leeds Building Services,Supplies and Services,Other Hired And Contracted Services,265,02/10/2019,1910-00019,0.00,85.00,R,A Coole Electrical Ltd,No
Http://opendatacommunities.org/id/metropolitan-district-council/leeds,Leeds City Council,31/10/2019,Resources and Housing,Leeds Building Services,Supplies and Services,Other Hired And Contracted Services,265,02/10/2019,1910-00020,0.00,85.00,R,A Coole Electrical Ltd,No
Http://opendatacommunities.org/id/metropolitan-district-council/leeds,Leeds City Council,31/10/2019,Resources and Housing,Leeds Building Services,Supplies and Services,Other Hired And Contracted Services,265,02/10/2019,1910-00021,0.00,85.00,R,A Coole Electrical Ltd,No
Http://opendatacommunities.org/id/metropolitan-district-council/leeds,Leeds City Council,31/10/2019,Resources and Housing,Leeds Building Services,Supplies and Services,Other Hired And Contracted Services,265,02/10/2019,1910-00022,0.00,85.00,R,A Coole Electrical Ltd,No
Http://opendatacommunities.org/id/metropolitan-district-council/leeds,Leeds City Council,31/10/2019,Resources and Housing,Leeds Building Services,Supplies and Services,Other Hired And Contracted Services,265,02/10/2019,1910-00023,0.00,85.00,R,A Coole Electrical Ltd,No
Http://opendatacommunities.org/id/metropolitan-district-council/leeds,Leeds City Council,31/10/2019,Resources and Housing,Leeds Building Services,Supplies and Services,Other Hired And Contracted Services,265,02/10/2019,1910-00024,0.00,85.00,R,A Coole Electrical Ltd,No
Http://opendatacommunities.org/id/metropolitan-district-council/leeds,Leeds City Council,31/10/2019,Resources and Housing,Leeds Building Services,Supplies and Services,Other Hired And Contracted Services,265,07/10/2019,1910-00025,0.00,3612.00,R,A Coole Electrical Ltd,No
Http://opendatacommunities.org/id/metropolitan-district-council/leeds,Leeds City Council,31/10/2019,Resources and Housing,Leeds Building Services,Supplies and Services,Other Hired And Contracted Services,265,15/10/2019,1910-00026,0.00,215.00,R,A Coole Electrical Ltd,No
Http://opendatacommunities.org/id/metropolitan-district-council/leeds,Leeds City Council,31/10/2019,Resources and Housing,Leeds Building Services,Supplies and Services,Other Hired And Contracted Services,265,18/10/2019,1910-00027,0.00,85.00,R,A Coole Electrical Ltd,No
Http://opendatacommunities.org/id/metropolitan-district-council/leeds,Leeds City Council,31/10/2019,Resources and Housing,Leeds Building Services,Supplies and Services,Other Hired And Contracted Services,265,18/10/2019,1910-00028,0.00,85.00,R,A Coole Electrical Ltd,No
Http://opendatacommunities.org/id/metropolitan-district-council/leeds,Leeds City Council,31/10/2019,Resources and Housing,Leeds Building Services,Supplies and Services,Other Hired And Contracted Services,265,18/10/2019,1910-00029,0.00,85.00,R,A Coole Electrical Ltd,No
Http://opendatacommunities.org/id/metropolitan-district-council/leeds,Leeds City Council,31/10/2019,Children and Families,Social Care,Third Party Payments,Services Rendered By Voluntary Sector,505,02/10/2019,1910-00030,0.00,2675.40,R,REDACTED PERSONAL DATA,No
Http://opendatacommunities.org/id/metropolitan-district-council/leeds,Leeds City Council,31/10/2019,Children and Families,Social Care,Third Party Payments,Services Rendered By Voluntary Sector,505,04/10/2019,1910-00031,0.00,4515.00,R,REDACTED PERSONAL DATA,No
Http://opendatacommunities.org/id/metropolitan-district-council/leeds,Leeds City Council,31/10/2019,Resources and Housing,HRA Housing Leeds,Capital,Other Costs,7,17/10/2019,1910-00032,0.00,80.00,C,REDACTED PERSONAL DATA,No
Http://opendatacommunities.org/id/metropolitan-district-council/leeds,Leeds City Council,31/10/2019,Children and Families,Social Care,Third Party Payments,Services Rendered By Other Organisations,511,02/10/2019,1910-00033,0.00,273.00,R,REDACTED PERSONAL DATA,No
Http://opendatacommunities.org/id/metropolitan-district-council/leeds,Leeds City Council,31/10/2019,Children and Families,Social Care,Third Party Payments,Services Rendered By Other Organisations,511,04/10/2019,1910-00034,0.00,903.00,R,REDACTED PERSONAL DATA,No
Http://opendatacommunities.org/id/metropolitan-district-council/leeds,Leeds City Council,31/10/2019,Resources and Housing,HRA Housing Leeds,Capital,Other Costs,7,23/10/2019,1910-00035,0.00,100.00,C,REDACTED PERSONAL DATA,No
Http://opendatacommunities.org/id/metropolitan-district-council/leeds,Leeds City Council,31/10/2019,Children and Families,Social Care,Third Party Payments,Services Rendered By Other Organisations,511,04/10/2019,1910-00036,0.00,180.60,R,REDACTED PERSONAL DATA,No
Http://opendatacommunities.org/id/metropolitan-district-council/leeds,Leeds City Council,31/10/2019,Communities and Environment,Communities,Transport,Public Transport Expenses,310,11/10/2019,1910-00037,0.00,300.00,R,A H Gouda,No
Http://opendatacommunities.org/id/metropolitan-district-council/leeds,Leeds City Council,31/10/2019,Children and Families,Social Care,Third Party Payments,Services Rendered By Other Organisations,511,04/10/2019,1910-00038,0.00,216.61,R,REDACTED PERSONAL DATA,No
Http://opendatacommunities.org/id/metropolitan-district-council/leeds,Leeds City Council,31/10/2019,Resources and Housing,HRA Housing Leeds,Capital,Other Costs,7,10/10/2019,1910-00039,0.00,80.00,C,REDACTED PERSONAL DATA,No
Http://opendatacommunities.org/id/metropolitan-district-council/leeds,Leeds City Council,31/10/2019,Adults and Health,Other Generic Services,Third Party Payments,Fees To Carers,563,11/10/2019,1910-00040,0.00,13.90,R,REDACTED PERSONAL DATA,No
Http://opendatacommunities.org/id/metropolitan-district-council/leeds,Leeds City Council,31/10/2019,City Development,Libraries  Arts & Heritage,Supplies and Services,Other Hired And Contracted Services,265,24/10/2019,1910-00041,0.00,365.00,R,REDACTED COMMERCIAL CONFIDENTIALITY,No
Http://opendatacommunities.org/id/metropolitan-district-council/leeds,Leeds City Council,31/10/2019,Resources and Housing,Leeds Building Services,Supplies and Services,Operational Materials,205,02/10/2019,1910-00042,0.00,875.00,R,A J H  Pump Supply & Repair Ltd,No
Http://opendatacommunities.org/id/metropolitan-district-council/leeds,Leeds City Council,31/10/2019,Resources and Housing,Leeds Building Services,Supplies and Services,Operational Materials,205,03/10/2019,1910-00043,0.00,178.98,R,A J H  Pump Supply & Repair Ltd,No
Http://opendatacommunities.org/id/metropolitan-district-council/leeds,Leeds City Council,31/10/2019,Resources and Housing,Leeds Building Services,Supplies and Services,Operational Materials,205,03/10/2019,1910-00044,0.00,104.99,R,A J H  Pump Supply & Repair Ltd,No
Http://opendatacommunities.org/id/metropolitan-district-council/leeds,Leeds City Council,31/10/2019,Resources and Housing,Leeds Building Services,Supplies and Services,Operational Materials,205,03/10/2019,1910-00045,0.00,530.00,R,A J H  Pump Supply & Repair Ltd,No
Http://opendatacommunities.org/id/metropolitan-district-council/leeds,Leeds City Council,31/10/2019,Resources and Housing,Leeds Building Services,Supplies and Services,Operational Materials,205,03/10/2019,1910-00046,0.00,591.11,R,A J H  Pump Supply & Repair Ltd,No
Http://opendatacommunities.org/id/metropolitan-district-council/leeds,Leeds City Council,31/10/2019,Resources and Housing,Leeds Building Services,Supplies and Services,Operational Materials,205,04/10/2019,1910-00047,0.00,25.60,R,A J H  Pump Supply & Repair Ltd,No
Http://opendatacommunities.org/id/metropolitan-district-council/leeds,Leeds City Council,31/10/2019,Resources and Housing,Leeds Building Services,Supplies and Services,Operational Materials,205,07/10/2019,1910-00048,0.00,1425.00,R,A J H  Pump Supply & Repair Ltd,No
Http://opendatacommunities.org/id/metropolitan-district-council/leeds,Leeds City Council,31/10/2019,Resources and Housing,Leeds Building Services,Supplies and Services,Operational Materials,205,07/10/2019,1910-00049,0.00,38.30,R,A J H  Pump Supply & Repair Ltd,No
Http://opendatacommunities.org/id/metropolitan-district-council/leeds,Leeds City Council,31/10/2019,Resources and Housing,Leeds Building Services,Supplies and Services,Operational Materials,205,09/10/2019,1910-00050,0.00,1134.00,R,A J H  Pump Supply & Repair Ltd,No
Http://opendatacommunities.org/id/metropolitan-district-council/leeds,Leeds City Council,31/10/2019,Resources and Housing,Leeds Building Services,Supplies and Services,Operational Materials,205,09/10/2019,1910-00051,0.00,3084.00,R,A J H  Pump Supply & Repair Ltd,No
Http://opendatacommunities.org/id/metropolitan-district-council/leeds,Leeds City Council,31/10/2019,Resources and Housing,Leeds Building Services,Supplies and Services,Operational Materials,205,11/10/2019,1910-00052,0.00,176.85,R,A J H  Pump Supply & Repair Ltd,No
Http://opendatacommunities.org/id/metropolitan-district-council/leeds,Leeds City Council,31/10/2019,Resources and Housing,Leeds Building Services,Supplies and Services,Operational Materials,205,11/10/2019,1910-00053,0.00,34.60,R,A J H  Pump Supply & Repair Ltd,No
Http://opendatacommunities.org/id/metropolitan-district-council/leeds,Leeds City Council,31/10/2019,Resources and Housing,Leeds Building Services,Supplies and Services,Operational Materials,205,11/10/2019,1910-00054,0.00,79.80,R,A J H  Pump Supply & Repair Ltd,No
Http://opendatacommunities.org/id/metropolitan-district-council/leeds,Leeds City Council,31/10/2019,Resources and Housing,Leeds Building Services,Supplies and Services,Operational Materials,205,11/10/2019,1910-00055,0.00,41.26,R,A J H  Pump Supply & Repair Ltd,No
Http://opendatacommunities.org/id/metropolitan-district-council/leeds,Leeds City Council,31/10/2019,Resources and Housing,Leeds Building Services,Supplies and Services,Operational Materials,205,11/10/2019,1910-00056,0.00,20.06,R,A J H  Pump Supply & Repair Ltd,No
Http://opendatacommunities.org/id/metropolitan-district-council/leeds,Leeds City Council,31/10/2019,Resources and Housing,Leeds Building Services,Supplies and Services,Operational Materials,205,11/10/2019,1910-00057,0.00,130.90,R,A J H  Pump Supply & Repair Ltd,No
Http://opendatacommunities.org/id/metropolitan-district-council/leeds,Leeds City Council,31/10/2019,Resources and Housing,Leeds Building Services,Supplies and Services,Operational Materials,205,15/10/2019,1910-00058,0.00,160.00,R,A J H  Pump Supply & Repair Ltd,No
Http://opendatacommunities.org/id/metropolitan-district-council/leeds,Leeds City Council,31/10/2019,Resources and Housing,Leeds Building Services,Supplies and Services,Operational Materials,205,15/10/2019,1910-00059,0.00,373.00,R,A J H  Pump Supply & Repair Ltd,No
Http://opendatacommunities.org/id/metropolitan-district-council/leeds,Leeds City Council,31/10/2019,Resources and Housing,Leeds Building Services,Supplies and Services,Operational Materials,205,15/10/2019,1910-00060,0.00,251.33,R,A J H  Pump Supply & Repair Ltd,No
Http://opendatacommunities.org/id/metropolitan-district-council/leeds,Leeds City Council,31/10/2019,Resources and Housing,Leeds Building Services,Supplies and Services,Operational Materials,205,15/10/2019,1910-00061,0.00,60.16,R,A J H  Pump Supply & Repair Ltd,No
Http://opendatacommunities.org/id/metropolitan-district-council/leeds,Leeds City Council,31/10/2019,Resources and Housing,Leeds Building Services,Supplies and Services,Operational Materials,205,15/10/2019,1910-00062,0.00,149.65,R,A J H  Pump Supply & Repair Ltd,No
Http://opendatacommunities.org/id/metropolitan-district-council/leeds,Leeds City Council,31/10/2019,Resources and Housing,Leeds Building Services,Supplies and Services,Operational Materials,205,15/10/2019,1910-00063,0.00,273.55,R,A J H  Pump Supply & Repair Ltd,No
Http://opendatacommunities.org/id/metropolitan-district-council/leeds,Leeds City Council,31/10/2019,Resources and Housing,Leeds Building Services,Supplies and Services,Operational Materials,205,15/10/2019,1910-00064,0.00,109.85,R,A J H  Pump Supply & Repair Ltd,No
Http://opendatacommunities.org/id/metropolitan-district-council/leeds,Leeds City Council,31/10/2019,Resources and Housing,Leeds Building Services,Supplies and Services,Operational Materials,205,15/10/2019,1910-00065,0.00,207.08,R,A J H  Pump Supply & Repair Ltd,No
Http://opendatacommunities.org/id/metropolitan-district-council/leeds,Leeds City Council,31/10/2019,Resources and Housing,Leeds Building Services,Supplies and Services,Operational Materials,205,18/10/2019,1910-00066,0.00,460.00,R,A J H  Pump Supply & Repair Ltd,No
Http://opendatacommunities.org/id/metropolitan-district-council/leeds,Leeds City Council,31/10/2019,Resources and Housing,Leeds Building Services,Supplies and Services,Operational Materials,205,18/10/2019,1910-00067,0.00,537.90,R,A J H  Pump Supply & Repair Ltd,No
Http://opendatacommunities.org/id/metropolitan-district-council/leeds,Leeds City Council,31/10/2019,Resources and Housing,Leeds Building Services,Supplies and Services,Operational Materials,205,18/10/2019,1910-00068,0.00,544.95,R,A J H  Pump Supply & Repair Ltd,No
Http://opendatacommunities.org/id/metropolitan-district-council/leeds,Leeds City Council,31/10/2019,Resources and Housing,Leeds Building Services,Supplies and Services,Operational Materials,205,18/10/2019,1910-00069,0.00,399.00,R,A J H  Pump Supply & Repair Ltd,No
Http://opendatacommunities.org/id/metropolitan-district-council/leeds,Leeds City Council,31/10/2019,Resources and Housing,Leeds Building Services,Supplies and Services,Operational Materials,205,18/10/2019,1910-00070,0.00,347.94,R,A J H  Pump Supply & Repair Ltd,No
Http://opendatacommunities.org/id/metropolitan-district-council/leeds,Leeds City Council,31/10/2019,Resources and Housing,Leeds Building Services,Supplies and Services,Operational Materials,205,18/10/2019,1910-00071,0.00,293.80,R,A J H  Pump Supply & Repair Ltd,No
Http://opendatacommunities.org/id/metropolitan-district-council/leeds,Leeds City Council,31/10/2019,Resources and Housing,Leeds Building Services,Supplies and Services,Operational Materials,205,18/10/2019,1910-00072,0.00,1995.00,R,A J H  Pump Supply & Repair Ltd,No
Http://opendatacommunities.org/id/metropolitan-district-council/leeds,Leeds City Council,31/10/2019,Resources and Housing,Leeds Building Services,Supplies and Services,Operational Materials,205,18/10/2019,1910-00073,0.00,41.76,R,A J H  Pump Supply & Repair Ltd,No
Http://opendatacommunities.org/id/metropolitan-district-council/leeds,Leeds City Council,31/10/2019,Resources and Housing,Leeds Building Services,Supplies and Services,Operational Materials,205,18/10/2019,1910-00074,0.00,102.64,R,A J H  Pump Supply & Repair Ltd,No
Http://opendatacommunities.org/id/metropolitan-district-council/leeds,Leeds City Council,31/10/2019,Resources and Housing,Leeds Building Services,Supplies and Services,Operational Materials,205,18/10/2019,1910-00075,0.00,780.00,R,A J H  Pump Supply & Repair Ltd,No
Http://opendatacommunities.org/id/metropolitan-district-council/leeds,Leeds City Council,31/10/2019,Resources and Housing,Leeds Building Services,Supplies and Services,Operational Materials,205,18/10/2019,1910-00076,0.00,40.45,R,A J H  Pump Supply & Repair Ltd,No
Http://opendatacommunities.org/id/metropolitan-district-council/leeds,Leeds City Council,31/10/2019,Resources and Housing,Leeds Building Services,Supplies and Services,Operational Materials,205,18/10/2019,1910-00077,0.00,1900.00,R,A J H  Pump Supply & Repair Ltd,No
Http://opendatacommunities.org/id/metropolitan-district-council/leeds,Leeds City Council,31/10/2019,Communities and Environment,Parks and Countryside,Supplies and Services,Operational Materials,205,25/10/2019,1910-00078,0.00,241.10,R,A J H  Pump Supply & Repair Ltd,No
Http://opendatacommunities.org/id/metropolitan-district-council/leeds,Leeds City Council,31/10/2019,Resources and Housing,Leeds Building Services,Supplies and Services,Operational Materials,205,25/10/2019,1910-00079,0.00,12.95,R,A J H  Pump Supply & Repair Ltd,No
Http://opendatacommunities.org/id/metropolitan-district-council/leeds,Leeds City Council,31/10/2019,Resources and Housing,Leeds Building Services,Supplies and Services,Operational Materials,205,25/10/2019,1910-00080,0.00,344.09,R,A J H  Pump Supply & Repair Ltd,No
Http://opendatacommunities.org/id/metropolitan-district-council/leeds,Leeds City Council,31/10/2019,Resources and Housing,Leeds Building Services,Supplies and Services,Operational Materials,205,25/10/2019,1910-00081,0.00,718.46,R,A J H  Pump Supply & Repair Ltd,No
Http://opendatacommunities.org/id/metropolitan-district-council/leeds,Leeds City Council,31/10/2019,Resources and Housing,Leeds Building Services,Supplies and Services,Operational Materials,205,25/10/2019,1910-00082,0.00,79.01,R,A J H  Pump Supply & Repair Ltd,No
Http://opendatacommunities.org/id/metropolitan-district-council/leeds,Leeds City Council,31/10/2019,Resources and Housing,Leeds Building Services,Supplies and Services,Operational Materials,205,25/10/2019,1910-00083,0.00,125.00,R,A J H  Pump Supply & Repair Ltd,No
Http://opendatacommunities.org/id/metropolitan-district-council/leeds,Leeds City Council,31/10/2019,Resources and Housing,Leeds Building Services,Supplies and Services,Operational Materials,205,25/10/2019,1910-00084,0.00,328.90,R,A J H  Pump Supply & Repair Ltd,No
Http://opendatacommunities.org/id/metropolitan-district-council/leeds,Leeds City Council,31/10/2019,Resources and Housing,Leeds Building Services,Supplies and Services,Operational Materials,205,25/10/2019,1910-00085,0.00,21.00,R,A J H  Pump Supply & Repair Ltd,No
Http://opendatacommunities.org/id/metropolitan-district-council/leeds,Leeds City Council,31/10/2019,Resources and Housing,Leeds Building Services,Supplies and Services,Operational Materials,205,25/10/2019,1910-00086,0.00,21.00,R,A J H  Pump Supply & Repair Ltd,No
Http://opendatacommunities.org/id/metropolitan-district-council/leeds,Leeds City Council,31/10/2019,Resources and Housing,Leeds Building Services,Supplies and Services,Operational Materials,205,25/10/2019,1910-00087,0.00,96.10,R,A J H  Pump Supply & Repair Ltd,No
Http://opendatacommunities.org/id/metropolitan-district-council/leeds,Leeds City Council,31/10/2019,Resources and Housing,Leeds Building Services,Supplies and Services,Operational Materials,205,25/10/2019,1910-00088,0.00,158.49,R,A J H  Pump Supply & Repair Ltd,No
Http://opendatacommunities.org/id/metropolitan-district-council/leeds,Leeds City Council,31/10/2019,Resources and Housing,Leeds Building Services,Supplies and Services,Operational Materials,205,25/10/2019,1910-00089,0.00,725.00,R,A J H  Pump Supply & Repair Ltd,No
Http://opendatacommunities.org/id/metropolitan-district-council/leeds,Leeds City Council,31/10/2019,Resources and Housing,Leeds Building Services,Supplies and Services,Operational Materials,205,25/10/2019,1910-00090,0.00,278.95,R,A J H  Pump Supply & Repair Ltd,No
Http://opendatacommunities.org/id/metropolitan-district-council/leeds,Leeds City Council,31/10/2019,Resources and Housing,Leeds Building Services,Supplies and Services,Operational Materials,205,25/10/2019,1910-00091,0.00,570.00,R,A J H  Pump Supply & Repair Ltd,No
Http://opendatacommunities.org/id/metropolitan-district-council/leeds,Leeds City Council,31/10/2019,Resources and Housing,Leeds Building Services,Supplies and Services,Operational Materials,205,25/10/2019,1910-00092,0.00,337.65,R,A J H  Pump Supply & Repair Ltd,No
Http://opendatacommunities.org/id/metropolitan-district-council/leeds,Leeds City Council,31/10/2019,Resources and Housing,Leeds Building Services,Supplies and Services,Operational Materials,205,28/10/2019,1910-00093,0.00,140.00,R,A J H  Pump Supply & Repair Ltd,No
Http://opendatacommunities.org/id/metropolitan-district-council/leeds,Leeds City Council,31/10/2019,Resources and Housing,Leeds Building Services,Supplies and Services,Operational Materials,205,31/10/2019,1910-00094,0.00,54.50,R,A J H  Pump Supply & Repair Ltd,No
Http://opendatacommunities.org/id/metropolitan-district-council/leeds,Leeds City Council,31/10/2019,Resources and Housing,Leeds Building Services,Supplies and Services,Operational Materials,205,31/10/2019,1910-00095,0.00,1012.35,R,A J H  Pump Supply & Repair Ltd,No
Http://opendatacommunities.org/id/metropolitan-district-council/leeds,Leeds City Council,31/10/2019,Resources and Housing,Leeds Building Services,Supplies and Services,Operational Materials,205,31/10/2019,1910-00096,0.00,48.95,R,A J H  Pump Supply & Repair Ltd,No
Http://opendatacommunities.org/id/metropolitan-district-council/leeds,Leeds City Council,31/10/2019,Resources and Housing,Leeds Building Services,Supplies and Services,Operational Materials,205,31/10/2019,1910-00097,0.00,113.00,R,A J H  Pump Supply & Repair Ltd,No
Http://opendatacommunities.org/id/metropolitan-district-council/leeds,Leeds City Council,31/10/2019,Resources and Housing,Leeds Building Services,Supplies and Services,Operational Materials,205,31/10/2019,1910-00098,0.00,116.72,R,A J H  Pump Supply & Repair Ltd,No
Http://opendatacommunities.org/id/metropolitan-district-council/leeds,Leeds City Council,31/10/2019,Resources and Housing,Leeds Building Services,Supplies and Services,Operational Materials,205,31/10/2019,1910-00099,0.00,177.87,R,A J H  Pump Supply & Repair Ltd,No
Http://opendatacommunities.org/id/metropolitan-district-council/leeds,Leeds City Council,31/10/2019,Resources and Housing,Leeds Building Services,Supplies and Services,Operational Materials,205,31/10/2019,1910-00100,0.00,219.75,R,A J H  Pump Supply & Repair Ltd,No
Http://opendatacommunities.org/id/metropolitan-district-council/leeds,Leeds City Council,31/10/2019,Resources and Housing,Leeds Building Services,Supplies and Services,Operational Materials,205,31/10/2019,1910-00101,0.00,1339.00,R,A J H  Pump Supply & Repair Ltd,No
Http://opendatacommunities.org/id/metropolitan-district-council/leeds,Leeds City Council,31/10/2019,Resources and Housing,Leeds Building Services,Supplies and Services,Operational Materials,205,31/10/2019,1910-00102,0.00,77.00,R,A J H  Pump Supply & Repair Ltd,No
Http://opendatacommunities.org/id/metropolitan-district-council/leeds,Leeds City Council,31/10/2019,Resources and Housing,Leeds Building Services,Supplies and Services,Operational Materials,205,31/10/2019,1910-00103,0.00,309.20,R,A J H  Pump Supply & Repair Ltd,No
Http://opendatacommunities.org/id/metropolitan-district-council/leeds,Leeds City Council,31/10/2019,Resources and Housing,Leeds Building Services,Supplies and Services,Operational Materials,205,31/10/2019,1910-00104,0.00,118.09,R,A J H  Pump Supply & Repair Ltd,No
Http://opendatacommunities.org/id/metropolitan-district-council/leeds,Leeds City Council,31/10/2019,Communities and Environment,Customer Access,Supplies and Services,Other Hired And Contracted Services,265,16/10/2019,1910-00105,0.00,192.60,R,A J Promotions,No
Http://opendatacommunities.org/id/metropolitan-district-council/leeds,Leeds City Council,31/10/2019,Resources and Housing,HRA Housing Leeds,Capital,Other Costs,7,10/10/2019,1910-00106,0.00,50.00,C,REDACTED PERSONAL DATA,No
Http://opendatacommunities.org/id/metropolitan-district-council/leeds,Leeds City Council,31/10/2019,Children and Families,Social Care,Third Party Payments,Services Rendered By Other Organisations,511,02/10/2019,1910-00107,0.00,546.00,R,REDACTED PERSONAL DATA,No
Http://opendatacommunities.org/id/metropolitan-district-council/leeds,Leeds City Council,31/10/2019,Children and Families,Social Care,Third Party Payments,Services Rendered By Other Organisations,511,04/10/2019,1910-00108,0.00,2257.50,R,REDACTED PERSONAL DATA,No
Http://opendatacommunities.org/id/metropolitan-district-council/leeds,Leeds City Council,31/10/2019,Resources and Housing,HRA Housing Leeds,Capital,Other Costs,7,10/10/2019,1910-00109,0.00,80.00,C,REDACTED PERSONAL DATA,No
Http://opendatacommunities.org/id/metropolitan-district-council/leeds,Leeds City Council,31/10/2019,Children and Families,Social Care,Third Party Payments,Services Rendered By Other Organisations,511,04/10/2019,1910-00110,0.00,420.00,R,A Little Something Extra Ltd,No
Http://opendatacommunities.org/id/metropolitan-district-council/leeds,Leeds City Council,31/10/2019,Children and Families,Social Care,Third Party Payments,Services Rendered By Other Organisations,511,04/10/2019,1910-00111,0.00,787.50,R,A Little Something Extra Ltd,No
Http://opendatacommunities.org/id/metropolitan-district-council/leeds,Leeds City Council,31/10/2019,Children and Families,Social Care,Third Party Payments,Services Rendered By Other Organisations,511,04/10/2019,1910-00112,0.00,787.50,R,A Little Something Extra Ltd,No
Http://opendatacommunities.org/id/metropolitan-district-council/leeds,Leeds City Council,31/10/2019,Children and Families,Social Care,Third Party Payments,Services Rendered By Other Organisations,511,04/10/2019,1910-00113,0.00,525.00,R,A Little Something Extra Ltd,No
Http://opendatacommunities.org/id/metropolitan-district-council/leeds,Leeds City Council,31/10/2019,Children and Families,Social Care,Third Party Payments,Services Rendered By Other Organisations,511,18/10/2019,1910-00114,0.00,700.00,R,A Little Something Extra Ltd,No
Http://opendatacommunities.org/id/metropolitan-district-council/leeds,Leeds City Council,31/10/2019,Children and Families,Social Care,Third Party Payments,Services Rendered By Other Organisations,511,25/10/2019,1910-00115,0.00,61.00,R,A Little Something Extra Ltd,No
Http://opendatacommunities.org/id/metropolitan-district-council/leeds,Leeds City Council,31/10/2019,Resources and Housing,HRA Housing Leeds,Capital,Other Costs,7,28/10/2019,1910-00116,0.00,80.00,C,REDACTED PERSONAL DATA,No
Http://opendatacommunities.org/id/metropolitan-district-council/leeds,Leeds City Council,31/10/2019,Resources and Housing,HRA Housing Leeds,Capital,Other Costs,7,10/10/2019,1910-00117,0.00,100.00,C,REDACTED PERSONAL DATA,No
Http://opendatacommunities.org/id/metropolitan-district-council/leeds,Leeds City Council,31/10/2019,Insurance,Insurance,Supplies and Services,Insurance Claims,248,11/10/2019,1910-00118,0.00,100.00,R,REDACTED PERSONAL DATA,No
Http://opendatacommunities.org/id/metropolitan-district-council/leeds,Leeds City Council,31/10/2019,Communities and Environment,Customer Access,Supplies and Services,Bought In Professional Services,277,07/10/2019,1910-00119,0.00,22.50,R,A Mohammed,No
Http://opendatacommunities.org/id/metropolitan-district-council/leeds,Leeds City Council,31/10/2019,Communities and Environment,Customer Access,Supplies and Services,Bought In Professional Services,277,07/10/2019,1910-00120,0.00,18.00,R,A Mohammed,No
Http://opendatacommunities.org/id/metropolitan-district-council/leeds,Leeds City Council,31/10/2019,Communities and Environment,Customer Access,Supplies and Services,Bought In Professional Services,277,07/10/2019,1910-00121,0.00,18.00,R,A Mohammed,No
Http://opendatacommunities.org/id/metropolitan-district-council/leeds,Leeds City Council,31/10/2019,Communities and Environment,Customer Access,Supplies and Services,Bought In Professional Services,277,07/10/2019,1910-00122,0.00,18.00,R,A Mohammed,No
Http://opendatacommunities.org/id/metropolitan-district-council/leeds,Leeds City Council,31/10/2019,Communities and Environment,Customer Access,Supplies and Services,Bought In Professional Services,277,07/10/2019,1910-00123,0.00,18.00,R,A Mohammed,No
Http://opendatacommunities.org/id/metropolitan-district-council/leeds,Leeds City Council,31/10/2019,Communities and Environment,Customer Access,Supplies and Services,Bought In Professional Services,277,16/10/2019,1910-00124,0.00,18.00,R,A Mohammed,No
Http://opendatacommunities.org/id/metropolitan-district-council/leeds,Leeds City Council,31/10/2019,Communities and Environment,Customer Access,Supplies and Services,Bought In Professional Services,277,16/10/2019,1910-00125,0.00,18.00,R,A Mohammed,No
Http://opendatacommunities.org/id/metropolitan-district-council/leeds,Leeds City Council,31/10/2019,Communities and Environment,Customer Access,Supplies and Services,Bought In Professional Services,277,16/10/2019,1910-00126,0.00,18.00,R,A Mohammed,No
Http://opendatacommunities.org/id/metropolitan-district-council/leeds,Leeds City Council,31/10/2019,Communities and Environment,Customer Access,Supplies and Services,Bought In Professional Services,277,16/10/2019,1910-00127,0.00,18.00,R,A Mohammed,No
Http://opendatacommunities.org/id/metropolitan-district-council/leeds,Leeds City Council,31/10/2019,Communities and Environment,Customer Access,Supplies and Services,Bought In Professional Services,277,16/10/2019,1910-00128,0.00,108.00,R,A Mohammed,No
Http://opendatacommunities.org/id/metropolitan-district-council/leeds,Leeds City Council,31/10/2019,Communities and Environment,Customer Access,Supplies and Services,Bought In Professional Services,277,16/10/2019,1910-00129,0.00,18.00,R,A Mohammed,No
Http://opendatacommunities.org/id/metropolitan-district-council/leeds,Leeds City Council,31/10/2019,Communities and Environment,Customer Access,Supplies and Services,Bought In Professional Services,277,16/10/2019,1910-00130,0.00,18.00,R,A Mohammed,No
Http://opendatacommunities.org/id/metropolitan-district-council/leeds,Leeds City Council,31/10/2019,Communities and Environment,Customer Access,Supplies and Services,Bought In Professional Services,277,18/10/2019,1910-00131,0.00,18.00,R,A Mohammed,No
Http://opendatacommunities.org/id/metropolitan-district-council/leeds,Leeds City Council,31/10/2019,Communities and Environment,Customer Access,Supplies and Services,Bought In Professional Services,277,18/10/2019,1910-00132,0.00,22.50,R,A Mohammed,No
Http://opendatacommunities.org/id/metropolitan-district-council/leeds,Leeds City Council,31/10/2019,Communities and Environment,Customer Access,Supplies and Services,Bought In Professional Services,277,18/10/2019,1910-00133,0.00,18.00,R,A Mohammed,No
Http://opendatacommunities.org/id/metropolitan-district-council/leeds,Leeds City Council,31/10/2019,Communities and Environment,Customer Access,Supplies and Services,Bought In Professional Services,277,18/10/2019,1910-00134,0.00,18.00,R,A Mohammed,No
Http://opendatacommunities.org/id/metropolitan-district-council/leeds,Leeds City Council,31/10/2019,Communities and Environment,Customer Access,Supplies and Services,Bought In Professional Services,277,18/10/2019,1910-00135,0.00,27.00,R,A Mohammed,No
Http://opendatacommunities.org/id/metropolitan-district-council/leeds,Leeds City Council,31/10/2019,Communities and Environment,Customer Access,Supplies and Services,Bought In Professional Services,277,18/10/2019,1910-00136,0.00,18.00,R,A Mohammed,No
Http://opendatacommunities.org/id/metropolitan-district-council/leeds,Leeds City Council,31/10/2019,Communities and Environment,Customer Access,Supplies and Services,Bought In Professional Services,277,18/10/2019,1910-00137,0.00,27.00,R,A Mohammed,No
Http://opendatacommunities.org/id/metropolitan-district-council/leeds,Leeds City Council,31/10/2019,Communities and Environment,Customer Access,Supplies and Services,Bought In Professional Services,277,18/10/2019,1910-00138,0.00,18.00,R,A Mohammed,No
Http://opendatacommunities.org/id/metropolitan-district-council/leeds,Leeds City Council,31/10/2019,Communities and Environment,Customer Access,Supplies and Services,Bought In Professional Services,277,25/10/2019,1910-00139,0.00,18.00,R,A Mohammed,No
Http://opendatacommunities.org/id/metropolitan-district-council/leeds,Leeds City Council,31/10/2019,Communities and Environment,Customer Access,Supplies and Services,Bought In Professional Services,277,25/10/2019,1910-00140,0.00,27.00,R,A Mohammed,No
Http://opendatacommunities.org/id/metropolitan-district-council/leeds,Leeds City Council,31/10/2019,Communities and Environment,Customer Access,Supplies and Services,Bought In Professional Services,277,25/10/2019,1910-00141,0.00,18.00,R,A Mohammed,No
Http://opendatacommunities.org/id/metropolitan-district-council/leeds,Leeds City Council,31/10/2019,Communities and Environment,Customer Access,Supplies and Services,Bought In Professional Services,277,25/10/2019,1910-00142,0.00,18.00,R,A Mohammed,No
Http://opendatacommunities.org/id/metropolitan-district-council/leeds,Leeds City Council,31/10/2019,Communities and Environment,Customer Access,Supplies and Services,Bought In Professional Services,277,25/10/2019,1910-00143,0.00,18.00,R,A Mohammed,No
Http://opendatacommunities.org/id/metropolitan-district-council/leeds,Leeds City Council,31/10/2019,Communities and Environment,Customer Access,Supplies and Services,Bought In Professional Services,277,25/10/2019,1910-00144,0.00,18.00,R,A Mohammed,No
Http://opendatacommunities.org/id/metropolitan-district-council/leeds,Leeds City Council,31/10/2019,Communities and Environment,Customer Access,Supplies and Services,Bought In Professional Services,277,25/10/2019,1910-00145,0.00,18.00,R,A Mohammed,No
Http://opendatacommunities.org/id/metropolitan-district-council/leeds,Leeds City Council,31/10/2019,Communities and Environment,Customer Access,Supplies and Services,Bought In Professional Services,277,25/10/2019,1910-00146,0.00,18.00,R,A Mohammed,No
Http://opendatacommunities.org/id/metropolitan-district-council/leeds,Leeds City Council,31/10/2019,Communities and Environment,Customer Access,Supplies and Services,Bought In Professional Services,277,25/10/2019,1910-00147,0.00,27.00,R,A Mohammed,No
Http://opendatacommunities.org/id/metropolitan-district-council/leeds,Leeds City Council,31/10/2019,Communities and Environment,Customer Access,Supplies and Services,Bought In Professional Services,277,25/10/2019,1910-00148,0.00,18.00,R,A Mohammed,No
Http://opendatacommunities.org/id/metropolitan-district-council/leeds,Leeds City Council,31/10/2019,Communities and Environment,Customer Access,Supplies and Services,Bought In Professional Services,277,25/10/2019,1910-00149,0.00,18.00,R,A Mohammed,No
Http://opendatacommunities.org/id/metropolitan-district-council/leeds,Leeds City Council,31/10/2019,Communities and Environment,Customer Access,Supplies and Services,Bought In Professional Services,277,25/10/2019,1910-00150,0.00,18.00,R,A Mohammed,No
Http://opendatacommunities.org/id/metropolitan-district-council/leeds,Leeds City Council,31/10/2019,Communities and Environment,Customer Access,Supplies and Services,Bought In Professional Services,277,03/10/2019,1910-00151,0.00,18.00,R,A Musalam,No
Http://opendatacommunities.org/id/metropolitan-district-council/leeds,Leeds City Council,31/10/2019,Communities and Environment,Customer Access,Supplies and Services,Bought In Professional Services,277,17/10/2019,1910-00152,0.00,36.00,R,A Musalam,No
Http://opendatacommunities.org/id/metropolitan-district-council/leeds,Leeds City Council,31/10/2019,Communities and Environment,Customer Access,Supplies and Services,Bought In Professional Services,277,17/10/2019,1910-00153,0.00,36.00,R,A Musalam,No
Http://opendatacommunities.org/id/metropolitan-district-council/leeds,Leeds City Council,31/10/2019,Children and Families,Social Care,Third Party Payments,Services Rendered By Other Organisations,511,02/10/2019,1910-00154,0.00,1365.00,R,REDACTED PERSONAL DATA,No
Http://opendatacommunities.org/id/metropolitan-district-council/leeds,Leeds City Council,31/10/2019,Children and Families,Social Care,Third Party Payments,Services Rendered By Other Organisations,511,04/10/2019,1910-00155,0.00,2257.50,R,REDACTED PERSONAL DATA,No
Http://opendatacommunities.org/id/metropolitan-district-council/leeds,Leeds City Council,31/10/2019,Communities and Environment,Customer Access,Supplies and Services,Bought In Professional Services,277,16/10/2019,1910-00156,0.00,18.00,R,A Namaki,No
Http://opendatacommunities.org/id/metropolitan-district-council/leeds,Leeds City Council,31/10/2019,Communities and Environment,Customer Access,Supplies and Services,Bought In Professional Services,277,18/10/2019,1910-00157,0.00,18.00,R,A Namaki,No
Http://opendatacommunities.org/id/metropolitan-district-council/leeds,Leeds City Council,31/10/2019,Communities and Environment,Customer Access,Supplies and Services,Bought In Professional Services,277,25/10/2019,1910-00158,0.00,18.00,R,A Namaki,No
Http://opendatacommunities.org/id/metropolitan-district-council/leeds,Leeds City Council,31/10/2019,Resources and Housing,HRA Housing Leeds,Capital,Other Costs,7,28/10/2019,1910-00159,0.00,80.00,C,REDACTED PERSONAL DATA,No
Http://opendatacommunities.org/id/metropolitan-district-council/leeds,Leeds City Council,31/10/2019,Communities and Environment,Benefits  Wlefare and Poverty,Transfer Payments,Housing Benefits,641,17/10/2019,1910-00160,0.00,355.71,R,REDACTED PERSONAL DATA,No
Http://opendatacommunities.org/id/metropolitan-district-council/leeds,Leeds City Council,31/10/2019,Resources and Housing,HRA Housing Leeds,Capital,Other Costs,7,10/10/2019,1910-00161,0.00,170.09,C,REDACTED PERSONAL DATA,No
Http://opendatacommunities.org/id/metropolitan-district-council/leeds,Leeds City Council,31/10/2019,Children and Families,Social Care,Third Party Payments,Services Rendered By Other Organisations,511,04/10/2019,1910-00162,0.00,225.75,R,REDACTED PERSONAL DATA,No
Http://opendatacommunities.org/id/metropolitan-district-council/leeds,Leeds City Council,31/10/2019,Resources and Housing,Shared Services,Supplies and Services,Other Hired And Contracted Services,265,04/10/2019,1910-00163,0.00,38.00,R,A Star Couriers Ltd,No
Http://opendatacommunities.org/id/metropolitan-district-council/leeds,Leeds City Council,31/10/2019,Resources and Housing,Shared Services,Supplies and Services,Other Hired And Contracted Services,265,16/10/2019,1910-00164,0.00,49.75,R,A Star Couriers Ltd,No
Http://opendatacommunities.org/id/metropolitan-district-council/leeds,Leeds City Council,31/10/2019,Communities and Environment,Communities,Supplies and Services,Other Hired And Contracted Services,265,25/10/2019,1910-00165,0.00,125.00,R,REDACTED PERSONAL DATA,No
Http://opendatacommunities.org/id/metropolitan-district-council/leeds,Leeds City Council,31/10/2019,Children and Families,Social Care,Third Party Payments,Services Rendered By Other Organisations,511,04/10/2019,1910-00166,0.00,451.50,R,REDACTED PERSONAL DATA,No
Http://opendatacommunities.org/id/metropolitan-district-council/leeds,Leeds City Council,31/10/2019,Children and Families,Social Care,Third Party Payments,Services Rendered By Other Organisations,511,04/10/2019,1910-00167,0.00,677.25,R,REDACTED PERSONAL DATA,No
Http://opendatacommunities.org/id/metropolitan-district-council/leeds,Leeds City Council,31/10/2019,Children and Families,Social Care,Third Party Payments,General External Residential Placements,507,02/10/2019,1910-00168,0.00,21857.14,R,A Wilderness Way Ltd,No
Http://opendatacommunities.org/id/metropolitan-district-council/leeds,Leeds City Council,31/10/2019,Children and Families,Social Care,Third Party Payments,General External Residential Placements,507,02/10/2019,1910-00169,0.00,1440.00,R,A Wilderness Way Ltd,No
Http://opendatacommunities.org/id/metropolitan-district-council/leeds,Leeds City Council,31/10/2019,Children and Families,Social Care,Third Party Payments,General External Residential Placements,507,02/10/2019,1910-00170,0.00,28037.14,R,A Wilderness Way Ltd,No
Http://opendatacommunities.org/id/metropolitan-district-council/leeds,Leeds City Council,31/10/2019,Children and Families,Social Care,Third Party Payments,General External Residential Placements,507,02/10/2019,1910-00171,0.00,1440.00,R,A Wilderness Way Ltd,No
Http://opendatacommunities.org/id/metropolitan-district-council/leeds,Leeds City Council,31/10/2019,Children and Families,Social Care,Third Party Payments,General External Residential Placements,507,02/10/2019,1910-00172,0.00,2803.71,R,A Wilderness Way Ltd,No
Http://opendatacommunities.org/id/metropolitan-district-council/leeds,Leeds City Council,31/10/2019,Children and Families,Social Care,Third Party Payments,General External Residential Placements,507,02/10/2019,1910-00173,0.00,21857.14,R,A Wilderness Way Ltd,No
Http://opendatacommunities.org/id/metropolitan-district-council/leeds,Leeds City Council,31/10/2019,Children and Families,Social Care,Third Party Payments,General External Residential Placements,507,04/10/2019,1910-00174,0.00,670.50,R,A Wilderness Way Ltd,No
Http://opendatacommunities.org/id/metropolitan-district-council/leeds,Leeds City Council,31/10/2019,Children and Families,Social Care,Third Party Payments,General External Residential Placements,507,04/10/2019,1910-00175,0.00,642.60,R,A Wilderness Way Ltd,No
Http://opendatacommunities.org/id/metropolitan-district-council/leeds,Leeds City Council,31/10/2019,Children and Families,Social Care,Third Party Payments,General External Residential Placements,507,04/10/2019,1910-00176,0.00,110.70,R,A Wilderness Way Ltd,No
Http://opendatacommunities.org/id/metropolitan-district-council/leeds,Leeds City Council,31/10/2019,Children and Families,Social Care,Third Party Payments,General External Residential Placements,507,11/10/2019,1910-00177,0.00,761.20,R,A Wilderness Way Ltd,No
Http://opendatacommunities.org/id/metropolitan-district-council/leeds,Leeds City Council,31/10/2019,Children and Families,Social Care,Third Party Payments,General External Residential Placements,507,29/10/2019,1910-00178,0.00,84.00,R,A Wilderness Way Ltd,No
Http://opendatacommunities.org/id/metropolitan-district-council/leeds,Leeds City Council,31/10/2019,Children and Families,Social Care,Third Party Payments,General External Residential Placements,507,29/10/2019,1910-00179,0.00,1869.14,R,A Wilderness Way Ltd,No
Http://opendatacommunities.org/id/metropolitan-district-council/leeds,Leeds City Council,31/10/2019,Children and Families,Social Care,Third Party Payments,General External Residential Placements,507,29/10/2019,1910-00180,0.00,2657.50,R,A Wilderness Way Ltd,No
Http://opendatacommunities.org/id/metropolitan-district-council/leeds,Leeds City Council,31/10/2019,Children and Families,Social Care,Third Party Payments,General External Residential Placements,507,31/10/2019,1910-00181,0.00,1447.50,R,A Wilderness Way Ltd,No
Http://opendatacommunities.org/id/metropolitan-district-council/leeds,Leeds City Council,31/10/2019,Children and Families,Social Care,Third Party Payments,General External Residential Placements,507,31/10/2019,1910-00182,0.00,1208.00,R,A Wilderness Way Ltd,No
Http://opendatacommunities.org/id/metropolitan-district-council/leeds,Leeds City Council,31/10/2019,Communities and Environment,Waste Management,Capital,Furniture And Equipment,5,04/10/2019,1910-00183,0.00,12855.00,C,A&C Weber Uk Ltd,No
Http://opendatacommunities.org/id/metropolitan-district-council/leeds,Leeds City Council,31/10/2019,Communities and Environment,Waste Management,Capital,Furniture And Equipment,5,10/10/2019,1910-00184,0.00,11259.75,C,A&C Weber Uk Ltd,No
Http://opendatacommunities.org/id/metropolitan-district-council/leeds,Leeds City Council,31/10/2019,Communities and Environment,Waste Management,Capital,Furniture And Equipment,5,22/10/2019,1910-00185,0.00,11800.00,C,A&C Weber Uk Ltd,No
Http://opendatacommunities.org/id/metropolitan-district-council/leeds,Leeds City Council,31/10/2019,Communities and Environment,Waste Management,Capital,Furniture And Equipment,5,29/10/2019,1910-00186,0.00,11800.00,C,A&C Weber Uk Ltd,No
Http://opendatacommunities.org/id/metropolitan-district-council/leeds,Leeds City Council,31/10/2019,Resources and Housing,Leeds Building Services,Supplies and Services,Operational Materials,205,16/10/2019,1910-00187,0.00,550.00,R,A1 Stair Lift Services,No
Http://opendatacommunities.org/id/metropolitan-district-council/leeds,Leeds City Council,31/10/2019,Resources and Housing,Leeds Building Services,Supplies and Services,Other Hired And Contracted Services,265,23/10/2019,1910-00188,0.00,5145.00,R,A1 Stair Lift Services,No
Http://opendatacommunities.org/id/metropolitan-district-council/leeds,Leeds City Council,31/10/2019,Resources and Housing,Leeds Building Services,Supplies and Services,Other Hired And Contracted Services,265,23/10/2019,1910-00189,0.00,8855.00,R,A1 Stair Lift Services,No
Http://opendatacommunities.org/id/metropolitan-district-council/leeds,Leeds City Council,31/10/2019,Resources and Housing,Leeds Building Services,Supplies and Services,Operational Materials,205,25/10/2019,1910-00190,0.00,850.00,R,A1 Stair Lift Services,No
Http://opendatacommunities.org/id/metropolitan-district-council/leeds,Leeds City Council,31/10/2019,Resources and Housing,Leeds Building Services,Supplies and Services,Operational Materials,205,25/10/2019,1910-00191,0.00,695.00,R,A1 Stair Lift Services,No
Http://opendatacommunities.org/id/metropolitan-district-council/leeds,Leeds City Council,31/10/2019,Resources and Housing,Leeds Building Services,Supplies and Services,Operational Materials,205,25/10/2019,1910-00192,0.00,70.00,R,A1 Stair Lift Services,No
Http://opendatacommunities.org/id/metropolitan-district-council/leeds,Leeds City Council,31/10/2019,Resources and Housing,Leeds Building Services,Employees,Training & Development,70,17/10/2019,1910-00193,0.00,215.00,R,Aaa Training Co Ltd,No
Http://opendatacommunities.org/id/metropolitan-district-council/leeds,Leeds City Council,31/10/2019,Resources and Housing,Leeds Building Services,Supplies and Services,Operational Materials,205,16/10/2019,1910-00194,0.00,185.00,R,Aalco Leeds,No
Http://opendatacommunities.org/id/metropolitan-district-council/leeds,Leeds City Council,31/10/2019,Children and Families,Social Care  ,Supplies and Services,Operational Materials,205,10/09/2019,1910-00195,0.00,109.79,R,Aardvark Archery,Yes
Http://opendatacommunities.org/id/metropolitan-district-council/leeds,Leeds City Council As Accountable Body,31/10/2019,Social Services Pooled Budgets,Leeds Community Equip Store Pooled Budgt,Supplies and Services,Other Equipment,203,16/10/2019,1910-00196,0.00,435.00,R,Aat (Gb) Ltd,No
Http://opendatacommunities.org/id/metropolitan-district-council/leeds,Leeds City Council As Accountable Body,31/10/2019,Social Services Pooled Budgets,Leeds Community Equip Store Pooled Budgt,Supplies and Services,Other Equipment,203,16/10/2019,1910-00197,0.00,1099.00,R,Aat (Gb) Ltd,No
Http://opendatacommunities.org/id/metropolitan-district-council/leeds,Leeds City Council As Accountable Body,31/10/2019,Social Services Pooled Budgets,Leeds Community Equip Store Pooled Budgt,Supplies and Services,Other Equipment,203,16/10/2019,1910-00198,0.00,1099.00,R,Aat (Gb) Ltd,No
Http://opendatacommunities.org/id/metropolitan-district-council/leeds,Leeds City Council,31/10/2019,Adults and Health,Social Services Support Services,Transport,Public Transport Expenses,310,04/10/2019,1910-00199,0.00,418.00,R,Ab Cars,No
Http://opendatacommunities.org/id/metropolitan-district-council/leeds,Leeds City Council,31/10/2019,Communities and Environment,Parks And Countryside  ,Supplies and Services,Resaleable Materials,204,04/09/2019,1910-00200,0.00,170.46,R,Abacus Cards Ltd,Yes
Http://opendatacommunities.org/id/metropolitan-district-council/leeds,Leeds City Council,31/10/2019,Resources and Housing,Sustainable Energy & Climate Change,Capital,Other Costs,7,31/10/2019,1910-00201,0.00,10000.00,C,REDACTED COMMERCIAL CONFIDENTIALITY,No
Http://opendatacommunities.org/id/metropolitan-district-council/leeds,Leeds City Council,31/10/2019,Resources and Housing,Human Resources,Employees,Occupational Health,85,01/10/2019,1910-00202,0.00,48.40,R,Abbey Grange Medical Practice,No
Http://opendatacommunities.org/id/metropolitan-district-council/leeds,Leeds City Council,31/10/2019,Adults and Health,Services For Adults Under 65 Mental/Dis,Third Party Payments,Nursing Home,570,16/10/2019,1910-00203,0.00,1924.00,R,Abbey Grange Nursing Home,No
Http://opendatacommunities.org/id/metropolitan-district-council/leeds,Leeds City Council,31/10/2019,Communities and Environment,Customer Access,Supplies and Services,Other Hired And Contracted Services,265,16/10/2019,1910-00204,0.00,95.37,R,Abbey J Forster,No
Http://opendatacommunities.org/id/metropolitan-district-council/leeds,Leeds City Council,31/10/2019,Children and Families,Social Care,Third Party Payments,Section 17,551,31/10/2019,1910-00205,0.00,180.00,R,Abbey Multi  Academy Trust,No
Http://opendatacommunities.org/id/metropolitan-district-council/leeds,Leeds City Council,31/10/2019,Children and Families,Partnerships & Health,Supplies and Services,Food & Drink,231,18/10/2019,1910-00206,0.00,135.00,R,Abbey Multi Academy Trust,No
Http://opendatacommunities.org/id/metropolitan-district-council/leeds,Leeds City Council,31/10/2019,Children and Families,Social Care,Third Party Payments,Allowances,546,03/10/2019,1910-00207,0.00,631.52,R,ABBIE OMAHONY,No
Http://opendatacommunities.org/id/metropolitan-district-council/leeds,Leeds City Council,31/10/2019,Children and Families,Social Care,Third Party Payments,Allowances,546,25/10/2019,1910-00208,0.00,494.27,R,ABBIE OMAHONY,No
Http://opendatacommunities.org/id/metropolitan-district-council/leeds,Leeds City Council,31/10/2019,Communities and Environment,Parks and Countryside,Supplies and Services,Other Hired And Contracted Services,265,25/10/2019,1910-00209,0.00,550.00,R,Abbotts Memorials,No
Http://opendatacommunities.org/id/metropolitan-district-council/leeds,Leeds City Council,31/10/2019,Communities and Environment,Parks and Countryside,Supplies and Services,Other Hired And Contracted Services,265,29/10/2019,1910-00210,0.00,550.00,R,Abbotts Memorials,No
Http://opendatacommunities.org/id/metropolitan-district-council/leeds,Leeds City Council,31/10/2019,Children and Families,Social Care,Supplies and Services,Teaching Materials,202,07/10/2019,1910-00211,0.00,64.40,R,Abc Awards,No
Http://opendatacommunities.org/id/metropolitan-district-council/leeds,Leeds City Council,31/10/2019,Children and Families,Social Care,Supplies and Services,Teaching Materials,202,11/10/2019,1910-00212,0.00,175.60,R,Abc Awards,No
Http://opendatacommunities.org/id/metropolitan-district-council/leeds,Leeds City Council,31/10/2019,Children and Families,Social Care,Supplies and Services,Teaching Materials,202,28/10/2019,1910-00213,0.00,250.00,R,Abc Awards,No
Http://opendatacommunities.org/id/metropolitan-district-council/leeds,Leeds City Council,31/10/2019,Children and Families,Social Care,Third Party Payments,Services Rendered By Other Organisations,511,02/10/2019,1910-00214,0.00,1911.00,R,Abc Daycare And Ozone Out Of School,No
Http://opendatacommunities.org/id/metropolitan-district-council/leeds,Leeds City Council,31/10/2019,Children and Families,Social Care,Third Party Payments,Services Rendered By Other Organisations,511,04/10/2019,1910-00215,0.00,6622.00,R,Abc Daycare And Ozone Out Of School,No
Http://opendatacommunities.org/id/metropolitan-district-council/leeds,Leeds City Council,31/10/2019,Children and Families,Social Care,Third Party Payments,Services Rendered By Other Organisations,511,02/10/2019,1910-00216,0.00,2093.00,R,Abc Nursery At Lufc,No
Http://opendatacommunities.org/id/metropolitan-district-council/leeds,Leeds City Council,31/10/2019,Children and Families,Social Care,Third Party Payments,Services Rendered By Other Organisations,511,04/10/2019,1910-00217,0.00,8352.75,R,Abc Nursery At Lufc,No
Http://opendatacommunities.org/id/metropolitan-district-council/leeds,Leeds City Council,31/10/2019,Children and Families,Social Care,Third Party Payments,Services Rendered By Other Organisations,511,02/10/2019,1910-00218,0.00,1365.00,R,Abc@D'S Childcare,No
Http://opendatacommunities.org/id/metropolitan-district-council/leeds,Leeds City Council,31/10/2019,Children and Families,Social Care,Third Party Payments,Services Rendered By Other Organisations,511,04/10/2019,1910-00219,0.00,4515.00,R,Abc@D'S Childcare,No
Http://opendatacommunities.org/id/metropolitan-district-council/leeds,Leeds City Council,31/10/2019,Children and Families,Social Care,Third Party Payments,Placement Support,550,22/10/2019,1910-00220,0.00,88.20,R,Abc@D'S Childcare,No
Http://opendatacommunities.org/id/metropolitan-district-council/leeds,Leeds City Council,31/10/2019,Children and Families,Social Care,Third Party Payments,Placement Support,550,22/10/2019,1910-00221,0.00,220.50,R,Abc@D'S Childcare,No
Http://opendatacommunities.org/id/metropolitan-district-council/leeds,Leeds City Council,31/10/2019,Children and Families,Social Care,Third Party Payments,Placement Support,550,22/10/2019,1910-00222,0.00,220.50,R,Abc@D'S Childcare,No
Http://opendatacommunities.org/id/metropolitan-district-council/leeds,Leeds City Council,31/10/2019,Children and Families,Social Care,Third Party Payments,Placement Support,550,22/10/2019,1910-00223,0.00,220.50,R,Abc@D'S Childcare,No
Http://opendatacommunities.org/id/metropolitan-district-council/leeds,Leeds City Council,31/10/2019,Children and Families,Social Care,Third Party Payments,Placement Support,550,22/10/2019,1910-00224,0.00,220.50,R,Abc@D'S Childcare,No
Http://opendatacommunities.org/id/metropolitan-district-council/leeds,Leeds City Council,31/10/2019,Children and Families,Social Care,Third Party Payments,Placement Support,550,22/10/2019,1910-00225,0.00,220.50,R,Abc@D'S Childcare,No
Http://opendatacommunities.org/id/metropolitan-district-council/leeds,Leeds City Council,31/10/2019,Children and Families,Social Care,Third Party Payments,Placement Support,550,22/10/2019,1910-00226,0.00,220.50,R,Abc@D'S Childcare,No
Http://opendatacommunities.org/id/metropolitan-district-council/leeds,Leeds City Council,31/10/2019,Children and Families,Social Care,Third Party Payments,Placement Support,550,24/10/2019,1910-00227,0.00,1901.00,R,Abc@D'S Childcare,No
Http://opendatacommunities.org/id/metropolitan-district-council/leeds,Leeds City Council,31/10/2019,Children and Families,Social Care,Third Party Payments,Placement Support,550,29/10/2019,1910-00228,0.00,950.50,R,Abc@D'S Childcare,No
Http://opendatacommunities.org/id/metropolitan-district-council/leeds,Leeds City Council,31/10/2019,Communities and Environment,Customer Access,Supplies and Services,Bought In Professional Services,277,07/10/2019,1910-00229,0.00,22.50,R,Abdul Wadood Kazizadha,No
Http://opendatacommunities.org/id/metropolitan-district-council/leeds,Leeds City Council,31/10/2019,Communities and Environment,Customer Access,Supplies and Services,Bought In Professional Services,277,07/10/2019,1910-00230,0.00,22.50,R,Abdul Wadood Kazizadha,No
Http://opendatacommunities.org/id/metropolitan-district-council/leeds,Leeds City Council,31/10/2019,Communities and Environment,Customer Access,Supplies and Services,Bought In Professional Services,277,07/10/2019,1910-00231,0.00,40.50,R,Abdul Wadood Kazizadha,No
Http://opendatacommunities.org/id/metropolitan-district-council/leeds,Leeds City Council,31/10/2019,Communities and Environment,Customer Access,Supplies and Services,Bought In Professional Services,277,07/10/2019,1910-00232,0.00,24.50,R,Abdul Wadood Kazizadha,No
Http://opendatacommunities.org/id/metropolitan-district-council/leeds,Leeds City Council,31/10/2019,Communities and Environment,Customer Access,Supplies and Services,Bought In Professional Services,277,07/10/2019,1910-00233,0.00,22.50,R,Abdul Wadood Kazizadha,No
Http://opendatacommunities.org/id/metropolitan-district-council/leeds,Leeds City Council,31/10/2019,Communities and Environment,Customer Access,Supplies and Services,Bought In Professional Services,277,16/10/2019,1910-00234,0.00,22.50,R,Abdul Wadood Kazizadha,No
Http://opendatacommunities.org/id/metropolitan-district-council/leeds,Leeds City Council,31/10/2019,Communities and Environment,Customer Access,Supplies and Services,Bought In Professional Services,277,16/10/2019,1910-00235,0.00,22.50,R,Abdul Wadood Kazizadha,No
Http://opendatacommunities.org/id/metropolitan-district-council/leeds,Leeds City Council,31/10/2019,Communities and Environment,Customer Access,Supplies and Services,Bought In Professional Services,277,18/10/2019,1910-00236,0.00,22.50,R,Abdul Wadood Kazizadha,No
Http://opendatacommunities.org/id/metropolitan-district-council/leeds,Leeds City Council,31/10/2019,Communities and Environment,Customer Access,Supplies and Services,Bought In Professional Services,277,18/10/2019,1910-00237,0.00,22.50,R,Abdul Wadood Kazizadha,No
Http://opendatacommunities.org/id/metropolitan-district-council/leeds,Leeds City Council,31/10/2019,Communities and Environment,Customer Access,Supplies and Services,Bought In Professional Services,277,18/10/2019,1910-00238,0.00,22.50,R,Abdul Wadood Kazizadha,No
Http://opendatacommunities.org/id/metropolitan-district-council/leeds,Leeds City Council,31/10/2019,Communities and Environment,Customer Access,Supplies and Services,Bought In Professional Services,277,25/10/2019,1910-00239,0.00,22.50,R,Abdul Wadood Kazizadha,No
Http://opendatacommunities.org/id/metropolitan-district-council/leeds,Leeds City Council,31/10/2019,Resources and Housing,Sustainable Energy & Climate Change,Capital,Other Costs,7,21/10/2019,1910-00240,0.00,1500.00,C,REDACTED COMMERCIAL CONFIDENTIALITY,No
Http://opendatacommunities.org/id/metropolitan-district-council/leeds,Leeds City Council,31/10/2019,Communities and Environment,Customer Access,Supplies and Services,Bought In Professional Services,277,07/10/2019,1910-00241,0.00,18.00,R,Abdulahad Denha,No
Http://opendatacommunities.org/id/metropolitan-district-council/leeds,Leeds City Council,31/10/2019,Communities and Environment,Customer Access,Supplies and Services,Bought In Professional Services,277,07/10/2019,1910-00242,0.00,18.00,R,Abdulahad Denha,No
Http://opendatacommunities.org/id/metropolitan-district-council/leeds,Leeds City Council,31/10/2019,Communities and Environment,Customer Access,Supplies and Services,Bought In Professional Services,277,07/10/2019,1910-00243,0.00,18.00,R,Abdulahad Denha,No
Http://opendatacommunities.org/id/metropolitan-district-council/leeds,Leeds City Council,31/10/2019,Communities and Environment,Customer Access,Supplies and Services,Bought In Professional Services,277,07/10/2019,1910-00244,0.00,18.00,R,Abdulahad Denha,No
Http://opendatacommunities.org/id/metropolitan-district-council/leeds,Leeds City Council,31/10/2019,Communities and Environment,Customer Access,Supplies and Services,Bought In Professional Services,277,07/10/2019,1910-00245,0.00,18.00,R,Abdulahad Denha,No
Http://opendatacommunities.org/id/metropolitan-district-council/leeds,Leeds City Council,31/10/2019,Communities and Environment,Customer Access,Supplies and Services,Bought In Professional Services,277,07/10/2019,1910-00246,0.00,18.00,R,Abdulahad Denha,No
Http://opendatacommunities.org/id/metropolitan-district-council/leeds,Leeds City Council,31/10/2019,Communities and Environment,Customer Access,Supplies and Services,Bought In Professional Services,277,16/10/2019,1910-00247,0.00,31.50,R,Abdulahad Denha,No
Http://opendatacommunities.org/id/metropolitan-district-council/leeds,Leeds City Council,31/10/2019,Communities and Environment,Customer Access,Supplies and Services,Bought In Professional Services,277,16/10/2019,1910-00248,0.00,30.00,R,Abdulahad Denha,No
Http://opendatacommunities.org/id/metropolitan-district-council/leeds,Leeds City Council,31/10/2019,Communities and Environment,Customer Access,Supplies and Services,Bought In Professional Services,277,16/10/2019,1910-00249,0.00,36.00,R,Abdulahad Denha,No
Http://opendatacommunities.org/id/metropolitan-district-council/leeds,Leeds City Council,31/10/2019,Communities and Environment,Customer Access,Supplies and Services,Bought In Professional Services,277,16/10/2019,1910-00250,0.00,45.00,R,Abdulahad Denha,No
Http://opendatacommunities.org/id/metropolitan-district-council/leeds,Leeds City Council,31/10/2019,Communities and Environment,Customer Access,Supplies and Services,Bought In Professional Services,277,16/10/2019,1910-00251,0.00,27.00,R,Abdulahad Denha,No
Http://opendatacommunities.org/id/metropolitan-district-council/leeds,Leeds City Council,31/10/2019,Communities and Environment,Customer Access,Supplies and Services,Bought In Professional Services,277,16/10/2019,1910-00252,0.00,18.00,R,Abdulahad Denha,No
Http://opendatacommunities.org/id/metropolitan-district-council/leeds,Leeds City Council,31/10/2019,Communities and Environment,Customer Access,Supplies and Services,Bought In Professional Services,277,16/10/2019,1910-00253,0.00,18.00,R,Abdulahad Denha,No
Http://opendatacommunities.org/id/metropolitan-district-council/leeds,Leeds City Council,31/10/2019,Communities and Environment,Customer Access,Supplies and Services,Bought In Professional Services,277,18/10/2019,1910-00254,0.00,18.00,R,Abdulahad Denha,No
Http://opendatacommunities.org/id/metropolitan-district-council/leeds,Leeds City Council,31/10/2019,Communities and Environment,Customer Access,Supplies and Services,Bought In Professional Services,277,18/10/2019,1910-00255,0.00,36.00,R,Abdulahad Denha,No
Http://opendatacommunities.org/id/metropolitan-district-council/leeds,Leeds City Council,31/10/2019,Communities and Environment,Customer Access,Supplies and Services,Bought In Professional Services,277,18/10/2019,1910-00256,0.00,18.00,R,Abdulahad Denha,No
Http://opendatacommunities.org/id/metropolitan-district-council/leeds,Leeds City Council,31/10/2019,Communities and Environment,Customer Access,Supplies and Services,Bought In Professional Services,277,25/10/2019,1910-00257,0.00,18.00,R,Abdulahad Denha,No
Http://opendatacommunities.org/id/metropolitan-district-council/leeds,Leeds City Council,31/10/2019,Communities and Environment,Customer Access,Supplies and Services,Bought In Professional Services,277,25/10/2019,1910-00258,0.00,18.00,R,Abdulahad Denha,No
Http://opendatacommunities.org/id/metropolitan-district-council/leeds,Leeds City Council,31/10/2019,Communities and Environment,Customer Access,Supplies and Services,Bought In Professional Services,277,25/10/2019,1910-00259,0.00,18.00,R,Abdulahad Denha,No
Http://opendatacommunities.org/id/metropolitan-district-council/leeds,Leeds City Council,31/10/2019,Communities and Environment,Customer Access,Supplies and Services,Bought In Professional Services,277,25/10/2019,1910-00260,0.00,18.00,R,Abdulahad Denha,No
Http://opendatacommunities.org/id/metropolitan-district-council/leeds,Leeds City Council,31/10/2019,Communities and Environment,Customer Access,Supplies and Services,Bought In Professional Services,277,25/10/2019,1910-00261,0.00,18.00,R,Abdulahad Denha,No
Http://opendatacommunities.org/id/metropolitan-district-council/leeds,Leeds City Council,31/10/2019,Communities and Environment,Customer Access,Supplies and Services,Bought In Professional Services,277,07/10/2019,1910-00262,0.00,49.50,R,Abdulrahim Dastyar,No
Http://opendatacommunities.org/id/metropolitan-district-council/leeds,Leeds City Council,31/10/2019,Communities and Environment,Customer Access,Supplies and Services,Bought In Professional Services,277,07/10/2019,1910-00263,0.00,22.50,R,Abdulrahim Dastyar,No
Http://opendatacommunities.org/id/metropolitan-district-council/leeds,Leeds City Council,31/10/2019,Communities and Environment,Customer Access,Supplies and Services,Bought In Professional Services,277,07/10/2019,1910-00264,0.00,37.50,R,Abdulrahim Dastyar,No
Http://opendatacommunities.org/id/metropolitan-district-council/leeds,Leeds City Council,31/10/2019,Communities and Environment,Customer Access,Supplies and Services,Bought In Professional Services,277,16/10/2019,1910-00265,0.00,18.00,R,Abdulrahim Dastyar,No
Http://opendatacommunities.org/id/metropolitan-district-council/leeds,Leeds City Council,31/10/2019,Communities and Environment,Customer Access,Supplies and Services,Bought In Professional Services,277,25/10/2019,1910-00266,0.00,18.00,R,Abdulrahim Dastyar,No
Http://opendatacommunities.org/id/metropolitan-district-council/leeds,Leeds City Council,31/10/2019,Children and Families,Social Care,Transfer Payments,16 Plus Top Up Allowance,625,04/10/2019,1910-00267,0.00,20.00,R,REDACTED PERSONAL DATA,No
Http://opendatacommunities.org/id/metropolitan-district-council/leeds,Leeds City Council,31/10/2019,Children and Families,Social Care,Transfer Payments,16 Plus Top Up Allowance,625,11/10/2019,1910-00268,0.00,20.00,R,REDACTED PERSONAL DATA,No
Http://opendatacommunities.org/id/metropolitan-district-council/leeds,Leeds City Council,31/10/2019,Children and Families,Social Care,Transfer Payments,16 Plus Top Up Allowance,625,18/10/2019,1910-00269,0.00,20.00,R,REDACTED PERSONAL DATA,No
Http://opendatacommunities.org/id/metropolitan-district-council/leeds,Leeds City Council,31/10/2019,Children and Families,Social Care,Transfer Payments,16 Plus Top Up Allowance,625,25/10/2019,1910-00270,0.00,20.00,R,REDACTED PERSONAL DATA,No
Http://opendatacommunities.org/id/metropolitan-district-council/leeds,Leeds City Council,31/10/2019,Adults and Health,Services For Older People - 65 And Over,Third Party Payments,Nursing Home,570,16/10/2019,1910-00271,0.00,35129.04,R,Aberford Hall,No
Http://opendatacommunities.org/id/metropolitan-district-council/leeds,Leeds City Council,31/10/2019,Adults and Health,Services For Older People - 65 And Over,Third Party Payments,Residential,580,16/10/2019,1910-00272,0.00,1627.40,R,Aberford Hall,No
Http://opendatacommunities.org/id/metropolitan-district-council/leeds,Leeds City Council,31/10/2019,Resources and Housing,Leeds Building Services,Supplies and Services,Operational Materials,205,02/10/2019,1910-00273,0.00,20.00,R,Abi Garage Doors Ltd,No
Http://opendatacommunities.org/id/metropolitan-district-council/leeds,Leeds City Council,31/10/2019,Resources and Housing,Leeds Building Services,Supplies and Services,Operational Materials,205,04/10/2019,1910-00274,0.00,20.00,R,Abi Garage Doors Ltd,No
Http://opendatacommunities.org/id/metropolitan-district-council/leeds,Leeds City Council,31/10/2019,Resources and Housing,Leeds Building Services,Supplies and Services,Operational Materials,205,09/10/2019,1910-00275,0.00,15.00,R,Abi Garage Doors Ltd,No
Http://opendatacommunities.org/id/metropolitan-district-council/leeds,Leeds City Council,31/10/2019,Resources and Housing,Sustainable Energy & Climate Change,Capital,Other Costs,7,04/10/2019,1910-00276,0.00,1500.00,C,REDACTED COMMERCIAL CONFIDENTIALITY,No
Http://opendatacommunities.org/id/metropolitan-district-council/leeds,Leeds City Council,31/10/2019,Adults and Health,Assessment And Care Management  ,Supplies and Services,Computer Software & Equipment,214,27/09/2019,1910-00277,0.00,119.00,R,Ability Smart Ltd,Yes
Http://opendatacommunities.org/id/metropolitan-district-council/leeds,Leeds City Council,31/10/2019,Communities and Environment,Parks and Countryside,Supplies and Services,Operational Materials,205,03/10/2019,1910-00278,0.00,400.00,R,Abram Pulman & Sons Limited,No
Http://opendatacommunities.org/id/metropolitan-district-council/leeds,Leeds City Council,31/10/2019,Communities and Environment,Parks and Countryside,Supplies and Services,Operational Materials,205,03/10/2019,1910-00279,0.00,445.50,R,Abram Pulman & Sons Limited,No
Http://opendatacommunities.org/id/metropolitan-district-council/leeds,Leeds City Council,31/10/2019,Children and Families,Social Care  ,Supplies and Services,Food & Drink,231,08/09/2019,1910-00280,0.00,6.99,R,Abu Bakar Limited,Yes
Http://opendatacommunities.org/id/metropolitan-district-council/leeds,Leeds City Council,31/10/2019,Adults and Health,Services For Adults Under 65 Mental/Dis,Third Party Payments,Fees - Level 4,520,11/10/2019,1910-00281,0.00,235.60,R,Abubaker Denja Mohammed,No
Http://opendatacommunities.org/id/metropolitan-district-council/leeds,Leeds City Council,31/10/2019,Adults and Health,Services For Adults Under 65 Mental/Dis,Third Party Payments,Fees - Level 4,520,11/10/2019,1910-00282,0.00,235.20,R,Abubaker Denja Mohammed,No
Http://opendatacommunities.org/id/metropolitan-district-council/leeds,Leeds City Council,31/10/2019,Adults and Health,Services For Adults Under 65 Mental/Dis,Third Party Payments,Fees - Level 4,520,11/10/2019,1910-00283,0.00,235.20,R,Abubaker Denja Mohammed,No
Http://opendatacommunities.org/id/metropolitan-district-council/leeds,Leeds City Council,31/10/2019,Adults and Health,Services For Adults Under 65 Mental/Dis,Third Party Payments,Fees - Level 4,520,11/10/2019,1910-00284,0.00,228.32,R,Abubaker Denja Mohammed,No
Http://opendatacommunities.org/id/metropolitan-district-council/leeds,Leeds City Council,31/10/2019,Adults and Health,Services For Adults Under 65 Mental/Dis,Third Party Payments,Fees - Level 4,520,11/10/2019,1910-00285,0.00,175.00,R,Abubaker Denja Mohammed,No
Http://opendatacommunities.org/id/metropolitan-district-council/leeds,Leeds City Council,31/10/2019,Adults and Health,Services For Adults Under 65 Mental/Dis,Third Party Payments,Fees - Level 4,520,16/10/2019,1910-00286,0.00,236.06,R,Abubaker Denja Mohammed,No
Http://opendatacommunities.org/id/metropolitan-district-council/leeds,Leeds City Council,31/10/2019,Adults and Health,Services For Adults Under 65 Mental/Dis,Third Party Payments,Fees - Level 4,520,25/10/2019,1910-00287,0.00,234.34,R,Abubaker Denja Mohammed,No
Http://opendatacommunities.org/id/metropolitan-district-council/leeds,Leeds City Council,31/10/2019,Adults and Health,Services For Adults Under 65 Mental/Dis,Third Party Payments,Fees - Level 4,520,30/10/2019,1910-00288,0.00,175.00,R,Abubaker Denja Mohammed,No
Http://opendatacommunities.org/id/metropolitan-district-council/leeds,Leeds City Council,31/10/2019,Adults and Health,Services For Adults Under 65 Mental/Dis,Third Party Payments,Fees - Level 4,520,30/10/2019,1910-00289,0.00,226.60,R,Abubaker Denja Mohammed,No
Http://opendatacommunities.org/id/metropolitan-district-council/leeds,Leeds City Council,31/10/2019,Adults and Health,Services For Adults Under 65 Mental/Dis,Third Party Payments,Fees - Level 4,520,30/10/2019,1910-00290,0.00,175.00,R,Abubaker Denja Mohammed,No
Http://opendatacommunities.org/id/metropolitan-district-council/leeds,Leeds City Council,31/10/2019,Adults and Health,Services For Adults Under 65 Mental/Dis,Third Party Payments,Fees - Level 4,520,30/10/2019,1910-00291,0.00,175.00,R,Abubaker Denja Mohammed,No
Http://opendatacommunities.org/id/metropolitan-district-council/leeds,Leeds City Council,31/10/2019,Adults and Health,Services For Adults Under 65 Mental/Dis,Third Party Payments,Fees - Level 4,520,30/10/2019,1910-00292,0.00,175.00,R,Abubaker Denja Mohammed,No
Http://opendatacommunities.org/id/metropolitan-district-council/leeds,Leeds City Council,31/10/2019,Adults and Health,Services For Adults Under 65 Mental/Dis,Third Party Payments,Fees - Level 4,520,30/10/2019,1910-00293,0.00,175.00,R,Abubaker Denja Mohammed,No
Http://opendatacommunities.org/id/metropolitan-district-council/leeds,Leeds City Council,31/10/2019,Adults and Health,Services For Adults Under 65 Mental/Dis,Third Party Payments,Fees - Level 4,520,30/10/2019,1910-00294,0.00,175.00,R,Abubaker Denja Mohammed,No
Http://opendatacommunities.org/id/metropolitan-district-council/leeds,Leeds City Council,31/10/2019,Adults and Health,Services For Adults Under 65 Mental/Dis,Third Party Payments,Fees - Level 4,520,30/10/2019,1910-00295,0.00,175.00,R,Abubaker Denja Mohammed,No
Http://opendatacommunities.org/id/metropolitan-district-council/leeds,Leeds City Council,31/10/2019,Adults and Health,Services For Adults Under 65 Mental/Dis,Third Party Payments,Fees - Level 4,520,30/10/2019,1910-00296,0.00,175.00,R,Abubaker Denja Mohammed,No
Http://opendatacommunities.org/id/metropolitan-district-council/leeds,Leeds City Council,31/10/2019,Adults and Health,Services For Adults Under 65 Mental/Dis,Third Party Payments,Fees - Level 4,520,30/10/2019,1910-00297,0.00,175.00,R,Abubaker Denja Mohammed,No
Http://opendatacommunities.org/id/metropolitan-district-council/leeds,Leeds City Council,31/10/2019,Adults and Health,Services For Adults Under 65 Mental/Dis,Third Party Payments,Fees - Level 4,520,30/10/2019,1910-00298,0.00,175.00,R,Abubaker Denja Mohammed,No
Http://opendatacommunities.org/id/metropolitan-district-council/leeds,Leeds City Council,31/10/2019,Adults and Health,Services For Adults Under 65 Mental/Dis,Third Party Payments,Fees - Level 4,520,30/10/2019,1910-00299,0.00,175.00,R,Abubaker Denja Mohammed,No
Http://opendatacommunities.org/id/metropolitan-district-council/leeds,Leeds City Council,31/10/2019,Adults and Health,Services For Adults Under 65 Mental/Dis,Third Party Payments,Fees - Level 4,520,30/10/2019,1910-00300,0.00,175.00,R,Abubaker Denja Mohammed,No
Http://opendatacommunities.org/id/metropolitan-district-council/leeds,Leeds City Council,31/10/2019,Adults and Health,Services For Adults Under 65 Mental/Dis,Third Party Payments,Fees - Level 4,520,30/10/2019,1910-00301,0.00,175.00,R,Abubaker Denja Mohammed,No
Http://opendatacommunities.org/id/metropolitan-district-council/leeds,Leeds City Council,31/10/2019,Adults and Health,Services For Adults Under 65 Mental/Dis,Third Party Payments,Fees - Level 4,520,30/10/2019,1910-00302,0.00,175.00,R,Abubaker Denja Mohammed,No
Http://opendatacommunities.org/id/metropolitan-district-council/leeds,Leeds City Council,31/10/2019,City Development,Asset Management Services,Supplies and Services,Conference Meetings,253,08/10/2019,1910-00303,0.00,60.00,R,Academy Of Urbanism,No
Http://opendatacommunities.org/id/metropolitan-district-council/leeds,Leeds City Council,31/10/2019,Resources and Housing,Strategic Housing Partnership & Support,Supplies and Services,Other Hired And Contracted Services,265,15/10/2019,1910-00304,0.00,151.30,R,Accent Foundation Ltd,No
Http://opendatacommunities.org/id/metropolitan-district-council/leeds,Leeds City Council,31/10/2019,Communities and Environment,Community Safety,Supplies and Services,Telephones,213,02/10/2019,1910-00305,0.00,406.29,R,Access Hire Nationwide Ltd,No
Http://opendatacommunities.org/id/metropolitan-district-council/leeds,Leeds City Council,31/10/2019,Communities and Environment,Community Safety,Supplies and Services,Telephones,213,25/10/2019,1910-00306,0.00,10.00,R,Access Hire Nationwide Ltd,No
Http://opendatacommunities.org/id/metropolitan-district-council/leeds,Leeds City Council,31/10/2019,Resources and Housing,Leeds Building Services,Supplies and Services,Operational Materials,205,02/10/2019,1910-00307,0.00,25.14,R,Access Locksmiths (Leeds) Limited,No
Http://opendatacommunities.org/id/metropolitan-district-council/leeds,Leeds City Council,31/10/2019,Resources and Housing,Leeds Building Services,Supplies and Services,Operational Materials,205,02/10/2019,1910-00308,0.00,8.33,R,Access Locksmiths (Leeds) Limited,No
Http://opendatacommunities.org/id/metropolitan-district-council/leeds,Leeds City Council,31/10/2019,Resources and Housing,Leeds Building Services,Supplies and Services,Operational Materials,205,02/10/2019,1910-00309,0.00,27.10,R,Access Locksmiths (Leeds) Limited,No
Http://opendatacommunities.org/id/metropolitan-district-council/leeds,Leeds City Council,31/10/2019,Resources and Housing,Leeds Building Services,Supplies and Services,Operational Materials,205,02/10/2019,1910-00310,0.00,65.50,R,Access Locksmiths (Leeds) Limited,No
Http://opendatacommunities.org/id/metropolitan-district-council/leeds,Leeds City Council,31/10/2019,Resources and Housing,Leeds Building Services,Supplies and Services,Operational Materials,205,02/10/2019,1910-00311,0.00,64.73,R,Access Locksmiths (Leeds) Limited,No
Http://opendatacommunities.org/id/metropolitan-district-council/leeds,Leeds City Council,31/10/2019,Resources and Housing,Leeds Building Services,Supplies and Services,Operational Materials,205,04/10/2019,1910-00312,0.00,4.16,R,Access Locksmiths (Leeds) Limited,No
Http://opendatacommunities.org/id/metropolitan-district-council/leeds,Leeds City Council,31/10/2019,Resources and Housing,Leeds Building Services,Supplies and Services,Operational Materials,205,04/10/2019,1910-00313,0.00,6.40,R,Access Locksmiths (Leeds) Limited,No
Http://opendatacommunities.org/id/metropolitan-district-council/leeds,Leeds City Council,31/10/2019,Resources and Housing,Leeds Building Services,Supplies and Services,Operational Materials,205,04/10/2019,1910-00314,0.00,7.50,R,Access Locksmiths (Leeds) Limited,No
Http://opendatacommunities.org/id/metropolitan-district-council/leeds,Leeds City Council,31/10/2019,Resources and Housing,Leeds Building Services,Supplies and Services,Operational Materials,205,04/10/2019,1910-00315,0.00,18.15,R,Access Locksmiths (Leeds) Limited,No
Http://opendatacommunities.org/id/metropolitan-district-council/leeds,Leeds City Council,31/10/2019,Resources and Housing,HRA Housing Leeds,Capital,Furniture And Equipment,5,04/10/2019,1910-00316,0.00,2603.40,C,Access Locksmiths (Leeds) Limited,No
Http://opendatacommunities.org/id/metropolitan-district-council/leeds,Leeds City Council,31/10/2019,Strategic Landlord,Housing Management,Supplies and Services,Resaleable Materials,204,04/10/2019,1910-00317,0.00,52.00,R,Access Locksmiths (Leeds) Limited,No
Http://opendatacommunities.org/id/metropolitan-district-council/leeds,Leeds City Council,31/10/2019,Communities and Environment,Cleaner Neighbourhood Teams,Supplies and Services,Other Hired And Contracted Services,265,04/10/2019,1910-00318,0.00,15.60,R,Access Locksmiths (Leeds) Limited,No
Http://opendatacommunities.org/id/metropolitan-district-council/leeds,Leeds City Council,31/10/2019,Strategic Landlord,Housing Management,Premises,General Maintenance,104,04/10/2019,1910-00319,0.00,182.40,R,Access Locksmiths (Leeds) Limited,No
Http://opendatacommunities.org/id/metropolitan-district-council/leeds,Leeds City Council,31/10/2019,Resources and Housing,HRA Housing Leeds,Capital,Furniture And Equipment,5,04/10/2019,1910-00320,0.00,254.79,C,Access Locksmiths (Leeds) Limited,No
Http://opendatacommunities.org/id/metropolitan-district-council/leeds,Leeds City Council,31/10/2019,Strategic Landlord,Housing Management,Supplies and Services,Resaleable Materials,204,04/10/2019,1910-00321,0.00,120.00,R,Access Locksmiths (Leeds) Limited,No
Http://opendatacommunities.org/id/metropolitan-district-council/leeds,Leeds City Council,31/10/2019,Strategic Landlord,Housing Management,Supplies and Services,Resaleable Materials,204,04/10/2019,1910-00322,0.00,120.00,R,Access Locksmiths (Leeds) Limited,No
Http://opendatacommunities.org/id/metropolitan-district-council/leeds,Leeds City Council,31/10/2019,Strategic Landlord,Housing Management,Premises,Fixtures & Fittings,131,04/10/2019,1910-00323,0.00,182.40,R,Access Locksmiths (Leeds) Limited,No
Http://opendatacommunities.org/id/metropolitan-district-council/leeds,Leeds City Council,31/10/2019,Resources and Housing,HRA Housing Leeds,Capital,Other Costs,7,04/10/2019,1910-00324,0.00,2599.19,C,Access Locksmiths (Leeds) Limited,No
Http://opendatacommunities.org/id/metropolitan-district-council/leeds,Leeds City Council,31/10/2019,Strategic Landlord,Property and Contracts,Premises,General Maintenance,104,16/10/2019,1910-00325,0.00,124.04,R,Access Locksmiths (Leeds) Limited,No
Http://opendatacommunities.org/id/metropolitan-district-council/leeds,Leeds City Council,31/10/2019,Strategic Landlord,Property and Contracts,Premises,General Maintenance,104,16/10/2019,1910-00326,0.00,124.08,R,Access Locksmiths (Leeds) Limited,No
Http://opendatacommunities.org/id/metropolitan-district-council/leeds,Leeds City Council,31/10/2019,Strategic Landlord,Property and Contracts,Premises,General Maintenance,104,21/10/2019,1910-00327,0.00,158.66,R,Access Locksmiths (Leeds) Limited,No
Http://opendatacommunities.org/id/metropolitan-district-council/leeds,Leeds City Council,31/10/2019,Strategic Landlord,Property and Contracts,Premises,General Maintenance,104,21/10/2019,1910-00328,0.00,15.00,R,Access Locksmiths (Leeds) Limited,No
Http://opendatacommunities.org/id/metropolitan-district-council/leeds,Leeds City Council,31/10/2019,Resources and Housing,Leeds Building Services,Supplies and Services,Operational Materials,205,24/10/2019,1910-00329,0.00,51.93,R,Access Locksmiths (Leeds) Limited,No
Http://opendatacommunities.org/id/metropolitan-district-council/leeds,Leeds City Council,31/10/2019,Resources and Housing,Leeds Building Services,Supplies and Services,Operational Materials,205,25/10/2019,1910-00330,0.00,207.30,R,Access Locksmiths (Leeds) Limited,No
Http://opendatacommunities.org/id/metropolitan-district-council/leeds,Leeds City Council,31/10/2019,Resources and Housing,Leeds Building Services,Supplies and Services,Operational Materials,205,25/10/2019,1910-00331,0.00,35.66,R,Access Locksmiths (Leeds) Limited,No
Http://opendatacommunities.org/id/metropolitan-district-council/leeds,Leeds City Council,31/10/2019,Resources and Housing,Leeds Building Services,Supplies and Services,Operational Materials,205,25/10/2019,1910-00332,0.00,66.65,R,Access Locksmiths (Leeds) Limited,No
Http://opendatacommunities.org/id/metropolitan-district-council/leeds,Leeds City Council,31/10/2019,Resources and Housing,Leeds Building Services,Supplies and Services,Operational Materials,205,25/10/2019,1910-00333,0.00,6.87,R,Access Locksmiths (Leeds) Limited,No
Http://opendatacommunities.org/id/metropolitan-district-council/leeds,Leeds City Council,31/10/2019,Resources and Housing,Leeds Building Services,Supplies and Services,Operational Materials,205,25/10/2019,1910-00334,0.00,8.34,R,Access Locksmiths (Leeds) Limited,No
Http://opendatacommunities.org/id/metropolitan-district-council/leeds,Leeds City Council,31/10/2019,Resources and Housing,Leeds Building Services,Supplies and Services,Operational Materials,205,25/10/2019,1910-00335,0.00,20.30,R,Access Locksmiths (Leeds) Limited,No
Http://opendatacommunities.org/id/metropolitan-district-council/leeds,Leeds City Council,31/10/2019,Resources and Housing,Leeds Building Services,Supplies and Services,Operational Materials,205,25/10/2019,1910-00336,0.00,7.50,R,Access Locksmiths (Leeds) Limited,No
Http://opendatacommunities.org/id/metropolitan-district-council/leeds,Leeds City Council,31/10/2019,Strategic Landlord,Housing Management,Supplies and Services,Resaleable Materials,204,30/10/2019,1910-00337,0.00,228.00,R,Access Locksmiths (Leeds) Limited,No
Http://opendatacommunities.org/id/metropolitan-district-council/leeds,Leeds City Council,31/10/2019,Strategic Landlord,Housing Management,Supplies and Services,Resaleable Materials,204,30/10/2019,1910-00338,0.00,201.80,R,Access Locksmiths (Leeds) Limited,No
Http://opendatacommunities.org/id/metropolitan-district-council/leeds,Leeds City Council,31/10/2019,Strategic Landlord,Housing Management,Income,Other Income,973,30/10/2019,1910-00339,0.00,33.75,R,Access Locksmiths (Leeds) Limited,No
Http://opendatacommunities.org/id/metropolitan-district-council/leeds,Leeds City Council,31/10/2019,Resources and Housing,HRA Housing Leeds,Capital,Other Costs,7,30/10/2019,1910-00340,0.00,145.00,C,Access Locksmiths (Leeds) Limited,No
Http://opendatacommunities.org/id/metropolitan-district-council/leeds,Leeds City Council,31/10/2019,Strategic Landlord,Housing Management,Premises,General Maintenance,104,30/10/2019,1910-00341,0.00,114.00,R,Access Locksmiths (Leeds) Limited,No
Http://opendatacommunities.org/id/metropolitan-district-council/leeds,Leeds City Council,31/10/2019,Strategic Landlord,Housing Management,Supplies and Services,Resaleable Materials,204,30/10/2019,1910-00342,0.00,410.50,R,Access Locksmiths (Leeds) Limited,No
Http://opendatacommunities.org/id/metropolitan-district-council/leeds,Leeds City Council,31/10/2019,Strategic Landlord,Housing Management,Supplies and Services,Resaleable Materials,204,30/10/2019,1910-00343,0.00,68.40,R,Access Locksmiths (Leeds) Limited,No
Http://opendatacommunities.org/id/metropolitan-district-council/leeds,Leeds City Council,31/10/2019,Strategic Landlord,Housing Management,Supplies and Services,Resaleable Materials,204,30/10/2019,1910-00344,0.00,91.20,R,Access Locksmiths (Leeds) Limited,No
Http://opendatacommunities.org/id/metropolitan-district-council/leeds,Leeds City Council,31/10/2019,Strategic Landlord,Housing Management,Supplies and Services,Resaleable Materials,204,30/10/2019,1910-00345,0.00,295.08,R,Access Locksmiths (Leeds) Limited,No
Http://opendatacommunities.org/id/metropolitan-district-council/leeds,Leeds City Council,31/10/2019,Strategic Landlord,Housing Management,Supplies and Services,Resaleable Materials,204,30/10/2019,1910-00346,0.00,68.40,R,Access Locksmiths (Leeds) Limited,No
Http://opendatacommunities.org/id/metropolitan-district-council/leeds,Leeds City Council,31/10/2019,Strategic Landlord,Housing Management,Supplies and Services,Resaleable Materials,204,30/10/2019,1910-00347,0.00,80.72,R,Access Locksmiths (Leeds) Limited,No
Http://opendatacommunities.org/id/metropolitan-district-council/leeds,Leeds City Council,31/10/2019,Resources and Housing,Strategic Housing Partnership & Support,Premises,Premises Security Services,162,30/10/2019,1910-00348,0.00,55.00,R,Access Locksmiths (Leeds) Limited,No
Http://opendatacommunities.org/id/metropolitan-district-council/leeds,Leeds City Council,31/10/2019,Strategic Landlord,Housing Management,Income,Other Income,973,30/10/2019,1910-00349,0.00,114.00,R,Access Locksmiths (Leeds) Limited,No
Http://opendatacommunities.org/id/metropolitan-district-council/leeds,Leeds City Council,31/10/2019,Strategic Landlord,Housing Management,Supplies and Services,Resaleable Materials,204,30/10/2019,1910-00350,0.00,26.00,R,Access Locksmiths (Leeds) Limited,No
Http://opendatacommunities.org/id/metropolitan-district-council/leeds,Leeds City Council,31/10/2019,Strategic Landlord,Housing Management,Supplies and Services,Resaleable Materials,204,30/10/2019,1910-00351,0.00,114.00,R,Access Locksmiths (Leeds) Limited,No
Http://opendatacommunities.org/id/metropolitan-district-council/leeds,Leeds City Council,31/10/2019,Communities and Environment,Cleaner Neighbourhood Teams,Supplies and Services,Other Hired And Contracted Services,265,30/10/2019,1910-00352,0.00,26.00,R,Access Locksmiths (Leeds) Limited,No
Http://opendatacommunities.org/id/metropolitan-district-council/leeds,Leeds City Council,31/10/2019,Strategic Landlord,Housing Management,Income,Other Income,973,30/10/2019,1910-00353,0.00,20.00,R,Access Locksmiths (Leeds) Limited,No
Http://opendatacommunities.org/id/metropolitan-district-council/leeds,Leeds City Council,31/10/2019,Strategic Landlord,Housing Management,Income,Other Income,973,30/10/2019,1910-00354,0.00,40.00,R,Access Locksmiths (Leeds) Limited,No
Http://opendatacommunities.org/id/metropolitan-district-council/leeds,Leeds City Council,31/10/2019,Strategic Landlord,Housing Management,Income,Other Income,973,30/10/2019,1910-00355,0.00,92.58,R,Access Locksmiths (Leeds) Limited,No
Http://opendatacommunities.org/id/metropolitan-district-council/leeds,Leeds City Council,31/10/2019,Strategic Landlord,Housing Management,Supplies and Services,Resaleable Materials,204,30/10/2019,1910-00356,0.00,7.80,R,Access Locksmiths (Leeds) Limited,No
Http://opendatacommunities.org/id/metropolitan-district-council/leeds,Leeds City Council,31/10/2019,Strategic Landlord,Housing Management,Premises,HRA Responsive Repairs,106,30/10/2019,1910-00357,0.00,224.00,R,Access Locksmiths (Leeds) Limited,No
Http://opendatacommunities.org/id/metropolitan-district-council/leeds,Leeds City Council,31/10/2019,City Development,Libraries  Arts & Heritage,Supplies and Services,Bought In Professional Services,277,09/10/2019,1910-00358,0.00,2500.00,R,Access Moving Image Ltd,No
Http://opendatacommunities.org/id/metropolitan-district-council/leeds,Leeds City Council,31/10/2019,City Development,Libraries  Arts & Heritage,Supplies and Services,Bought In Professional Services,277,09/10/2019,1910-00359,0.00,2500.00,R,Access Moving Image Ltd,No
Http://opendatacommunities.org/id/metropolitan-district-council/leeds,Leeds City Council,31/10/2019,City Development,Libraries  Arts & Heritage,Supplies and Services,Bought In Professional Services,277,09/10/2019,1910-00360,0.00,1736.00,R,Access Moving Image Ltd,No
Http://opendatacommunities.org/id/metropolitan-district-council/leeds,Leeds City Council,31/10/2019,City Development,Libraries  Arts & Heritage,Supplies and Services,Bought In Professional Services,277,30/10/2019,1910-00361,0.00,500.00,R,Access Moving Image Ltd,No
Http://opendatacommunities.org/id/metropolitan-district-council/leeds,Leeds City Council,31/10/2019,Strategic Landlord,Property and Contracts,Premises,General Maintenance,104,25/10/2019,1910-00362,0.00,135.00,R,Access Solutions Northern Ltd,No
Http://opendatacommunities.org/id/metropolitan-district-council/leeds,Leeds City Council,31/10/2019,Insurance,Insurance,Supplies and Services,Insurance Claims,248,31/10/2019,1910-00363,0.00,2179.06,R,Accident Credit Group,No
Http://opendatacommunities.org/id/metropolitan-district-council/leeds,Leeds City Council,31/10/2019,Adults and Health,Other Generic Services,Supplies and Services,Operational Furniture And Equipment,203,11/10/2019,1910-00364,0.00,172.50,R,Acco Uk Ltd,No
Http://opendatacommunities.org/id/metropolitan-district-council/leeds,Leeds City Council As Accountable Body,31/10/2019,Social Services Pooled Budgets,Jcs For People With Learning Disabilitie,Supplies and Services,Other Equipment,203,31/10/2019,1910-00365,0.00,195.00,R,Accora,No
Http://opendatacommunities.org/id/metropolitan-district-council/leeds,Leeds City Council,31/10/2019,Insurance,Insurance,Supplies and Services,Insurance Claims,248,01/10/2019,1910-00366,0.00,1656.85,R,Accountant General Of The Senior Courts,No
Http://opendatacommunities.org/id/metropolitan-district-council/leeds,Leeds City Council,31/10/2019,Insurance,Insurance,Supplies and Services,Insurance Claims,248,22/10/2019,1910-00367,0.00,6557.56,R,Accountant General Of The Senior Courts,No
Http://opendatacommunities.org/id/metropolitan-district-council/leeds,Leeds City Council,31/10/2019,City Development,Recreation,Supplies and Services,Other Hired And Contracted Services,265,03/10/2019,1910-00368,0.00,90.00,R,Ace Container Services Limited,No
Http://opendatacommunities.org/id/metropolitan-district-council/leeds,Leeds City Council,31/10/2019,City Development,Recreation,Transport,External Hire -Occasional,304,09/10/2019,1910-00369,0.00,124.50,R,Ace Container Services Limited,No
Http://opendatacommunities.org/id/metropolitan-district-council/leeds,Leeds City Council,31/10/2019,City Development,Recreation,Supplies and Services,Other Hired And Contracted Services,265,30/10/2019,1910-00370,0.00,93.00,R,Ace Container Services Limited,No
Http://opendatacommunities.org/id/metropolitan-district-council/leeds,Leeds City Council,31/10/2019,City Development,Recreation,Transport,External Hire -Occasional,304,30/10/2019,1910-00371,0.00,128.65,R,Ace Container Services Limited,No
Http://opendatacommunities.org/id/metropolitan-district-council/leeds,Leeds City Council,31/10/2019,City Development,Libraries  Arts & Heritage,Supplies and Services,Other Hired And Contracted Services,265,30/10/2019,1910-00372,0.00,46.50,R,Ace Container Services Limited,No
Http://opendatacommunities.org/id/metropolitan-district-council/leeds,Leeds City Council,31/10/2019,Resources and Housing,Strategic Housing Partnerships,Capital,Construction,3,18/10/2019,1910-00373,0.00,15000.00,C,Acer Joinery Ltd.,No
Http://opendatacommunities.org/id/metropolitan-district-council/leeds,Leeds City Council,31/10/2019,Resources and Housing,Sustainable Energy & Climate Change,Capital,Other Costs,7,10/10/2019,1910-00374,0.00,80000.00,C,REDACTED COMMERCIAL CONFIDENTIALITY,No
Http://opendatacommunities.org/id/metropolitan-district-council/leeds,Leeds City Council,31/10/2019,Communities and Environment,Waste Management,Supplies and Services,Other Hired And Contracted Services,265,18/10/2019,1910-00375,0.00,200.00,R,Acorn Analytical Services Limited,No
Http://opendatacommunities.org/id/metropolitan-district-council/leeds,Leeds City Council,31/10/2019,Children and Families,Partnerships & Health,Third Party Payments,SEN Placements,566,11/10/2019,1910-00376,0.00,18472.00,R,Acorn Care & Education Ltd (Sales),No
Http://opendatacommunities.org/id/metropolitan-district-council/leeds,Leeds City Council,31/10/2019,Children and Families,Partnerships & Health,Third Party Payments,SEN Placements,566,11/10/2019,1910-00377,0.00,18472.00,R,Acorn Care & Education Ltd (Sales),No
Http://opendatacommunities.org/id/metropolitan-district-council/leeds,Leeds City Council,31/10/2019,Adults and Health,Services For Older People - 65 And Over,Third Party Payments,Residential Care Dementia,571,16/10/2019,1910-00378,0.00,5889.16,R,Acorn Nursing Home,No
Http://opendatacommunities.org/id/metropolitan-district-council/leeds,Leeds City Council,31/10/2019,Adults and Health,Services For Older People - 65 And Over,Third Party Payments,Nursing Care Dementia,574,16/10/2019,1910-00379,0.00,1646.24,R,Acorn Nursing Home,No
Http://opendatacommunities.org/id/metropolitan-district-council/leeds,Leeds City Council,31/10/2019,City Development,Libraries  Arts & Heritage,Supplies and Services,Other Hired And Contracted Services,265,03/10/2019,1910-00380,0.00,5989.00,R,Acorn Scaffolding (Yorkshire) Ltd,No
Http://opendatacommunities.org/id/metropolitan-district-council/leeds,Leeds City Council,31/10/2019,City Development,Libraries  Arts & Heritage,Supplies and Services,Other Hired And Contracted Services,265,15/10/2019,1910-00381,0.00,3096.96,R,Acorn Scaffolding (Yorkshire) Ltd,No
Http://opendatacommunities.org/id/metropolitan-district-council/leeds,Leeds City Council,31/10/2019,City Development,Libraries  Arts & Heritage,Supplies and Services,Other Hired And Contracted Services,265,15/10/2019,1910-00382,0.00,552.96,R,Acorn Scaffolding (Yorkshire) Ltd,No
Http://opendatacommunities.org/id/metropolitan-district-council/leeds,Leeds City Council,31/10/2019,City Development,Libraries  Arts & Heritage,Supplies and Services,Other Hired And Contracted Services,265,17/10/2019,1910-00383,0.00,4550.00,R,Acorn Scaffolding (Yorkshire) Ltd,No
Http://opendatacommunities.org/id/metropolitan-district-council/leeds,Leeds City Council,31/10/2019,City Development,Libraries  Arts & Heritage,Supplies and Services,Other Hired And Contracted Services,265,24/10/2019,1910-00384,0.00,14965.50,R,Acorn Scaffolding (Yorkshire) Ltd,No
Http://opendatacommunities.org/id/metropolitan-district-council/leeds,Leeds City Council,31/10/2019,Children and Families,Social Care,Third Party Payments,Services Rendered By Other Organisations,511,02/10/2019,1910-00385,0.00,546.00,R,Acorns Nursery,No
Http://opendatacommunities.org/id/metropolitan-district-council/leeds,Leeds City Council,31/10/2019,Children and Families,Social Care,Third Party Payments,Services Rendered By Other Organisations,511,04/10/2019,1910-00386,0.00,3695.85,R,Acorns Nursery,No
Http://opendatacommunities.org/id/metropolitan-district-council/leeds,Leeds City Council,31/10/2019,Adults and Health,Services For Older People - 65 And Over,Third Party Payments,Nursing Home,570,16/10/2019,1910-00387,0.00,33313.88,R,Acre Green,No
Http://opendatacommunities.org/id/metropolitan-district-council/leeds,Leeds City Council,31/10/2019,Adults and Health,Services For Older People - 65 And Over,Third Party Payments,Residential,580,16/10/2019,1910-00388,0.00,3742.60,R,Acre Green,No
Http://opendatacommunities.org/id/metropolitan-district-council/leeds,Leeds City Council,31/10/2019,Adults and Health,Services For Older People Under 65 P/Dis,Third Party Payments,Nursing Home,570,16/10/2019,1910-00389,0.00,2268.00,R,Acre Green,No
Http://opendatacommunities.org/id/metropolitan-district-council/leeds,Leeds City Council,31/10/2019,Adults and Health,Services For Older People Under 65 P/Dis,Third Party Payments,Residential,580,16/10/2019,1910-00390,0.00,1574.20,R,Acre Green,No
Http://opendatacommunities.org/id/metropolitan-district-council/leeds,Leeds City Council,31/10/2019,Children and Families,Social Care,Third Party Payments,Services Rendered By Other Organisations,511,02/10/2019,1910-00391,0.00,2281.50,R,Acre Wood Day Nursery,No
Http://opendatacommunities.org/id/metropolitan-district-council/leeds,Leeds City Council,31/10/2019,Children and Families,Social Care,Third Party Payments,Services Rendered By Other Organisations,511,04/10/2019,1910-00392,0.00,10271.62,R,Acre Wood Day Nursery,No
Http://opendatacommunities.org/id/metropolitan-district-council/leeds,Leeds City Council,31/10/2019,City Development,Recreation  ,Supplies and Services,Operational Furniture And Equipment,203,17/09/2019,1910-00393,0.00,24.96,R,Acrylic Displays Limite,Yes
Http://opendatacommunities.org/id/metropolitan-district-council/leeds,Leeds City Council,31/10/2019,Resources and Housing,Technology,Employees,Training & Development,70,24/10/2019,1910-00394,0.00,389.00,R,Act Now Training Ltd,No
Http://opendatacommunities.org/id/metropolitan-district-council/leeds,Leeds City Council,31/10/2019,Resources and Housing,Leeds Building Services,Supplies and Services,Other Hired And Contracted Services,265,04/10/2019,1910-00395,0.00,147.26,R,Actavo (Leeds H & S),No
Http://opendatacommunities.org/id/metropolitan-district-council/leeds,Leeds City Council,31/10/2019,Resources and Housing,Leeds Building Services,Supplies and Services,Other Hired And Contracted Services,265,04/10/2019,1910-00396,0.00,176.70,R,Actavo (Leeds H & S),No
Http://opendatacommunities.org/id/metropolitan-district-council/leeds,Leeds City Council,31/10/2019,Children and Families,Social Care,Third Party Payments,Independent Fostering Agencies,509,18/10/2019,1910-00397,0.00,4622.40,R,Action For Children,No
Http://opendatacommunities.org/id/metropolitan-district-council/leeds,Leeds City Council,31/10/2019,Adults and Health,Services For Older People - 65 And Over,Third Party Payments,Payments To Voluntary Organisations,561,01/10/2019,1910-00398,0.00,49415.82,R,Action For Gipton Elderly,No
Http://opendatacommunities.org/id/metropolitan-district-council/leeds,Leeds City Council,31/10/2019,Children and Families,Social Care  ,Third Party Payments,Placement Support,550,24/09/2019,1910-00399,0.00,123.24,R,Action On Hearing Loss,Yes
Http://opendatacommunities.org/id/metropolitan-district-council/leeds,Leeds City Council,31/10/2019,Children and Families,Social Care,Third Party Payments,Services Rendered By Other Organisations,511,02/10/2019,1910-00400,0.00,507.00,R,Active Kids Yeadon Llp,No
Http://opendatacommunities.org/id/metropolitan-district-council/leeds,Leeds City Council,31/10/2019,Children and Families,Social Care,Third Party Payments,Services Rendered By Other Organisations,511,04/10/2019,1910-00401,0.00,4066.72,R,Active Kids Yeadon Llp,No
Http://opendatacommunities.org/id/metropolitan-district-council/leeds,Leeds City Council,31/10/2019,Children and Families,Social Care,Third Party Payments,Services Rendered By Voluntary Sector,505,25/10/2019,1910-00402,0.00,663.18,R,Active Kids Yeadon Llp,No
Http://opendatacommunities.org/id/metropolitan-district-council/leeds,Leeds City Council,31/10/2019,Communities and Environment,Waste Management,Supplies and Services,Recycling & Reuse Charges,234,02/10/2019,1910-00403,0.00,3016.93,R,Acumen Waste Services Ltd,No
Http://opendatacommunities.org/id/metropolitan-district-council/leeds,Leeds City Council,31/10/2019,Communities and Environment,Cleaner Neighbourhood Teams,Premises,Removal Of Workplace Waste,126,02/10/2019,1910-00404,0.00,116.60,R,Acumen Waste Services Ltd,No
Http://opendatacommunities.org/id/metropolitan-district-council/leeds,Leeds City Council,31/10/2019,Communities and Environment,Cleaner Neighbourhood Teams,Premises,Removal Of Workplace Waste,126,02/10/2019,1910-00405,0.00,116.60,R,Acumen Waste Services Ltd,No
Http://opendatacommunities.org/id/metropolitan-district-council/leeds,Leeds City Council,31/10/2019,Communities and Environment,Cleaner Neighbourhood Teams,Premises,Removal Of Workplace Waste,126,02/10/2019,1910-00406,0.00,116.60,R,Acumen Waste Services Ltd,No
Http://opendatacommunities.org/id/metropolitan-district-council/leeds,Leeds City Council,31/10/2019,Communities and Environment,Cleaner Neighbourhood Teams,Premises,Removal Of Workplace Waste,126,02/10/2019,1910-00407,0.00,116.60,R,Acumen Waste Services Ltd,No
Http://opendatacommunities.org/id/metropolitan-district-council/leeds,Leeds City Council,31/10/2019,Communities and Environment,Cleaner Neighbourhood Teams,Premises,Removal Of Workplace Waste,126,02/10/2019,1910-00408,0.00,116.60,R,Acumen Waste Services Ltd,No
Http://opendatacommunities.org/id/metropolitan-district-council/leeds,Leeds City Council,31/10/2019,Communities and Environment,Cleaner Neighbourhood Teams,Premises,Removal Of Workplace Waste,126,02/10/2019,1910-00409,0.00,116.60,R,Acumen Waste Services Ltd,No
Http://opendatacommunities.org/id/metropolitan-district-council/leeds,Leeds City Council,31/10/2019,Communities and Environment,Cleaner Neighbourhood Teams,Premises,Removal Of Workplace Waste,126,02/10/2019,1910-00410,0.00,116.60,R,Acumen Waste Services Ltd,No
Http://opendatacommunities.org/id/metropolitan-district-council/leeds,Leeds City Council,31/10/2019,Communities and Environment,Waste Management,Supplies and Services,Recycling & Reuse Charges,234,11/10/2019,1910-00411,0.00,5022.53,R,Acumen Waste Services Ltd,No
Http://opendatacommunities.org/id/metropolitan-district-council/leeds,Leeds City Council,31/10/2019,Communities and Environment,Cleaner Neighbourhood Teams,Premises,Removal Of Workplace Waste,126,11/10/2019,1910-00412,0.00,116.60,R,Acumen Waste Services Ltd,No
Http://opendatacommunities.org/id/metropolitan-district-council/leeds,Leeds City Council,31/10/2019,Communities and Environment,Cleaner Neighbourhood Teams,Premises,Removal Of Workplace Waste,126,11/10/2019,1910-00413,0.00,116.60,R,Acumen Waste Services Ltd,No
Http://opendatacommunities.org/id/metropolitan-district-council/leeds,Leeds City Council,31/10/2019,Communities and Environment,Cleaner Neighbourhood Teams,Premises,Removal Of Workplace Waste,126,11/10/2019,1910-00414,0.00,116.60,R,Acumen Waste Services Ltd,No
Http://opendatacommunities.org/id/metropolitan-district-council/leeds,Leeds City Council,31/10/2019,Communities and Environment,Cleaner Neighbourhood Teams,Premises,Removal Of Workplace Waste,126,11/10/2019,1910-00415,0.00,116.60,R,Acumen Waste Services Ltd,No
Http://opendatacommunities.org/id/metropolitan-district-council/leeds,Leeds City Council,31/10/2019,Communities and Environment,Cleaner Neighbourhood Teams,Premises,Removal Of Workplace Waste,126,11/10/2019,1910-00416,0.00,116.60,R,Acumen Waste Services Ltd,No
Http://opendatacommunities.org/id/metropolitan-district-council/leeds,Leeds City Council,31/10/2019,Communities and Environment,Cleaner Neighbourhood Teams,Premises,Removal Of Workplace Waste,126,11/10/2019,1910-00417,0.00,116.60,R,Acumen Waste Services Ltd,No
Http://opendatacommunities.org/id/metropolitan-district-council/leeds,Leeds City Council,31/10/2019,Communities and Environment,Cleaner Neighbourhood Teams,Premises,Removal Of Workplace Waste,126,11/10/2019,1910-00418,0.00,116.60,R,Acumen Waste Services Ltd,No
Http://opendatacommunities.org/id/metropolitan-district-council/leeds,Leeds City Council,31/10/2019,Communities and Environment,Cleaner Neighbourhood Teams,Premises,Removal Of Workplace Waste,126,11/10/2019,1910-00419,0.00,50.00,R,Acumen Waste Services Ltd,No
Http://opendatacommunities.org/id/metropolitan-district-council/leeds,Leeds City Council,31/10/2019,Communities and Environment,Waste Management,Supplies and Services,Recycling & Reuse Charges,234,16/10/2019,1910-00420,0.00,2970.77,R,Acumen Waste Services Ltd,No
Http://opendatacommunities.org/id/metropolitan-district-council/leeds,Leeds City Council,31/10/2019,Communities and Environment,Cleaner Neighbourhood Teams,Premises,Removal Of Workplace Waste,126,16/10/2019,1910-00421,0.00,116.60,R,Acumen Waste Services Ltd,No
Http://opendatacommunities.org/id/metropolitan-district-council/leeds,Leeds City Council,31/10/2019,Communities and Environment,Cleaner Neighbourhood Teams,Premises,Removal Of Workplace Waste,126,16/10/2019,1910-00422,0.00,116.60,R,Acumen Waste Services Ltd,No
Http://opendatacommunities.org/id/metropolitan-district-council/leeds,Leeds City Council,31/10/2019,Communities and Environment,Cleaner Neighbourhood Teams,Premises,Removal Of Workplace Waste,126,16/10/2019,1910-00423,0.00,116.60,R,Acumen Waste Services Ltd,No
Http://opendatacommunities.org/id/metropolitan-district-council/leeds,Leeds City Council,31/10/2019,Communities and Environment,Cleaner Neighbourhood Teams,Premises,Removal Of Workplace Waste,126,16/10/2019,1910-00424,0.00,116.60,R,Acumen Waste Services Ltd,No
Http://opendatacommunities.org/id/metropolitan-district-council/leeds,Leeds City Council,31/10/2019,Communities and Environment,Cleaner Neighbourhood Teams,Premises,Removal Of Workplace Waste,126,16/10/2019,1910-00425,0.00,116.60,R,Acumen Waste Services Ltd,No
Http://opendatacommunities.org/id/metropolitan-district-council/leeds,Leeds City Council,31/10/2019,Communities and Environment,Cleaner Neighbourhood Teams,Premises,Removal Of Workplace Waste,126,16/10/2019,1910-00426,0.00,116.60,R,Acumen Waste Services Ltd,No
Http://opendatacommunities.org/id/metropolitan-district-council/leeds,Leeds City Council,31/10/2019,Communities and Environment,Waste Management,Supplies and Services,Recycling & Reuse Charges,234,24/10/2019,1910-00427,0.00,3977.83,R,Acumen Waste Services Ltd,No
Http://opendatacommunities.org/id/metropolitan-district-council/leeds,Leeds City Council,31/10/2019,Communities and Environment,Cleaner Neighbourhood Teams,Premises,Removal Of Workplace Waste,126,24/10/2019,1910-00428,0.00,116.60,R,Acumen Waste Services Ltd,No
Http://opendatacommunities.org/id/metropolitan-district-council/leeds,Leeds City Council,31/10/2019,Communities and Environment,Cleaner Neighbourhood Teams,Premises,Removal Of Workplace Waste,126,24/10/2019,1910-00429,0.00,116.60,R,Acumen Waste Services Ltd,No
Http://opendatacommunities.org/id/metropolitan-district-council/leeds,Leeds City Council,31/10/2019,Communities and Environment,Cleaner Neighbourhood Teams,Premises,Removal Of Workplace Waste,126,24/10/2019,1910-00430,0.00,116.60,R,Acumen Waste Services Ltd,No
Http://opendatacommunities.org/id/metropolitan-district-council/leeds,Leeds City Council,31/10/2019,Communities and Environment,Cleaner Neighbourhood Teams,Premises,Removal Of Workplace Waste,126,24/10/2019,1910-00431,0.00,116.60,R,Acumen Waste Services Ltd,No
Http://opendatacommunities.org/id/metropolitan-district-council/leeds,Leeds City Council,31/10/2019,Communities and Environment,Cleaner Neighbourhood Teams,Premises,Removal Of Workplace Waste,126,30/10/2019,1910-00432,0.00,116.60,R,Acumen Waste Services Ltd,No
Http://opendatacommunities.org/id/metropolitan-district-council/leeds,Leeds City Council,31/10/2019,Communities and Environment,Cleaner Neighbourhood Teams,Premises,Removal Of Workplace Waste,126,30/10/2019,1910-00433,0.00,116.60,R,Acumen Waste Services Ltd,No
Http://opendatacommunities.org/id/metropolitan-district-council/leeds,Leeds City Council,31/10/2019,Communities and Environment,Cleaner Neighbourhood Teams,Premises,Removal Of Workplace Waste,126,30/10/2019,1910-00434,0.00,116.60,R,Acumen Waste Services Ltd,No
Http://opendatacommunities.org/id/metropolitan-district-council/leeds,Leeds City Council,31/10/2019,Communities and Environment,Cleaner Neighbourhood Teams,Premises,Removal Of Workplace Waste,126,30/10/2019,1910-00435,0.00,116.60,R,Acumen Waste Services Ltd,No
Http://opendatacommunities.org/id/metropolitan-district-council/leeds,Leeds City Council,31/10/2019,Communities and Environment,Waste Management,Supplies and Services,Recycling & Reuse Charges,234,30/10/2019,1910-00436,0.00,4917.42,R,Acumen Waste Services Ltd,No
Http://opendatacommunities.org/id/metropolitan-district-council/leeds,Leeds City Council,31/10/2019,Communities and Environment,Cleaner Neighbourhood Teams,Premises,Removal Of Workplace Waste,126,30/10/2019,1910-00437,0.00,116.60,R,Acumen Waste Services Ltd,No
Http://opendatacommunities.org/id/metropolitan-district-council/leeds,Leeds City Council,31/10/2019,Communities and Environment,Cleaner Neighbourhood Teams,Premises,Removal Of Workplace Waste,126,30/10/2019,1910-00438,0.00,116.60,R,Acumen Waste Services Ltd,No
Http://opendatacommunities.org/id/metropolitan-district-council/leeds,Leeds City Council,31/10/2019,Resources and Housing,Shared Services,Supplies and Services,Other Hired And Contracted Services,265,04/10/2019,1910-00439,0.00,366.60,R,Ad3 Envelope Printers Limited,No
Http://opendatacommunities.org/id/metropolitan-district-council/leeds,Leeds City Council,31/10/2019,Resources and Housing,Shared Services,Supplies and Services,Operational Materials,205,18/10/2019,1910-00440,0.00,1131.75,R,Ad3 Envelope Printers Limited,No
Http://opendatacommunities.org/id/metropolitan-district-council/leeds,Leeds City Council,31/10/2019,Resources and Housing,Shared Services,Supplies and Services,Other Hired And Contracted Services,265,30/10/2019,1910-00441,0.00,363.50,R,Ad3 Envelope Printers Limited,No
Http://opendatacommunities.org/id/metropolitan-district-council/leeds,Leeds City Council,31/10/2019,Resources and Housing,Shared Services,Supplies and Services,Other Hired And Contracted Services,265,30/10/2019,1910-00442,0.00,118.63,R,Ad3 Envelope Printers Limited,No
Http://opendatacommunities.org/id/metropolitan-district-council/leeds,Leeds City Council,31/10/2019,Resources and Housing,Shared Services,Supplies and Services,Other Hired And Contracted Services,265,30/10/2019,1910-00443,0.00,113.14,R,Ad3 Envelope Printers Limited,No
Http://opendatacommunities.org/id/metropolitan-district-council/leeds,Leeds City Council,31/10/2019,Resources and Housing,Shared Services,Supplies and Services,Other Hired And Contracted Services,265,30/10/2019,1910-00444,0.00,113.14,R,Ad3 Envelope Printers Limited,No
Http://opendatacommunities.org/id/metropolitan-district-council/leeds,Leeds City Council,31/10/2019,Children and Families,Social Care  ,Supplies and Services,Office Consumables,210,03/09/2019,1910-00445,0.00,95.00,R,Adams Phones,Yes
Http://opendatacommunities.org/id/metropolitan-district-council/leeds,Leeds City Council,31/10/2019,Adults and Health,Services For Older People - 65 And Over,Third Party Payments,Nursing Home,570,16/10/2019,1910-00446,0.00,2480.00,R,Adbolton Hall,No
Http://opendatacommunities.org/id/metropolitan-district-council/leeds,Leeds City Council,31/10/2019,Resources and Housing,Civic Enterprise Leeds,Capital,Transport,4,23/10/2019,1910-00447,0.00,21249.80,C,Addison Motors Limited,No
Http://opendatacommunities.org/id/metropolitan-district-council/leeds,Leeds City Council,31/10/2019,Resources and Housing,Civic Enterprise Leeds,Capital,Transport,4,23/10/2019,1910-00448,0.00,21249.80,C,Addison Motors Limited,No
Http://opendatacommunities.org/id/metropolitan-district-council/leeds,Leeds City Council,31/10/2019,Resources and Housing,Civic Enterprise Leeds,Capital,Transport,4,23/10/2019,1910-00449,0.00,21249.80,C,Addison Motors Limited,No
Http://opendatacommunities.org/id/metropolitan-district-council/leeds,Leeds City Council,31/10/2019,Resources and Housing,Commercial Services,Transport,Vehicle Spares,345,31/10/2019,1910-00450,0.00,73.53,R,Addison Motors Limited,No
Http://opendatacommunities.org/id/metropolitan-district-council/leeds,Leeds City Council,31/10/2019,Resources and Housing,Sustainable Energy & Climate Change,Capital,Other Costs,7,11/10/2019,1910-00451,0.00,1244.50,C,Addleshaw Goddard Llp,No
Http://opendatacommunities.org/id/metropolitan-district-council/leeds,Leeds City Council,31/10/2019,Resources and Housing,Sustainable Energy & Climate Change,Capital,Other Costs,7,18/10/2019,1910-00452,0.00,4344.50,C,Addleshaw Goddard Llp,No
Http://opendatacommunities.org/id/metropolitan-district-council/leeds,Leeds City Council,31/10/2019,Resources and Housing,Sustainable Energy & Climate Change,Capital,Other Costs,7,29/10/2019,1910-00453,0.00,1883.00,C,Addleshaw Goddard Llp,No
Http://opendatacommunities.org/id/metropolitan-district-council/leeds,Leeds City Council,31/10/2019,Communities and Environment,Parks and Countryside,Supplies and Services,Other Hired And Contracted Services,265,23/10/2019,1910-00454,0.00,8022.00,R,Addlestone & Partners,No
Http://opendatacommunities.org/id/metropolitan-district-council/leeds,Leeds City Council,31/10/2019,Resources and Housing,Technology  ,Employees,Agency Staff,8,11/09/2019,1910-00455,0.00,27544.71,R,Adecco Alfred Marks,Yes
Http://opendatacommunities.org/id/metropolitan-district-council/leeds,Leeds City Council,31/10/2019,Resources and Housing,Technology  ,Employees,Agency Staff,8,25/09/2019,1910-00456,0.00,31540.33,R,Adecco Alfred Marks,Yes
Http://opendatacommunities.org/id/metropolitan-district-council/leeds,Leeds City Council,31/10/2019,Resources and Housing,Technology  ,Employees,Agency Staff,8,25/09/2019,1910-00457,0.00,29606.05,R,Adecco Alfred Marks,Yes
Http://opendatacommunities.org/id/metropolitan-district-council/leeds,Leeds City Council,31/10/2019,Resources and Housing,Technology  ,Employees,Agency Staff,8,27/09/2019,1910-00458,0.00,1666.65,R,Adecco Alfred Marks,Yes
Http://opendatacommunities.org/id/metropolitan-district-council/leeds,Leeds City Council,31/10/2019,Children and Families,Social Care,Third Party Payments,Services Rendered By Voluntary Sector,505,04/10/2019,1910-00459,0.00,6224.25,R,Adel Pre School,No
Http://opendatacommunities.org/id/metropolitan-district-council/leeds,Leeds City Council,31/10/2019,Children and Families,Social Care  ,Transport,Fuel (Non LCC Supplies),321,05/09/2019,1910-00460,0.00,3.59,R,Adel Sf Connect,Yes
Http://opendatacommunities.org/id/metropolitan-district-council/leeds,Leeds City Council,31/10/2019,City Development,Recreation,Income,Swimming Bath Charges,923,22/10/2019,1910-00461,0.00,22.95,R,REDACTED PERSONAL DATA,No
Http://opendatacommunities.org/id/metropolitan-district-council/leeds,Leeds City Council,31/10/2019,Children and Families,Social Care,Third Party Payments,Services Rendered By Other Organisations,511,02/10/2019,1910-00462,0.00,273.00,R,REDACTED PERSONAL DATA,No
Http://opendatacommunities.org/id/metropolitan-district-council/leeds,Leeds City Council,31/10/2019,Children and Families,Social Care,Third Party Payments,Services Rendered By Other Organisations,511,04/10/2019,1910-00463,0.00,225.75,R,REDACTED PERSONAL DATA,No
Http://opendatacommunities.org/id/metropolitan-district-council/leeds,Leeds City Council,31/10/2019,Children and Families,Social Care,Third Party Payments,Services Rendered By Other Organisations,511,04/10/2019,1910-00464,0.00,600.92,R,REDACTED PERSONAL DATA,No
Http://opendatacommunities.org/id/metropolitan-district-council/leeds,Leeds City Council,31/10/2019,Children and Families,Social Care,Third Party Payments,Placement Support,550,16/10/2019,1910-00465,0.00,50.00,R,Adele Watiez,No
Http://opendatacommunities.org/id/metropolitan-district-council/leeds,Leeds City Council,31/10/2019,Children and Families,Social Care,Third Party Payments,Placement Support,550,30/10/2019,1910-00466,0.00,100.00,R,Adele Watiez,No
Http://opendatacommunities.org/id/metropolitan-district-council/leeds,Leeds City Council,31/10/2019,Resources and Housing,Commercial Services,Supplies and Services,Food & Drink,231,01/10/2019,1910-00467,0.00,81.48,R,Adelie Foods Ltd,No
Http://opendatacommunities.org/id/metropolitan-district-council/leeds,Leeds City Council,31/10/2019,Resources and Housing,Commercial Services,Supplies and Services,Food & Drink,231,01/10/2019,1910-00468,0.00,122.22,R,Adelie Foods Ltd,No
Http://opendatacommunities.org/id/metropolitan-district-council/leeds,Leeds City Council,31/10/2019,Resources and Housing,Commercial Services,Supplies and Services,Food & Drink,231,09/10/2019,1910-00469,0.00,255.24,R,Adelie Foods Ltd,No
Http://opendatacommunities.org/id/metropolitan-district-council/leeds,Leeds City Council,31/10/2019,Resources and Housing,Commercial Services,Supplies and Services,Food & Drink,231,23/10/2019,1910-00470,0.00,152.69,R,Adelie Foods Ltd,No
Http://opendatacommunities.org/id/metropolitan-district-council/leeds,Leeds City Council,31/10/2019,Resources and Housing,Commercial Services,Supplies and Services,Food & Drink,231,23/10/2019,1910-00471,0.00,194.50,R,Adelie Foods Ltd,No
Http://opendatacommunities.org/id/metropolitan-district-council/leeds,Leeds City Council,31/10/2019,Resources and Housing,Commercial Services,Supplies and Services,Food & Drink,231,31/10/2019,1910-00472,0.00,281.90,R,Adelie Foods Ltd,No
Http://opendatacommunities.org/id/metropolitan-district-council/leeds,Leeds City Council,31/10/2019,Resources and Housing,Commercial Services,Supplies and Services,Food & Drink,231,31/10/2019,1910-00473,0.00,215.25,R,Adelie Foods Ltd,No
Http://opendatacommunities.org/id/metropolitan-district-council/leeds,Leeds City Council,31/10/2019,Communities and Environment,Benefits  Wlefare and Poverty,Transfer Payments,Housing Benefits,641,18/10/2019,1910-00474,0.00,280.44,R,REDACTED PERSONAL DATA,No
Http://opendatacommunities.org/id/metropolitan-district-council/leeds,Leeds City Council,31/10/2019,Resources and Housing,Leeds Building Services,Supplies and Services,Operational Materials,205,01/10/2019,1910-00475,0.00,605.86,R,Adi Global,No
Http://opendatacommunities.org/id/metropolitan-district-council/leeds,Leeds City Council,31/10/2019,Resources and Housing,Leeds Building Services,Supplies and Services,Operational Materials,205,01/10/2019,1910-00476,0.00,153.46,R,Adi Global,No
Http://opendatacommunities.org/id/metropolitan-district-council/leeds,Leeds City Council,31/10/2019,Resources and Housing,Leeds Building Services,Supplies and Services,Operational Materials,205,01/10/2019,1910-00477,0.00,54.54,R,Adi Global,No
Http://opendatacommunities.org/id/metropolitan-district-council/leeds,Leeds City Council,31/10/2019,Resources and Housing,Leeds Building Services,Supplies and Services,Operational Materials,205,02/10/2019,1910-00478,0.00,449.97,R,Adi Global,No
Http://opendatacommunities.org/id/metropolitan-district-council/leeds,Leeds City Council,31/10/2019,Resources and Housing,Leeds Building Services,Supplies and Services,Operational Materials,205,02/10/2019,1910-00479,0.00,749.95,R,Adi Global,No
Http://opendatacommunities.org/id/metropolitan-district-council/leeds,Leeds City Council,31/10/2019,Resources and Housing,Leeds Building Services,Supplies and Services,Operational Materials,205,02/10/2019,1910-00480,0.00,41.43,R,Adi Global,No
Http://opendatacommunities.org/id/metropolitan-district-council/leeds,Leeds City Council,31/10/2019,Resources and Housing,Leeds Building Services,Supplies and Services,Operational Materials,205,02/10/2019,1910-00481,0.00,32.81,R,Adi Global,No
Http://opendatacommunities.org/id/metropolitan-district-council/leeds,Leeds City Council,31/10/2019,Resources and Housing,Leeds Building Services,Supplies and Services,Operational Materials,205,02/10/2019,1910-00482,0.00,2399.84,R,Adi Global,No
Http://opendatacommunities.org/id/metropolitan-district-council/leeds,Leeds City Council,31/10/2019,Resources and Housing,Leeds Building Services,Supplies and Services,Operational Materials,205,04/10/2019,1910-00483,0.00,243.00,R,Adi Global,No
Http://opendatacommunities.org/id/metropolitan-district-council/leeds,Leeds City Council,31/10/2019,Resources and Housing,Leeds Building Services,Supplies and Services,Operational Materials,205,04/10/2019,1910-00484,0.00,290.50,R,Adi Global,No
Http://opendatacommunities.org/id/metropolitan-district-council/leeds,Leeds City Council,31/10/2019,Resources and Housing,Leeds Building Services,Supplies and Services,Operational Materials,205,04/10/2019,1910-00485,0.00,129.85,R,Adi Global,No
Http://opendatacommunities.org/id/metropolitan-district-council/leeds,Leeds City Council,31/10/2019,Resources and Housing,Leeds Building Services,Supplies and Services,Operational Materials,205,04/10/2019,1910-00486,0.00,599.96,R,Adi Global,No
Http://opendatacommunities.org/id/metropolitan-district-council/leeds,Leeds City Council,31/10/2019,Resources and Housing,Leeds Building Services,Supplies and Services,Operational Materials,205,04/10/2019,1910-00487,0.00,149.99,R,Adi Global,No
Http://opendatacommunities.org/id/metropolitan-district-council/leeds,Leeds City Council,31/10/2019,Resources and Housing,Leeds Building Services,Supplies and Services,Operational Materials,205,04/10/2019,1910-00488,0.00,60.65,R,Adi Global,No
Http://opendatacommunities.org/id/metropolitan-district-council/leeds,Leeds City Council,31/10/2019,Resources and Housing,Leeds Building Services,Supplies and Services,Operational Materials,205,09/10/2019,1910-00489,0.00,449.97,R,Adi Global,No
Http://opendatacommunities.org/id/metropolitan-district-council/leeds,Leeds City Council,31/10/2019,Resources and Housing,Leeds Building Services,Supplies and Services,Operational Materials,205,25/10/2019,1910-00490,0.00,1841.52,R,Adi Global,No
Http://opendatacommunities.org/id/metropolitan-district-council/leeds,Leeds City Council,31/10/2019,Resources and Housing,Leeds Building Services,Supplies and Services,Operational Materials,205,25/10/2019,1910-00491,0.00,29.18,R,Adi Global,No
Http://opendatacommunities.org/id/metropolitan-district-council/leeds,Leeds City Council,31/10/2019,Resources and Housing,Leeds Building Services,Supplies and Services,Operational Materials,205,25/10/2019,1910-00492,0.00,-29.18,R,Adi Global,No
Http://opendatacommunities.org/id/metropolitan-district-council/leeds,Leeds City Council,31/10/2019,City Development,Libraries  Arts & Heritage,Supplies and Services,Other Hired And Contracted Services,265,11/10/2019,1910-00493,0.00,945.00,R,Adi Uk Ltd,No
Http://opendatacommunities.org/id/metropolitan-district-council/leeds,Leeds City Council,31/10/2019,City Development,Libraries  Arts & Heritage,Supplies and Services,Other Hired And Contracted Services,265,11/10/2019,1910-00494,0.00,450.00,R,Adi Uk Ltd,No
Http://opendatacommunities.org/id/metropolitan-district-council/leeds,Leeds City Council,31/10/2019,Communities and Environment,Community Safety  ,Supplies and Services,Other Hired And Contracted Services,265,27/09/2019,1910-00495,0.00,1199.92,R,Adi-Gardiner Ltd,Yes
Http://opendatacommunities.org/id/metropolitan-district-council/leeds,Leeds City Council,31/10/2019,Communities and Environment,Elections  Licensing and Registration,Support Services,Legal Disbursements,411,31/10/2019,1910-00496,0.00,511.00,R,Adil Hamid,No
Http://opendatacommunities.org/id/metropolitan-district-council/leeds,Leeds City Council,31/10/2019,Resources and Housing,Sustainable Energy & Climate Change,Capital,Other Costs,7,25/10/2019,1910-00497,0.00,1500.00,C,REDACTED COMMERCIAL CONFIDENTIALITY,No
Http://opendatacommunities.org/id/metropolitan-district-council/leeds,Leeds City Council,31/10/2019,Adults and Health,Services For Adults Under 65 Mental/Dis,Third Party Payments,Home Care,568,23/10/2019,1910-00498,0.00,450.84,R,Adjuvo Care & Support Ltd,No
Http://opendatacommunities.org/id/metropolitan-district-council/leeds,Leeds City Council,31/10/2019,Adults and Health,Services For Older People - 65 And Over,Third Party Payments,Home Care,568,23/10/2019,1910-00499,0.00,13014.13,R,Adjuvo Care & Support Ltd,No
Http://opendatacommunities.org/id/metropolitan-district-council/leeds,Leeds City Council,31/10/2019,Adults and Health,Services For Older People Under 65 P/Dis,Third Party Payments,Home Care,568,23/10/2019,1910-00500,0.00,4656.30,R,Adjuvo Care & Support Ltd,No
Http://opendatacommunities.org/id/metropolitan-district-council/leeds,Leeds City Council,31/10/2019,Adults and Health,Services For Older People - 65 And Over,Third Party Payments,Home Care,568,23/10/2019,1910-00501,0.00,6028.00,R,Adjuvo Care & Support Ltd,No
Http://opendatacommunities.org/id/metropolitan-district-council/leeds,Leeds City Council,31/10/2019,Adults and Health,Services For Older People - 65 And Over,Third Party Payments,Home Care,568,23/10/2019,1910-00502,0.00,5720.00,R,Adjuvo Care & Support Ltd,No
Http://opendatacommunities.org/id/metropolitan-district-council/leeds,Leeds City Council,31/10/2019,Adults and Health,Services For Older People - 65 And Over,Third Party Payments,HCAIT Community Support,575,23/10/2019,1910-00503,0.00,292.00,R,Adjuvo Care & Support Ltd,No
Http://opendatacommunities.org/id/metropolitan-district-council/leeds,Leeds City Council As Accountable Body,31/10/2019,Social Services Pooled Budgets,Jcs For People With Learning Disabilitie,Third Party Payments,Home Care,568,23/10/2019,1910-00504,0.00,256.00,R,Adjuvo Care & Support Ltd,No
Http://opendatacommunities.org/id/metropolitan-district-council/leeds,Leeds City Council,31/10/2019,Insurance,Insurance,Supplies and Services,Insurance Claims,248,03/10/2019,1910-00505,0.00,13507.12,R,Admiral Insurance,No
Http://opendatacommunities.org/id/metropolitan-district-council/leeds,Leeds City Council,31/10/2019,City Development,Recreation  ,Supplies and Services,Computer Software & Equipment,214,21/09/2019,1910-00506,0.00,298.02,R,Adobe Creative Cloud,Yes
Http://opendatacommunities.org/id/metropolitan-district-council/leeds,Leeds City Council,31/10/2019,City Development,Libraries  Arts & Heritage  ,Supplies and Services,Computer Software & Equipment,214,02/09/2019,1910-00507,0.00,9.98,R,Adobe Photogphy Plan,Yes
Http://opendatacommunities.org/id/metropolitan-district-council/leeds,Leeds City Council,31/10/2019,Children and Families,Social Care,Third Party Payments,Independent Fostering Agencies,509,04/10/2019,1910-00508,0.00,3377.14,R,Adolescent And Childrens Trust,No
Http://opendatacommunities.org/id/metropolitan-district-council/leeds,Leeds City Council,31/10/2019,Children and Families,Social Care,Third Party Payments,Independent Fostering Agencies,509,04/10/2019,1910-00509,0.00,3377.14,R,Adolescent And Childrens Trust,No
Http://opendatacommunities.org/id/metropolitan-district-council/leeds,Leeds City Council,31/10/2019,Children and Families,Social Care,Third Party Payments,Independent Fostering Agencies,509,04/10/2019,1910-00510,0.00,3309.60,R,Adolescent And Childrens Trust,No
Http://opendatacommunities.org/id/metropolitan-district-council/leeds,Leeds City Council,31/10/2019,Children and Families,Social Care,Third Party Payments,Independent Fostering Agencies,509,04/10/2019,1910-00511,0.00,3309.60,R,Adolescent And Childrens Trust,No
Http://opendatacommunities.org/id/metropolitan-district-council/leeds,Leeds City Council,31/10/2019,Children and Families,Social Care,Third Party Payments,Independent Fostering Agencies,509,04/10/2019,1910-00512,0.00,3309.60,R,Adolescent And Childrens Trust,No
Http://opendatacommunities.org/id/metropolitan-district-council/leeds,Leeds City Council,31/10/2019,Children and Families,Social Care,Third Party Payments,Independent Fostering Agencies,509,04/10/2019,1910-00513,0.00,3309.60,R,Adolescent And Childrens Trust,No
Http://opendatacommunities.org/id/metropolitan-district-council/leeds,Leeds City Council,31/10/2019,Children and Families,Social Care,Third Party Payments,Independent Fostering Agencies,509,04/10/2019,1910-00514,0.00,3576.16,R,Adolescent And Childrens Trust,No
Http://opendatacommunities.org/id/metropolitan-district-council/leeds,Leeds City Council,31/10/2019,Children and Families,Social Care,Third Party Payments,Independent Fostering Agencies,509,04/10/2019,1910-00515,0.00,3576.16,R,Adolescent And Childrens Trust,No
Http://opendatacommunities.org/id/metropolitan-district-council/leeds,Leeds City Council,31/10/2019,Children and Families,Social Care,Third Party Payments,Independent Fostering Agencies,509,04/10/2019,1910-00516,0.00,3309.60,R,Adolescent And Childrens Trust,No
Http://opendatacommunities.org/id/metropolitan-district-council/leeds,Leeds City Council,31/10/2019,Children and Families,Social Care,Third Party Payments,Independent Fostering Agencies,509,04/10/2019,1910-00517,0.00,3068.38,R,Adolescent And Childrens Trust,No
Http://opendatacommunities.org/id/metropolitan-district-council/leeds,Leeds City Council,31/10/2019,Children and Families,Social Care,Third Party Payments,Independent Fostering Agencies,509,04/10/2019,1910-00518,0.00,3309.60,R,Adolescent And Childrens Trust,No
Http://opendatacommunities.org/id/metropolitan-district-council/leeds,Leeds City Council,31/10/2019,Children and Families,Social Care,Third Party Payments,Independent Fostering Agencies,509,04/10/2019,1910-00519,0.00,3309.60,R,Adolescent And Childrens Trust,No
Http://opendatacommunities.org/id/metropolitan-district-council/leeds,Leeds City Council,31/10/2019,Children and Families,Social Care,Third Party Payments,Independent Fostering Agencies,509,04/10/2019,1910-00520,0.00,3309.60,R,Adolescent And Childrens Trust,No
Http://opendatacommunities.org/id/metropolitan-district-council/leeds,Leeds City Council,31/10/2019,Children and Families,Social Care,Third Party Payments,Independent Fostering Agencies,509,04/10/2019,1910-00521,0.00,1499.68,R,Adolescent And Childrens Trust,No
Http://opendatacommunities.org/id/metropolitan-district-council/leeds,Leeds City Council,31/10/2019,City Development,Libraries  Arts & Heritage,Supplies and Services,Other Hired And Contracted Services,265,15/10/2019,1910-00522,0.00,250.00,R,Adrian Knight,No
Http://opendatacommunities.org/id/metropolitan-district-council/leeds,Leeds City Council,31/10/2019,Children and Families,Social Care,Third Party Payments,Placement Support,550,04/10/2019,1910-00523,0.00,50.00,R,REDACTED PERSONAL DATA,No
Http://opendatacommunities.org/id/metropolitan-district-council/leeds,Leeds City Council,31/10/2019,Children and Families,Social Care,Third Party Payments,Placement Support,550,11/10/2019,1910-00524,0.00,100.00,R,REDACTED PERSONAL DATA,No
Http://opendatacommunities.org/id/metropolitan-district-council/leeds,Leeds City Council,31/10/2019,Children and Families,Social Care,Third Party Payments,Placement Support,550,18/10/2019,1910-00525,0.00,100.00,R,REDACTED PERSONAL DATA,No
Http://opendatacommunities.org/id/metropolitan-district-council/leeds,Leeds City Council,31/10/2019,Children and Families,Social Care,Third Party Payments,Placement Support,550,25/10/2019,1910-00526,0.00,100.00,R,REDACTED PERSONAL DATA,No
Http://opendatacommunities.org/id/metropolitan-district-council/leeds,Leeds City Council,31/10/2019,Strategic Landlord,Housing Management,Premises,Premises Security Services,162,02/10/2019,1910-00527,0.00,163.17,R,Adt Fire And Security Plc,No
Http://opendatacommunities.org/id/metropolitan-district-council/leeds,Leeds City Council As Accountable Body,31/10/2019,Social Services Pooled Budgets,Jcs For People With Learning Disabilitie,Third Party Payments,Residential,580,03/10/2019,1910-00528,0.00,1332.20,R,Adult Placement Services,No
Http://opendatacommunities.org/id/metropolitan-district-council/leeds,Leeds City Council As Accountable Body,31/10/2019,Social Services Pooled Budgets,Jcs For People With Learning Disabilitie,Third Party Payments,Residential,580,03/10/2019,1910-00529,0.00,333.06,R,Adult Placement Services,No
Http://opendatacommunities.org/id/metropolitan-district-council/leeds,Leeds City Council As Accountable Body,31/10/2019,Social Services Pooled Budgets,Jcs For People With Learning Disabilitie,Third Party Payments,Residential,580,03/10/2019,1910-00530,0.00,475.80,R,Adult Placement Services,No
Http://opendatacommunities.org/id/metropolitan-district-council/leeds,Leeds City Council,31/10/2019,City Development,Libraries  Arts & Heritage,Supplies and Services,Other Hired And Contracted Services,265,11/10/2019,1910-00531,0.00,85.00,R,Advance Stocks Ltd,No
Http://opendatacommunities.org/id/metropolitan-district-council/leeds,Leeds City Council,31/10/2019,Adults and Health,Home Care Services,Supplies and Services,Computer Software & Equipment,214,31/10/2019,1910-00532,0.00,15761.27,R,Advanced Health And Care Ltd,No
Http://opendatacommunities.org/id/metropolitan-district-council/leeds,Leeds City Council,31/10/2019,Adults and Health,Home Care Services,Supplies and Services,Computer Software & Equipment,214,31/10/2019,1910-00533,0.00,358.21,R,Advanced Health And Care Ltd,No
Http://opendatacommunities.org/id/metropolitan-district-council/leeds,Leeds City Council,31/10/2019,City Development,Markets & City Centre Management  ,Supplies and Services,Operational Materials,205,18/09/2019,1910-00534,0.00,1434.72,R,Advanced Moulds Ltd,Yes
Http://opendatacommunities.org/id/metropolitan-district-council/leeds,Leeds City Council,31/10/2019,Resources and Housing,HRA Council Housing Growth Programme,Capital,Land,1,31/10/2019,1910-00535,0.00,82592.00,C,Advantage Property Lawyers,No
Http://opendatacommunities.org/id/metropolitan-district-council/leeds,Leeds City Council,31/10/2019,Children and Families,Social Care  ,Supplies and Services,Operational Materials,205,25/09/2019,1910-00536,0.00,436.28,R,Adventure Climb Rescue,Yes
Http://opendatacommunities.org/id/metropolitan-district-council/leeds,Leeds City Council,31/10/2019,Children and Families,Social Care  ,Supplies and Services,Operational Materials,205,25/09/2019,1910-00537,0.00,436.28,R,Adventure Climb Rescue,Yes
Http://opendatacommunities.org/id/metropolitan-district-council/leeds,Leeds City Council,31/10/2019,City Development,Libraries  Arts & Heritage  ,Supplies and Services,Office Consumables,210,19/09/2019,1910-00538,0.00,6.42,R,Adventure In A Box,Yes
Http://opendatacommunities.org/id/metropolitan-district-council/leeds,Leeds City Council As Accountable Body,31/10/2019,Social Services Pooled Budgets,Jcs For People With Learning Disabilitie,Third Party Payments,Residential,580,16/10/2019,1910-00539,0.00,17213.56,R,Advitam Ltd,No
Http://opendatacommunities.org/id/metropolitan-district-council/leeds,Leeds City Council As Accountable Body,31/10/2019,Social Services Pooled Budgets,Jcs For People With Learning Disabilitie,Third Party Payments,Other Agency Services,561,11/10/2019,1910-00540,0.00,9.90,R,Advonet,No
Http://opendatacommunities.org/id/metropolitan-district-council/leeds,Leeds City Council,31/10/2019,Adults and Health,Services For Older People - 65 And Over,Third Party Payments,Payments To Voluntary Organisations,561,22/10/2019,1910-00541,0.00,103916.67,R,Advonet,No
Http://opendatacommunities.org/id/metropolitan-district-council/leeds,Leeds City Council,31/10/2019,Adults and Health,Services For Adults Under 65 Learn/Dis,Third Party Payments,Payments To Voluntary Organisations,561,31/10/2019,1910-00542,0.00,17944.96,R,Advonet,No
Http://opendatacommunities.org/id/metropolitan-district-council/leeds,Leeds City Council,31/10/2019,Adults and Health,Services For Adults Under 65 Mental/Dis,Third Party Payments,Fees - Level 4,520,11/10/2019,1910-00543,0.00,228.38,R,Ae Bia Assessments Limited,No
Http://opendatacommunities.org/id/metropolitan-district-council/leeds,Leeds City Council,31/10/2019,Adults and Health,Services For Adults Under 65 Mental/Dis,Third Party Payments,Fees - Level 4,520,11/10/2019,1910-00544,0.00,242.28,R,Ae Bia Assessments Limited,No
Http://opendatacommunities.org/id/metropolitan-district-council/leeds,Leeds City Council,31/10/2019,Adults and Health,Services For Adults Under 65 Mental/Dis,Third Party Payments,Fees - Level 4,520,15/10/2019,1910-00545,0.00,237.17,R,Ae Bia Assessments Limited,No
Http://opendatacommunities.org/id/metropolitan-district-council/leeds,Leeds City Council,31/10/2019,Adults and Health,Services For Adults Under 65 Mental/Dis,Third Party Payments,Fees - Level 4,520,31/10/2019,1910-00546,0.00,229.51,R,Ae Bia Assessments Limited,No
Http://opendatacommunities.org/id/metropolitan-district-council/leeds,Leeds City Council,31/10/2019,Adults and Health,Services For Adults Under 65 Mental/Dis,Third Party Payments,Fees - Level 4,520,31/10/2019,1910-00547,0.00,236.32,R,Ae Bia Assessments Limited,No
Http://opendatacommunities.org/id/metropolitan-district-council/leeds,Leeds City Council,31/10/2019,Adults and Health,Services For Adults Under 65 Mental/Dis,Third Party Payments,Fees - Level 4,520,31/10/2019,1910-00548,0.00,234.62,R,Ae Bia Assessments Limited,No
Http://opendatacommunities.org/id/metropolitan-district-council/leeds,Leeds City Council,31/10/2019,Adults and Health,Services For Adults Under 65 Mental/Dis,Third Party Payments,Fees - Level 4,520,31/10/2019,1910-00549,0.00,228.66,R,Ae Bia Assessments Limited,No
Http://opendatacommunities.org/id/metropolitan-district-council/leeds,Leeds City Council,31/10/2019,Adults and Health,Services For Adults Under 65 Mental/Dis,Third Party Payments,Fees - Level 4,520,31/10/2019,1910-00550,0.00,238.27,R,Ae Bia Assessments Limited,No
Http://opendatacommunities.org/id/metropolitan-district-council/leeds,Leeds City Council,31/10/2019,City Development,Highways,Capital,Other Costs,7,02/10/2019,1910-00551,0.00,22307.91,C,Aecom Limited,No
Http://opendatacommunities.org/id/metropolitan-district-council/leeds,Leeds City Council,31/10/2019,City Development,Highways,Capital,Other Costs,7,24/10/2019,1910-00552,0.00,22015.85,C,Aecom Limited,No
Http://opendatacommunities.org/id/metropolitan-district-council/leeds,Leeds City Council,31/10/2019,Adults and Health,Services For Adults Under 65 Mental/Dis,Third Party Payments,Home Care,568,02/10/2019,1910-00553,0.00,504.00,R,Aegis Care Solutions Ltd,No
Http://opendatacommunities.org/id/metropolitan-district-council/leeds,Leeds City Council,31/10/2019,Adults and Health,Services For Adults Under 65 Mental/Dis,Third Party Payments,Home Care,568,02/10/2019,1910-00554,0.00,925.80,R,Aegis Care Solutions Ltd,No
Http://opendatacommunities.org/id/metropolitan-district-council/leeds,Leeds City Council,31/10/2019,Adults and Health,Services For Adults Under 65 Mental/Dis,Third Party Payments,Home Care,568,02/10/2019,1910-00555,0.00,320.40,R,Aegis Care Solutions Ltd,No
Http://opendatacommunities.org/id/metropolitan-district-council/leeds,Leeds City Council,31/10/2019,Adults and Health,Services For Adults Under 65 Mental/Dis,Third Party Payments,Home Care,568,16/10/2019,1910-00556,0.00,213.60,R,Aegis Care Solutions Ltd,No
Http://opendatacommunities.org/id/metropolitan-district-council/leeds,Leeds City Council,31/10/2019,City Development,Libraries  Arts & Heritage,Supplies and Services,Other Hired And Contracted Services,265,04/10/2019,1910-00557,0.00,250.00,R,Aesg Ltd,No
Http://opendatacommunities.org/id/metropolitan-district-council/leeds,Leeds City Council,31/10/2019,City Development,Libraries  Arts & Heritage,Supplies and Services,Other Hired And Contracted Services,265,04/10/2019,1910-00558,0.00,125.00,R,Aesg Ltd,No
Http://opendatacommunities.org/id/metropolitan-district-council/leeds,Leeds City Council,31/10/2019,Communities and Environment,Parks and Countryside,Supplies and Services,Other Hired And Contracted Services,265,09/10/2019,1910-00559,0.00,2780.00,R,Aesg Ltd,No
Http://opendatacommunities.org/id/metropolitan-district-council/leeds,Leeds City Council,31/10/2019,City Development,Libraries  Arts & Heritage,Supplies and Services,Other Hired And Contracted Services,265,25/10/2019,1910-00560,0.00,8409.76,R,Aesg Ltd,No
Http://opendatacommunities.org/id/metropolitan-district-council/leeds,Leeds City Council,31/10/2019,City Development,Libraries  Arts & Heritage,Supplies and Services,Other Hired And Contracted Services,265,31/10/2019,1910-00561,0.00,250.88,R,Aesg Ltd,No
Http://opendatacommunities.org/id/metropolitan-district-council/leeds,Leeds City Council As Accountable Body,31/10/2019,Social Services Pooled Budgets,Jcs For People With Learning Disabilitie,Third Party Payments,Day Centre,564,03/10/2019,1910-00562,0.00,228.33,R,Affinity Trust,No
Http://opendatacommunities.org/id/metropolitan-district-council/leeds,Leeds City Council,31/10/2019,Adults and Health,Services For Older People - 65 And Over,Third Party Payments,Home Care,568,04/10/2019,1910-00563,0.00,511.36,R,Affinity Trust,No
Http://opendatacommunities.org/id/metropolitan-district-council/leeds,Leeds City Council As Accountable Body,31/10/2019,Social Services Pooled Budgets,Jcs For People With Learning Disabilitie,Third Party Payments,Day Centre,564,08/10/2019,1910-00564,0.00,1300.00,R,Affinity Trust,No
Http://opendatacommunities.org/id/metropolitan-district-council/leeds,Leeds City Council As Accountable Body,31/10/2019,Social Services Pooled Budgets,Jcs For People With Learning Disabilitie,Third Party Payments,Home Care,568,09/10/2019,1910-00565,0.00,319.60,R,Affinity Trust,No
Http://opendatacommunities.org/id/metropolitan-district-council/leeds,Leeds City Council As Accountable Body,31/10/2019,Social Services Pooled Budgets,Jcs For People With Learning Disabilitie,Third Party Payments,Home Care,568,16/10/2019,1910-00566,0.00,990.76,R,Affinity Trust,No
Http://opendatacommunities.org/id/metropolitan-district-council/leeds,Leeds City Council As Accountable Body,31/10/2019,Social Services Pooled Budgets,Jcs For People With Learning Disabilitie,Third Party Payments,Home Care,568,16/10/2019,1910-00567,0.00,934.83,R,Affinity Trust,No
Http://opendatacommunities.org/id/metropolitan-district-council/leeds,Leeds City Council As Accountable Body,31/10/2019,Social Services Pooled Budgets,Jcs For People With Learning Disabilitie,Third Party Payments,Home Care,568,16/10/2019,1910-00568,0.00,511.36,R,Affinity Trust,No
Http://opendatacommunities.org/id/metropolitan-district-council/leeds,Leeds City Council As Accountable Body,31/10/2019,Social Services Pooled Budgets,Jcs For People With Learning Disabilitie,Third Party Payments,Day Centre,564,16/10/2019,1910-00569,0.00,364.56,R,Affinity Trust,No
Http://opendatacommunities.org/id/metropolitan-district-council/leeds,Leeds City Council As Accountable Body,31/10/2019,Social Services Pooled Budgets,Jcs For People With Learning Disabilitie,Third Party Payments,Home Care,568,16/10/2019,1910-00570,0.00,1509.75,R,Affinity Trust,No
Http://opendatacommunities.org/id/metropolitan-district-council/leeds,Leeds City Council As Accountable Body,31/10/2019,Social Services Pooled Budgets,Jcs For People With Learning Disabilitie,Third Party Payments,Home Care,568,16/10/2019,1910-00571,0.00,1110.12,R,Affinity Trust,No
Http://opendatacommunities.org/id/metropolitan-district-council/leeds,Leeds City Council As Accountable Body,31/10/2019,Social Services Pooled Budgets,Jcs For People With Learning Disabilitie,Third Party Payments,Home Care,568,16/10/2019,1910-00572,0.00,639.20,R,Affinity Trust,No
Http://opendatacommunities.org/id/metropolitan-district-council/leeds,Leeds City Council As Accountable Body,31/10/2019,Social Services Pooled Budgets,Jcs For People With Learning Disabilitie,Third Party Payments,Home Care,568,16/10/2019,1910-00573,0.00,639.20,R,Affinity Trust,No
Http://opendatacommunities.org/id/metropolitan-district-council/leeds,Leeds City Council As Accountable Body,31/10/2019,Social Services Pooled Budgets,Jcs For People With Learning Disabilitie,Third Party Payments,Home Care,568,16/10/2019,1910-00574,0.00,306.00,R,Affinity Trust,No
Http://opendatacommunities.org/id/metropolitan-district-council/leeds,Leeds City Council As Accountable Body,31/10/2019,Social Services Pooled Budgets,Jcs For People With Learning Disabilitie,Third Party Payments,Home Care,568,16/10/2019,1910-00575,0.00,1134.58,R,Affinity Trust,No
Http://opendatacommunities.org/id/metropolitan-district-council/leeds,Leeds City Council As Accountable Body,31/10/2019,Social Services Pooled Budgets,Jcs For People With Learning Disabilitie,Third Party Payments,Home Care,568,16/10/2019,1910-00576,0.00,2341.07,R,Affinity Trust,No
Http://opendatacommunities.org/id/metropolitan-district-council/leeds,Leeds City Council As Accountable Body,31/10/2019,Social Services Pooled Budgets,Jcs For People With Learning Disabilitie,Third Party Payments,Home Care,568,16/10/2019,1910-00577,0.00,408.64,R,Affinity Trust,No
Http://opendatacommunities.org/id/metropolitan-district-council/leeds,Leeds City Council As Accountable Body,31/10/2019,Social Services Pooled Budgets,Jcs For People With Learning Disabilitie,Third Party Payments,Home Care,568,16/10/2019,1910-00578,0.00,975.56,R,Affinity Trust,No
Http://opendatacommunities.org/id/metropolitan-district-council/leeds,Leeds City Council As Accountable Body,31/10/2019,Social Services Pooled Budgets,Jcs For People With Learning Disabilitie,Third Party Payments,Home Care,568,16/10/2019,1910-00579,0.00,958.80,R,Affinity Trust,No
Http://opendatacommunities.org/id/metropolitan-district-council/leeds,Leeds City Council As Accountable Body,31/10/2019,Social Services Pooled Budgets,Jcs For People With Learning Disabilitie,Third Party Payments,Home Care,568,16/10/2019,1910-00580,0.00,511.36,R,Affinity Trust,No
Http://opendatacommunities.org/id/metropolitan-district-council/leeds,Leeds City Council As Accountable Body,31/10/2019,Social Services Pooled Budgets,Jcs For People With Learning Disabilitie,Third Party Payments,Home Care,568,16/10/2019,1910-00581,0.00,607.24,R,Affinity Trust,No
Http://opendatacommunities.org/id/metropolitan-district-council/leeds,Leeds City Council As Accountable Body,31/10/2019,Social Services Pooled Budgets,Jcs For People With Learning Disabilitie,Third Party Payments,Home Care,568,16/10/2019,1910-00582,0.00,255.68,R,Affinity Trust,No
Http://opendatacommunities.org/id/metropolitan-district-council/leeds,Leeds City Council As Accountable Body,31/10/2019,Social Services Pooled Budgets,Jcs For People With Learning Disabilitie,Third Party Payments,Home Care,568,16/10/2019,1910-00583,0.00,1170.54,R,Affinity Trust,No
Http://opendatacommunities.org/id/metropolitan-district-council/leeds,Leeds City Council As Accountable Body,31/10/2019,Social Services Pooled Budgets,Jcs For People With Learning Disabilitie,Third Party Payments,Home Care,568,16/10/2019,1910-00584,0.00,319.60,R,Affinity Trust,No
Http://opendatacommunities.org/id/metropolitan-district-council/leeds,Leeds City Council As Accountable Body,31/10/2019,Social Services Pooled Budgets,Jcs For People With Learning Disabilitie,Third Party Payments,Home Care,568,16/10/2019,1910-00585,0.00,239.70,R,Affinity Trust,No
Http://opendatacommunities.org/id/metropolitan-district-council/leeds,Leeds City Council As Accountable Body,31/10/2019,Social Services Pooled Budgets,Jcs For People With Learning Disabilitie,Third Party Payments,Home Care,568,16/10/2019,1910-00586,0.00,239.70,R,Affinity Trust,No
Http://opendatacommunities.org/id/metropolitan-district-council/leeds,Leeds City Council,31/10/2019,Adults and Health,Services For Older People Under 65 P/Dis,Third Party Payments,Home Care,568,17/10/2019,1910-00587,0.00,958.74,R,Affinity Trust,No
Http://opendatacommunities.org/id/metropolitan-district-council/leeds,Leeds City Council As Accountable Body,31/10/2019,Social Services Pooled Budgets,Jcs For People With Learning Disabilitie,Third Party Payments,Day Centre,564,17/10/2019,1910-00588,0.00,1350.00,R,Affinity Trust,No
Http://opendatacommunities.org/id/metropolitan-district-council/leeds,Leeds City Council As Accountable Body,31/10/2019,Social Services Pooled Budgets,Jcs For People With Learning Disabilitie,Third Party Payments,Day Centre,564,17/10/2019,1910-00589,0.00,1080.00,R,Affinity Trust,No
Http://opendatacommunities.org/id/metropolitan-district-council/leeds,Leeds City Council As Accountable Body,31/10/2019,Social Services Pooled Budgets,Jcs For People With Learning Disabilitie,Third Party Payments,Home Care,568,17/10/2019,1910-00590,0.00,1920.00,R,Affinity Trust,No
Http://opendatacommunities.org/id/metropolitan-district-council/leeds,Leeds City Council As Accountable Body,31/10/2019,Social Services Pooled Budgets,Jcs For People With Learning Disabilitie,Third Party Payments,Home Care,568,17/10/2019,1910-00591,0.00,571.32,R,Affinity Trust,No
Http://opendatacommunities.org/id/metropolitan-district-council/leeds,Leeds City Council As Accountable Body,31/10/2019,Social Services Pooled Budgets,Jcs For People With Learning Disabilitie,Third Party Payments,Home Care,568,17/10/2019,1910-00592,0.00,1170.00,R,Affinity Trust,No
Http://opendatacommunities.org/id/metropolitan-district-council/leeds,Leeds City Council As Accountable Body,31/10/2019,Social Services Pooled Budgets,Jcs For People With Learning Disabilitie,Third Party Payments,Home Care,568,17/10/2019,1910-00593,0.00,2512.80,R,Affinity Trust,No
Http://opendatacommunities.org/id/metropolitan-district-council/leeds,Leeds City Council As Accountable Body,31/10/2019,Social Services Pooled Budgets,Jcs For People With Learning Disabilitie,Third Party Payments,Home Care,568,17/10/2019,1910-00594,0.00,1830.84,R,Affinity Trust,No
Http://opendatacommunities.org/id/metropolitan-district-council/leeds,Leeds City Council As Accountable Body,31/10/2019,Social Services Pooled Budgets,Jcs For People With Learning Disabilitie,Third Party Payments,Home Care,568,17/10/2019,1910-00595,0.00,870.66,R,Affinity Trust,No
Http://opendatacommunities.org/id/metropolitan-district-council/leeds,Leeds City Council As Accountable Body,31/10/2019,Social Services Pooled Budgets,Jcs For People With Learning Disabilitie,Third Party Payments,Home Care,568,17/10/2019,1910-00596,0.00,2944.34,R,Affinity Trust,No
Http://opendatacommunities.org/id/metropolitan-district-council/leeds,Leeds City Council As Accountable Body,31/10/2019,Social Services Pooled Budgets,Jcs For People With Learning Disabilitie,Third Party Payments,Day Centre,564,17/10/2019,1910-00597,0.00,402.24,R,Affinity Trust,No
Http://opendatacommunities.org/id/metropolitan-district-council/leeds,Leeds City Council As Accountable Body,31/10/2019,Social Services Pooled Budgets,Jcs For People With Learning Disabilitie,Third Party Payments,Home Care,568,17/10/2019,1910-00598,0.00,454.95,R,Affinity Trust,No
Http://opendatacommunities.org/id/metropolitan-district-council/leeds,Leeds City Council As Accountable Body,31/10/2019,Social Services Pooled Budgets,Jcs For People With Learning Disabilitie,Third Party Payments,Day Centre,564,17/10/2019,1910-00599,0.00,1907.88,R,Affinity Trust,No
Http://opendatacommunities.org/id/metropolitan-district-council/leeds,Leeds City Council As Accountable Body,31/10/2019,Social Services Pooled Budgets,Jcs For People With Learning Disabilitie,Third Party Payments,Home Care,568,17/10/2019,1910-00600,0.00,754.20,R,Affinity Trust,No
Http://opendatacommunities.org/id/metropolitan-district-council/leeds,Leeds City Council As Accountable Body,31/10/2019,Social Services Pooled Budgets,Jcs For People With Learning Disabilitie,Third Party Payments,Home Care,568,17/10/2019,1910-00601,0.00,1433.95,R,Affinity Trust,No
Http://opendatacommunities.org/id/metropolitan-district-council/leeds,Leeds City Council As Accountable Body,31/10/2019,Social Services Pooled Budgets,Jcs For People With Learning Disabilitie,Third Party Payments,Home Care,568,17/10/2019,1910-00602,0.00,1695.33,R,Affinity Trust,No
Http://opendatacommunities.org/id/metropolitan-district-council/leeds,Leeds City Council As Accountable Body,31/10/2019,Social Services Pooled Budgets,Jcs For People With Learning Disabilitie,Third Party Payments,Home Care,568,17/10/2019,1910-00603,0.00,1005.60,R,Affinity Trust,No
Http://opendatacommunities.org/id/metropolitan-district-council/leeds,Leeds City Council As Accountable Body,31/10/2019,Social Services Pooled Budgets,Jcs For People With Learning Disabilitie,Third Party Payments,Home Care,568,17/10/2019,1910-00604,0.00,360.00,R,Affinity Trust,No
Http://opendatacommunities.org/id/metropolitan-district-council/leeds,Leeds City Council As Accountable Body,31/10/2019,Social Services Pooled Budgets,Jcs For People With Learning Disabilitie,Third Party Payments,Day Centre,564,17/10/2019,1910-00605,0.00,648.95,R,Affinity Trust,No
Http://opendatacommunities.org/id/metropolitan-district-council/leeds,Leeds City Council As Accountable Body,31/10/2019,Social Services Pooled Budgets,Jcs For People With Learning Disabilitie,Third Party Payments,Day Centre,564,17/10/2019,1910-00606,0.00,2229.08,R,Affinity Trust,No
Http://opendatacommunities.org/id/metropolitan-district-council/leeds,Leeds City Council As Accountable Body,31/10/2019,Social Services Pooled Budgets,Jcs For People With Learning Disabilitie,Third Party Payments,Day Centre,564,17/10/2019,1910-00607,0.00,1144.62,R,Affinity Trust,No
Http://opendatacommunities.org/id/metropolitan-district-council/leeds,Leeds City Council As Accountable Body,31/10/2019,Social Services Pooled Budgets,Jcs For People With Learning Disabilitie,Third Party Payments,Day Centre,564,17/10/2019,1910-00608,0.00,1909.22,R,Affinity Trust,No
Http://opendatacommunities.org/id/metropolitan-district-council/leeds,Leeds City Council As Accountable Body,31/10/2019,Social Services Pooled Budgets,Jcs For People With Learning Disabilitie,Third Party Payments,Home Care,568,17/10/2019,1910-00609,0.00,722.84,R,Affinity Trust,No
Http://opendatacommunities.org/id/metropolitan-district-council/leeds,Leeds City Council As Accountable Body,31/10/2019,Social Services Pooled Budgets,Jcs For People With Learning Disabilitie,Transfer Payments,Personal Budgets,627,17/10/2019,1910-00610,0.00,674.13,R,Affinity Trust,No
Http://opendatacommunities.org/id/metropolitan-district-council/leeds,Leeds City Council,31/10/2019,Adults and Health,Services For Older People Under 65 P/Dis,Third Party Payments,Home Care,568,18/10/2019,1910-00611,0.00,526.68,R,Affinity Trust,No
Http://opendatacommunities.org/id/metropolitan-district-council/leeds,Leeds City Council As Accountable Body,31/10/2019,Social Services Pooled Budgets,Jcs For People With Learning Disabilitie,Third Party Payments,Home Care,568,30/10/2019,1910-00612,0.00,1006.74,R,Affinity Trust,No
Http://opendatacommunities.org/id/metropolitan-district-council/leeds,Leeds City Council As Accountable Body,31/10/2019,Social Services Pooled Budgets,Jcs For People With Learning Disabilitie,Third Party Payments,Home Care,568,30/10/2019,1910-00613,0.00,1310.36,R,Affinity Trust,No
Http://opendatacommunities.org/id/metropolitan-district-council/leeds,Leeds City Council As Accountable Body,31/10/2019,Social Services Pooled Budgets,Jcs For People With Learning Disabilitie,Third Party Payments,Home Care,568,30/10/2019,1910-00614,0.00,383.52,R,Affinity Trust,No
Http://opendatacommunities.org/id/metropolitan-district-council/leeds,Leeds City Council As Accountable Body,31/10/2019,Social Services Pooled Budgets,Jcs For People With Learning Disabilitie,Third Party Payments,Day Centre,564,30/10/2019,1910-00615,0.00,416.64,R,Affinity Trust,No
Http://opendatacommunities.org/id/metropolitan-district-council/leeds,Leeds City Council As Accountable Body,31/10/2019,Social Services Pooled Budgets,Jcs For People With Learning Disabilitie,Third Party Payments,Home Care,568,30/10/2019,1910-00616,0.00,1435.00,R,Affinity Trust,No
Http://opendatacommunities.org/id/metropolitan-district-council/leeds,Leeds City Council As Accountable Body,31/10/2019,Social Services Pooled Budgets,Jcs For People With Learning Disabilitie,Third Party Payments,Home Care,568,30/10/2019,1910-00617,0.00,1303.55,R,Affinity Trust,No
Http://opendatacommunities.org/id/metropolitan-district-council/leeds,Leeds City Council,31/10/2019,Adults and Health,Services For Older People - 65 And Over,Third Party Payments,Home Care,568,30/10/2019,1910-00618,0.00,495.38,R,Affinity Trust,No
Http://opendatacommunities.org/id/metropolitan-district-council/leeds,Leeds City Council As Accountable Body,31/10/2019,Social Services Pooled Budgets,Jcs For People With Learning Disabilitie,Third Party Payments,Sheltered Accommodation,569,16/10/2019,1910-00619,0.00,147099.32,R,Affinity Trust North Divisional Office,No
Http://opendatacommunities.org/id/metropolitan-district-council/leeds,Leeds City Council,31/10/2019,Communities and Environment,Parks And Countryside  ,Transport,External Hire -Occasional,304,23/09/2019,1910-00620,0.00,950.00,R,Afi Uplift,Yes
Http://opendatacommunities.org/id/metropolitan-district-council/leeds,Leeds City Council,31/10/2019,Communities and Environment,Parks And Countryside  ,Transport,External Hire -Occasional,304,23/09/2019,1910-00621,0.00,950.00,R,Afi Uplift,Yes
Http://opendatacommunities.org/id/metropolitan-district-council/leeds,Leeds City Council,31/10/2019,Communities and Environment,Parks And Countryside  ,Transport,External Hire -Occasional,304,23/09/2019,1910-00622,0.00,950.00,R,Afi Uplift,Yes
Http://opendatacommunities.org/id/metropolitan-district-council/leeds,Leeds City Council,31/10/2019,Communities and Environment,Parks And Countryside  ,Transport,External Hire -Occasional,304,23/09/2019,1910-00623,0.00,950.00,R,Afi Uplift,Yes
Http://opendatacommunities.org/id/metropolitan-district-council/leeds,Leeds City Council,31/10/2019,Communities and Environment,Parks And Countryside  ,Transport,External Hire -Occasional,304,23/09/2019,1910-00624,0.00,950.00,R,Afi Uplift,Yes
Http://opendatacommunities.org/id/metropolitan-district-council/leeds,Leeds City Council,31/10/2019,Resources and Housing,Commercial Services,Supplies and Services,Compensation Claims,200,09/10/2019,1910-00625,0.00,780.00,R,REDACTED PERSONAL DATA,No
Http://opendatacommunities.org/id/metropolitan-district-council/leeds,Leeds City Council,31/10/2019,Adults and Health,Services For Older People - 65 And Over,Third Party Payments,Payments To Voluntary Organisations,561,01/10/2019,1910-00626,0.00,10599.75,R,Age Uk Leeds,No
Http://opendatacommunities.org/id/metropolitan-district-council/leeds,Leeds City Council,31/10/2019,City Development,Recreation,Supplies and Services,Other Hired And Contracted Services,265,25/10/2019,1910-00627,0.00,3837.62,R,Age Uk Leeds,No
Http://opendatacommunities.org/id/metropolitan-district-council/leeds,Leeds City Council,31/10/2019,City Development,Highways,Capital,Construction,3,04/10/2019,1910-00628,0.00,170659.39,C,Aggregate Industries Uk Ltd,No
Http://opendatacommunities.org/id/metropolitan-district-council/leeds,Leeds City Council,31/10/2019,City Development,Highways,Capital,Construction,3,04/10/2019,1910-00629,0.00,90305.01,C,Aggregate Industries Uk Ltd,No
Http://opendatacommunities.org/id/metropolitan-district-council/leeds,Leeds City Council,31/10/2019,Communities and Environment,Parks And Countryside  ,Supplies and Services,Operational Materials,205,02/09/2019,1910-00630,0.00,1288.56,R,Ahdb.Org.Uk,Yes
Http://opendatacommunities.org/id/metropolitan-district-council/leeds,Leeds City Council,31/10/2019,Communities and Environment,Customer Access,Supplies and Services,Bought In Professional Services,277,25/10/2019,1910-00631,0.00,18.00,R,Ahmed Moustafa Moustafa Mousa,No
Http://opendatacommunities.org/id/metropolitan-district-council/leeds,Leeds City Council,31/10/2019,Resources and Housing,Sustainable Energy & Climate Change,Capital,Other Costs,7,04/10/2019,1910-00632,0.00,1500.00,C,REDACTED COMMERCIAL CONFIDENTIALITY,No
Http://opendatacommunities.org/id/metropolitan-district-council/leeds,Leeds City Council As Accountable Body,31/10/2019,Social Services Pooled Budgets,Leeds Community Equip Store Pooled Budgt,Supplies and Services,Other Equipment,203,25/10/2019,1910-00633,0.00,513.30,R,Aidapt Bathrooms Ltd,No
Http://opendatacommunities.org/id/metropolitan-district-council/leeds,Leeds City Council As Accountable Body,31/10/2019,Social Services Pooled Budgets,Leeds Community Equip Store Pooled Budgt,Supplies and Services,Other Equipment,203,30/10/2019,1910-00634,0.00,302.00,R,Aidapt Bathrooms Ltd,No
Http://opendatacommunities.org/id/metropolitan-district-council/leeds,Leeds City Council As Accountable Body,31/10/2019,Social Services Pooled Budgets,Leeds Community Equip Store Pooled Budgt,Supplies and Services,Other Equipment,203,30/10/2019,1910-00635,0.00,515.80,R,Aidapt Bathrooms Ltd,No
Http://opendatacommunities.org/id/metropolitan-district-council/leeds,Leeds City Council As Accountable Body,31/10/2019,Social Services Pooled Budgets,Leeds Community Equip Store Pooled Budgt,Supplies and Services,Other Equipment,203,30/10/2019,1910-00636,0.00,515.80,R,Aidapt Bathrooms Ltd,No
Http://opendatacommunities.org/id/metropolitan-district-council/leeds,Leeds City Council As Accountable Body,31/10/2019,Social Services Pooled Budgets,Leeds Community Equip Store Pooled Budgt,Supplies and Services,Other Equipment,203,30/10/2019,1910-00637,0.00,1529.40,R,Aidapt Bathrooms Ltd,No
Http://opendatacommunities.org/id/metropolitan-district-council/leeds,Leeds City Council As Accountable Body,31/10/2019,Social Services Pooled Budgets,Leeds Community Equip Store Pooled Budgt,Supplies and Services,Other Equipment,203,30/10/2019,1910-00638,0.00,130.56,R,Aidapt Bathrooms Ltd,No
Http://opendatacommunities.org/id/metropolitan-district-council/leeds,Leeds City Council As Accountable Body,31/10/2019,Social Services Pooled Budgets,Leeds Community Equip Store Pooled Budgt,Supplies and Services,Other Equipment,203,30/10/2019,1910-00639,0.00,2941.50,R,Aidapt Bathrooms Ltd,No
Http://opendatacommunities.org/id/metropolitan-district-council/leeds,Leeds City Council As Accountable Body,31/10/2019,Social Services Pooled Budgets,Leeds Community Equip Store Pooled Budgt,Supplies and Services,Other Equipment,203,30/10/2019,1910-00640,0.00,2291.70,R,Aidapt Bathrooms Ltd,No
Http://opendatacommunities.org/id/metropolitan-district-council/leeds,Leeds City Council As Accountable Body,31/10/2019,Social Services Pooled Budgets,Leeds Community Equip Store Pooled Budgt,Supplies and Services,Other Equipment,203,30/10/2019,1910-00641,0.00,773.70,R,Aidapt Bathrooms Ltd,No
Http://opendatacommunities.org/id/metropolitan-district-council/leeds,Leeds City Council,31/10/2019,Resources and Housing,Leeds Building Services,Supplies and Services,Operational Materials,205,02/10/2019,1910-00642,0.00,189.16,R,Air Liquide Uk,No
Http://opendatacommunities.org/id/metropolitan-district-council/leeds,Leeds City Council,31/10/2019,Communities and Environment,Environmental Health,Supplies and Services,Other Hired And Contracted Services,265,23/10/2019,1910-00643,0.00,10.45,R,Air Liquide Uk,No
Http://opendatacommunities.org/id/metropolitan-district-council/leeds,Leeds City Council,31/10/2019,Communities and Environment,Environmental Health,Supplies and Services,Other Hired And Contracted Services,265,23/10/2019,1910-00644,0.00,10.45,R,Air Liquide Uk,No
Http://opendatacommunities.org/id/metropolitan-district-council/leeds,Leeds City Council,31/10/2019,Communities and Environment,Environmental Health,Supplies and Services,Other Hired And Contracted Services,265,23/10/2019,1910-00645,0.00,15.93,R,Air Liquide Uk,No
Http://opendatacommunities.org/id/metropolitan-district-council/leeds,Leeds City Council,31/10/2019,Communities and Environment,Environmental Health,Supplies and Services,Other Hired And Contracted Services,265,23/10/2019,1910-00646,0.00,73.15,R,Air Liquide Uk,No
Http://opendatacommunities.org/id/metropolitan-district-council/leeds,Leeds City Council,31/10/2019,Resources and Housing,Leeds Building Services,Supplies and Services,Operational Materials,205,28/10/2019,1910-00647,0.00,189.16,R,Air Liquide Uk,No
Http://opendatacommunities.org/id/metropolitan-district-council/leeds,Leeds City Council,31/10/2019,Resources and Housing,Human Resources,Employees,Occupational Health,85,01/10/2019,1910-00648,0.00,50.00,R,Aire Valley Surgery,No
Http://opendatacommunities.org/id/metropolitan-district-council/leeds,Leeds City Council,31/10/2019,Communities and Environment,Parks and Countryside,Supplies and Services,Other Hired And Contracted Services,265,11/10/2019,1910-00649,0.00,625.00,R,Aire Valley Tree Services Ltd,No
Http://opendatacommunities.org/id/metropolitan-district-council/leeds,Leeds City Council,31/10/2019,Communities and Environment,Parks and Countryside,Supplies and Services,Other Hired And Contracted Services,265,11/10/2019,1910-00650,0.00,750.00,R,Aire Valley Tree Services Ltd,No
Http://opendatacommunities.org/id/metropolitan-district-council/leeds,Leeds City Council,31/10/2019,Communities and Environment,Parks and Countryside,Supplies and Services,Other Hired And Contracted Services,265,11/10/2019,1910-00651,0.00,235.00,R,Aire Valley Tree Services Ltd,No
Http://opendatacommunities.org/id/metropolitan-district-council/leeds,Leeds City Council,31/10/2019,Communities and Environment,Parks and Countryside,Supplies and Services,Other Hired And Contracted Services,265,11/10/2019,1910-00652,0.00,1495.00,R,Aire Valley Tree Services Ltd,No
Http://opendatacommunities.org/id/metropolitan-district-council/leeds,Leeds City Council,31/10/2019,Communities and Environment,Parks and Countryside,Supplies and Services,Other Hired And Contracted Services,265,18/10/2019,1910-00653,0.00,350.00,R,Aire Valley Tree Services Ltd,No
Http://opendatacommunities.org/id/metropolitan-district-council/leeds,Leeds City Council,31/10/2019,Adults and Health,Services For Older People - 65 And Over,Third Party Payments,Residential Care Dementia,571,16/10/2019,1910-00654,0.00,49972.94,R,Aire View Residential Home,No
Http://opendatacommunities.org/id/metropolitan-district-council/leeds,Leeds City Council,31/10/2019,Adults and Health,Services For Older People - 65 And Over,Third Party Payments,Residential,580,16/10/2019,1910-00655,0.00,19806.35,R,Aire View Residential Home,No
Http://opendatacommunities.org/id/metropolitan-district-council/leeds,Leeds City Council,31/10/2019,City Development,Recreation  ,Supplies and Services,Subsistence,256,28/09/2019,1910-00656,0.00,2.04,R,Aireborough Leisure Centr,Yes
Http://opendatacommunities.org/id/metropolitan-district-council/leeds,Leeds City Council,31/10/2019,Communities and Environment,Communities,Supplies and Services,Well Being Small Grants Projects,228,17/10/2019,1910-00657,0.00,135.22,R,Aireborough Supported Activities Scheme,No
Http://opendatacommunities.org/id/metropolitan-district-council/leeds,Leeds City Council,31/10/2019,Adults and Health,Services For Older People - 65 And Over,Third Party Payments,Residential Care Dementia,571,16/10/2019,1910-00658,0.00,3085.40,R,Airedale Care Home,No
Http://opendatacommunities.org/id/metropolitan-district-council/leeds,Leeds City Council,31/10/2019,Adults and Health,Services For Older People - 65 And Over,Third Party Payments,Residential,580,16/10/2019,1910-00659,0.00,15471.40,R,Airedale Care Home,No
Http://opendatacommunities.org/id/metropolitan-district-council/leeds,Leeds City Council,31/10/2019,Resources and Housing,Commercial Services,Premises,Fixtures & Fittings,131,01/10/2019,1910-00660,0.00,22087.00,R,Airedale Catering Equipment Ltd,No
Http://opendatacommunities.org/id/metropolitan-district-council/leeds,Leeds City Council,31/10/2019,Resources and Housing,Commercial Services,Premises,Fixtures & Fittings,131,04/10/2019,1910-00661,0.00,17030.00,R,Airedale Catering Equipment Ltd,No
Http://opendatacommunities.org/id/metropolitan-district-council/leeds,Leeds City Council,31/10/2019,Resources and Housing,Commercial Services,Premises,Fixtures & Fittings,131,16/10/2019,1910-00662,0.00,22375.00,R,Airedale Catering Equipment Ltd,No
Http://opendatacommunities.org/id/metropolitan-district-council/leeds,Leeds City Council,31/10/2019,Resources and Housing,Commercial Services,Premises,Fixtures & Fittings,131,16/10/2019,1910-00663,0.00,17233.00,R,Airedale Catering Equipment Ltd,No
Http://opendatacommunities.org/id/metropolitan-district-council/leeds,Leeds City Council,31/10/2019,Resources and Housing,Leeds Building Services,Supplies and Services,Other Hired And Contracted Services,265,23/10/2019,1910-00664,0.00,1580.00,R,Airedale Catering Equipment Ltd,No
Http://opendatacommunities.org/id/metropolitan-district-council/leeds,Leeds City Council,31/10/2019,Resources and Housing,Leeds Building Services,Supplies and Services,Other Hired And Contracted Services,265,23/10/2019,1910-00665,0.00,1580.00,R,Airedale Catering Equipment Ltd,No
Http://opendatacommunities.org/id/metropolitan-district-council/leeds,Leeds City Council,31/10/2019,Adults and Health,Assessment And Care Management,Employees,Training Costs,71,04/10/2019,1910-00666,0.00,150.00,R,Airedale Community Trading (Act) Ltd,No
Http://opendatacommunities.org/id/metropolitan-district-council/leeds,Leeds City Council,31/10/2019,Communities and Environment,Environmental Health,Supplies and Services,Other Hired And Contracted Services,265,11/10/2019,1910-00667,0.00,347.87,R,Aireworth Vets,No
Http://opendatacommunities.org/id/metropolitan-district-council/leeds,Leeds City Council,31/10/2019,Adults and Health,Services For Adults Under 65 Mental/Dis,Third Party Payments,Services Provided By Other NHS Bodies,522,02/10/2019,1910-00668,0.00,239.50,R,Ait Mitra Limited,No
Http://opendatacommunities.org/id/metropolitan-district-council/leeds,Leeds City Council,31/10/2019,Adults and Health,Services For Adults Under 65 Mental/Dis,Third Party Payments,Services Provided By Other NHS Bodies,522,02/10/2019,1910-00669,0.00,175.00,R,Ait Mitra Limited,No
Http://opendatacommunities.org/id/metropolitan-district-council/leeds,Leeds City Council,31/10/2019,Adults and Health,Services For Adults Under 65 Mental/Dis,Third Party Payments,Services Provided By Other NHS Bodies,522,02/10/2019,1910-00670,0.00,175.00,R,Ait Mitra Limited,No
Http://opendatacommunities.org/id/metropolitan-district-council/leeds,Leeds City Council,31/10/2019,Adults and Health,Services For Adults Under 65 Mental/Dis,Third Party Payments,Services Provided By Other NHS Bodies,522,02/10/2019,1910-00671,0.00,175.00,R,Ait Mitra Limited,No
Http://opendatacommunities.org/id/metropolitan-district-council/leeds,Leeds City Council,31/10/2019,Adults and Health,Services For Adults Under 65 Mental/Dis,Third Party Payments,Services Provided By Other NHS Bodies,522,02/10/2019,1910-00672,0.00,175.00,R,Ait Mitra Limited,No
Http://opendatacommunities.org/id/metropolitan-district-council/leeds,Leeds City Council,31/10/2019,Adults and Health,Services For Adults Under 65 Mental/Dis,Third Party Payments,Services Provided By Other NHS Bodies,522,02/10/2019,1910-00673,0.00,175.00,R,Ait Mitra Limited,No
Http://opendatacommunities.org/id/metropolitan-district-council/leeds,Leeds City Council,31/10/2019,Adults and Health,Services For Adults Under 65 Mental/Dis,Third Party Payments,Services Provided By Other NHS Bodies,522,02/10/2019,1910-00674,0.00,175.00,R,Ait Mitra Limited,No
Http://opendatacommunities.org/id/metropolitan-district-council/leeds,Leeds City Council,31/10/2019,Adults and Health,Services For Adults Under 65 Mental/Dis,Third Party Payments,Services Provided By Other NHS Bodies,522,02/10/2019,1910-00675,0.00,175.00,R,Ait Mitra Limited,No
Http://opendatacommunities.org/id/metropolitan-district-council/leeds,Leeds City Council,31/10/2019,Adults and Health,Services For Adults Under 65 Mental/Dis,Third Party Payments,Services Provided By Other NHS Bodies,522,02/10/2019,1910-00676,0.00,175.00,R,Ait Mitra Limited,No
Http://opendatacommunities.org/id/metropolitan-district-council/leeds,Leeds City Council,31/10/2019,Adults and Health,Services For Adults Under 65 Mental/Dis,Third Party Payments,Services Provided By Other NHS Bodies,522,02/10/2019,1910-00677,0.00,175.00,R,Ait Mitra Limited,No
Http://opendatacommunities.org/id/metropolitan-district-council/leeds,Leeds City Council,31/10/2019,Adults and Health,Services For Adults Under 65 Mental/Dis,Third Party Payments,Services Provided By Other NHS Bodies,522,02/10/2019,1910-00678,0.00,175.00,R,Ait Mitra Limited,No
Http://opendatacommunities.org/id/metropolitan-district-council/leeds,Leeds City Council,31/10/2019,Adults and Health,Services For Adults Under 65 Mental/Dis,Third Party Payments,Services Provided By Other NHS Bodies,522,02/10/2019,1910-00679,0.00,175.00,R,Ait Mitra Limited,No
Http://opendatacommunities.org/id/metropolitan-district-council/leeds,Leeds City Council,31/10/2019,Adults and Health,Services For Adults Under 65 Mental/Dis,Third Party Payments,Services Provided By Other NHS Bodies,522,02/10/2019,1910-00680,0.00,175.00,R,Ait Mitra Limited,No
Http://opendatacommunities.org/id/metropolitan-district-council/leeds,Leeds City Council,31/10/2019,Adults and Health,Services For Adults Under 65 Mental/Dis,Third Party Payments,Services Provided By Other NHS Bodies,522,02/10/2019,1910-00681,0.00,175.00,R,Ait Mitra Limited,No
Http://opendatacommunities.org/id/metropolitan-district-council/leeds,Leeds City Council,31/10/2019,Adults and Health,Services For Adults Under 65 Mental/Dis,Third Party Payments,Services Provided By Other NHS Bodies,522,02/10/2019,1910-00682,0.00,175.00,R,Ait Mitra Limited,No
Http://opendatacommunities.org/id/metropolitan-district-council/leeds,Leeds City Council,31/10/2019,Adults and Health,Services For Adults Under 65 Mental/Dis,Third Party Payments,Services Provided By Other NHS Bodies,522,02/10/2019,1910-00683,0.00,175.00,R,Ait Mitra Limited,No
Http://opendatacommunities.org/id/metropolitan-district-council/leeds,Leeds City Council,31/10/2019,Adults and Health,Services For Adults Under 65 Mental/Dis,Third Party Payments,Services Provided By Other NHS Bodies,522,02/10/2019,1910-00684,0.00,175.00,R,Ait Mitra Limited,No
Http://opendatacommunities.org/id/metropolitan-district-council/leeds,Leeds City Council,31/10/2019,Adults and Health,Services For Adults Under 65 Mental/Dis,Third Party Payments,Services Provided By Other NHS Bodies,522,02/10/2019,1910-00685,0.00,175.00,R,Ait Mitra Limited,No
Http://opendatacommunities.org/id/metropolitan-district-council/leeds,Leeds City Council,31/10/2019,Adults and Health,Services For Adults Under 65 Mental/Dis,Third Party Payments,Services Provided By Other NHS Bodies,522,02/10/2019,1910-00686,0.00,175.00,R,Ait Mitra Limited,No
Http://opendatacommunities.org/id/metropolitan-district-council/leeds,Leeds City Council,31/10/2019,Adults and Health,Services For Adults Under 65 Mental/Dis,Third Party Payments,Services Provided By Other NHS Bodies,522,04/10/2019,1910-00687,0.00,175.00,R,Ait Mitra Limited,No
Http://opendatacommunities.org/id/metropolitan-district-council/leeds,Leeds City Council,31/10/2019,Adults and Health,Services For Adults Under 65 Mental/Dis,Third Party Payments,Services Provided By Other NHS Bodies,522,25/10/2019,1910-00688,0.00,239.50,R,Ait Mitra Limited,No
Http://opendatacommunities.org/id/metropolitan-district-council/leeds,Leeds City Council,31/10/2019,Adults and Health,Services For Adults Under 65 Mental/Dis,Third Party Payments,Services Provided By Other NHS Bodies,522,25/10/2019,1910-00689,0.00,175.00,R,Ait Mitra Limited,No
Http://opendatacommunities.org/id/metropolitan-district-council/leeds,Leeds City Council,31/10/2019,Adults and Health,Services For Adults Under 65 Mental/Dis,Third Party Payments,Services Provided By Other NHS Bodies,522,25/10/2019,1910-00690,0.00,175.00,R,Ait Mitra Limited,No
Http://opendatacommunities.org/id/metropolitan-district-council/leeds,Leeds City Council,31/10/2019,Adults and Health,Services For Adults Under 65 Mental/Dis,Third Party Payments,Services Provided By Other NHS Bodies,522,25/10/2019,1910-00691,0.00,175.00,R,Ait Mitra Limited,No
Http://opendatacommunities.org/id/metropolitan-district-council/leeds,Leeds City Council,31/10/2019,Adults and Health,Services For Adults Under 65 Mental/Dis,Third Party Payments,Services Provided By Other NHS Bodies,522,25/10/2019,1910-00692,0.00,175.00,R,Ait Mitra Limited,No
Http://opendatacommunities.org/id/metropolitan-district-council/leeds,Leeds City Council,31/10/2019,Adults and Health,Services For Adults Under 65 Mental/Dis,Third Party Payments,Services Provided By Other NHS Bodies,522,25/10/2019,1910-00693,0.00,175.00,R,Ait Mitra Limited,No
Http://opendatacommunities.org/id/metropolitan-district-council/leeds,Leeds City Council,31/10/2019,Adults and Health,Services For Adults Under 65 Mental/Dis,Third Party Payments,Services Provided By Other NHS Bodies,522,25/10/2019,1910-00694,0.00,175.00,R,Ait Mitra Limited,No
Http://opendatacommunities.org/id/metropolitan-district-council/leeds,Leeds City Council,31/10/2019,Adults and Health,Services For Adults Under 65 Mental/Dis,Third Party Payments,Services Provided By Other NHS Bodies,522,25/10/2019,1910-00695,0.00,175.00,R,Ait Mitra Limited,No
Http://opendatacommunities.org/id/metropolitan-district-council/leeds,Leeds City Council As Accountable Body,31/10/2019,Social Services Pooled Budgets,Jcs For People With Learning Disabilitie,Third Party Payments,Residential,580,16/10/2019,1910-00696,0.00,6464.04,R,Aitch Care Homes,No
Http://opendatacommunities.org/id/metropolitan-district-council/leeds,Leeds City Council,31/10/2019,Communities and Environment,Parks and Countryside,Supplies and Services,Operational Materials,205,07/10/2019,1910-00697,0.00,558.00,R,Aitkens Sportsturf Ltd,No
Http://opendatacommunities.org/id/metropolitan-district-council/leeds,Leeds City Council,31/10/2019,Communities and Environment,Parks and Countryside,Supplies and Services,Operational Materials,205,07/10/2019,1910-00698,0.00,1347.20,R,Aitkens Sportsturf Ltd,No
Http://opendatacommunities.org/id/metropolitan-district-council/leeds,Leeds City Council,31/10/2019,Resources and Housing,HRA Housing Leeds,Capital,Other Costs,7,07/10/2019,1910-00699,0.00,100.00,C,REDACTED PERSONAL DATA,No
Http://opendatacommunities.org/id/metropolitan-district-council/leeds,Leeds City Council,31/10/2019,Resources and Housing,Commercial Services,Supplies and Services,Other Hired And Contracted Services,265,21/10/2019,1910-00700,0.00,525.00,R,REDACTED PERSONAL DATA,No
Http://opendatacommunities.org/id/metropolitan-district-council/leeds,Leeds City Council,31/10/2019,Resources and Housing,Commercial Services,Supplies and Services,Other Hired And Contracted Services,265,21/10/2019,1910-00701,0.00,675.00,R,REDACTED PERSONAL DATA,No
Http://opendatacommunities.org/id/metropolitan-district-council/leeds,Leeds City Council,31/10/2019,Resources and Housing,Commercial Services,Supplies and Services,Other Hired And Contracted Services,265,21/10/2019,1910-00702,0.00,750.00,R,REDACTED PERSONAL DATA,No
Http://opendatacommunities.org/id/metropolitan-district-council/leeds,Leeds City Council,31/10/2019,Resources and Housing,Leeds Building Services,Supplies and Services,Operational Materials,205,01/10/2019,1910-00703,0.00,104.25,R,Ajm Fixings & Power Tools Ltd,No
Http://opendatacommunities.org/id/metropolitan-district-council/leeds,Leeds City Council,31/10/2019,Resources and Housing,Leeds Building Services,Supplies and Services,Operational Furniture And Equipment,203,01/10/2019,1910-00704,0.00,51.40,R,Ajm Fixings & Power Tools Ltd,No
Http://opendatacommunities.org/id/metropolitan-district-council/leeds,Leeds City Council,31/10/2019,Resources and Housing,Leeds Building Services,Supplies and Services,Operational Furniture And Equipment,203,01/10/2019,1910-00705,0.00,162.69,R,Ajm Fixings & Power Tools Ltd,No
Http://opendatacommunities.org/id/metropolitan-district-council/leeds,Leeds City Council,31/10/2019,Resources and Housing,Leeds Building Services,Supplies and Services,Stores - Central And Other Depots,5,02/10/2019,1910-00706,0.00,163.98,R,Ajm Fixings & Power Tools Ltd,No
Http://opendatacommunities.org/id/metropolitan-district-council/leeds,Leeds City Council,31/10/2019,Resources and Housing,Leeds Building Services,Supplies and Services,Operational Materials,205,02/10/2019,1910-00707,0.00,12.50,R,Ajm Fixings & Power Tools Ltd,No
Http://opendatacommunities.org/id/metropolitan-district-council/leeds,Leeds City Council,31/10/2019,Resources and Housing,Leeds Building Services,Supplies and Services,Stores - Central And Other Depots,5,17/10/2019,1910-00708,0.00,81.00,R,Ajm Fixings & Power Tools Ltd,No
Http://opendatacommunities.org/id/metropolitan-district-council/leeds,Leeds City Council,31/10/2019,Resources and Housing,Leeds Building Services,Supplies and Services,Operational Furniture And Equipment,203,17/10/2019,1910-00709,0.00,5811.45,R,Ajm Fixings & Power Tools Ltd,No
Http://opendatacommunities.org/id/metropolitan-district-council/leeds,Leeds City Council,31/10/2019,Resources and Housing,Leeds Building Services,Supplies and Services,Operational Materials,205,17/10/2019,1910-00710,0.00,87.00,R,Ajm Fixings & Power Tools Ltd,No
Http://opendatacommunities.org/id/metropolitan-district-council/leeds,Leeds City Council,31/10/2019,Resources and Housing,Leeds Building Services,Supplies and Services,Operational Furniture And Equipment,203,17/10/2019,1910-00711,0.00,46.90,R,Ajm Fixings & Power Tools Ltd,No
Http://opendatacommunities.org/id/metropolitan-district-council/leeds,Leeds City Council,31/10/2019,Resources and Housing,Leeds Building Services,Supplies and Services,Operational Furniture And Equipment,203,17/10/2019,1910-00712,0.00,516.33,R,Ajm Fixings & Power Tools Ltd,No
Http://opendatacommunities.org/id/metropolitan-district-council/leeds,Leeds City Council,31/10/2019,Resources and Housing,Leeds Building Services,Supplies and Services,Operational Furniture And Equipment,203,17/10/2019,1910-00713,0.00,10.00,R,Ajm Fixings & Power Tools Ltd,No
Http://opendatacommunities.org/id/metropolitan-district-council/leeds,Leeds City Council,31/10/2019,Resources and Housing,Leeds Building Services,Supplies and Services,Operational Furniture And Equipment,203,17/10/2019,1910-00714,0.00,410.00,R,Ajm Fixings & Power Tools Ltd,No
Http://opendatacommunities.org/id/metropolitan-district-council/leeds,Leeds City Council,31/10/2019,Resources and Housing,Leeds Building Services,Supplies and Services,Stores - Central And Other Depots,5,18/10/2019,1910-00715,0.00,204.00,R,Ajm Fixings & Power Tools Ltd,No
Http://opendatacommunities.org/id/metropolitan-district-council/leeds,Leeds City Council,31/10/2019,Resources and Housing,Leeds Building Services,Supplies and Services,Operational Furniture And Equipment,203,24/10/2019,1910-00716,0.00,819.09,R,Ajm Fixings & Power Tools Ltd,No
Http://opendatacommunities.org/id/metropolitan-district-council/leeds,Leeds City Council,31/10/2019,Resources and Housing,Leeds Building Services,Supplies and Services,Operational Furniture And Equipment,203,25/10/2019,1910-00717,0.00,234.28,R,Ajm Fixings & Power Tools Ltd,No
Http://opendatacommunities.org/id/metropolitan-district-council/leeds,Leeds City Council,31/10/2019,Resources and Housing,Strategic Housing Partnerships,Capital,Construction,3,31/10/2019,1910-00718,0.00,10000.00,C,Ajt Building & Maintenance,No
Http://opendatacommunities.org/id/metropolitan-district-council/leeds,Leeds City Council,31/10/2019,Resources and Housing,Commercial Services,Premises,Plant and Machinery,102,21/10/2019,1910-00719,0.00,94.40,R,Akua Uk Ltd,No
Http://opendatacommunities.org/id/metropolitan-district-council/leeds,Leeds City Council,31/10/2019,Resources and Housing,Commercial Services,Premises,Plant and Machinery,102,21/10/2019,1910-00720,0.00,60.00,R,Akua Uk Ltd,No
Http://opendatacommunities.org/id/metropolitan-district-council/leeds,Leeds City Council,31/10/2019,Adults and Health,Services For Older People - 65 And Over,Third Party Payments,Payments To Voluntary Organisations,561,01/10/2019,1910-00721,0.00,3000.00,R,Al Khidmat Centre,No
Http://opendatacommunities.org/id/metropolitan-district-council/leeds,Leeds City Council,31/10/2019,Children and Families,Social Care  ,Supplies and Services,Operational Furniture And Equipment,203,05/09/2019,1910-00722,0.00,26.98,R,Al Murad,Yes
Http://opendatacommunities.org/id/metropolitan-district-council/leeds,Leeds City Council,31/10/2019,Children and Families,Social Care  ,Transfer Payments,Leaving Care Allowances,634,26/09/2019,1910-00723,0.00,63.00,R,Al Murad,Yes
Http://opendatacommunities.org/id/metropolitan-district-council/leeds,Leeds City Council,31/10/2019,City Development,Libraries  Arts & Heritage,Supplies and Services,Other Hired And Contracted Services,265,24/10/2019,1910-00724,0.00,1750.00,R,Alana Jelinek,No
Http://opendatacommunities.org/id/metropolitan-district-council/leeds,Leeds City Council,31/10/2019,Adults and Health,Services For Older People - 65 And Over,Third Party Payments,Residential Care Dementia,571,16/10/2019,1910-00725,0.00,1141.68,R,Albemarle,No
Http://opendatacommunities.org/id/metropolitan-district-council/leeds,Leeds City Council,31/10/2019,City Development,Markets & City Centre Management  ,Supplies and Services,Operational Materials,205,12/09/2019,1910-00726,0.00,396.00,R,Albion Electric Stores Lt,Yes
Http://opendatacommunities.org/id/metropolitan-district-council/leeds,Leeds City Council,31/10/2019,City Development,Libraries  Arts & Heritage,Supplies and Services,Art Galleries Total Stores,3,29/10/2019,1910-00727,0.00,228.60,R,Alchemy Carta Ltd,No
Http://opendatacommunities.org/id/metropolitan-district-council/leeds,Leeds City Council,31/10/2019,City Development,Libraries  Arts & Heritage,Supplies and Services,Art Galleries Total Stores,3,30/10/2019,1910-00728,0.00,25.18,R,Alchemy Carta Ltd,No
Http://opendatacommunities.org/id/metropolitan-district-council/leeds,Leeds City Council,31/10/2019,Communities and Environment,Communities,Supplies and Services,Computer Software & Equipment,214,11/10/2019,1910-00729,0.00,1228.37,R,Alcium Software Ltd,No
Http://opendatacommunities.org/id/metropolitan-district-council/leeds,Leeds City Council,31/10/2019,Communities and Environment,Communities,Supplies and Services,Computer Software & Equipment,214,25/10/2019,1910-00730,0.00,1228.33,R,Alcium Software Ltd,No
Http://opendatacommunities.org/id/metropolitan-district-council/leeds,Leeds City Council,31/10/2019,Adults and Health,Supporting People,Supplies and Services,Other Hired And Contracted Services,265,24/10/2019,1910-00731,0.00,2250.00,R,Alcohol Research Uk,No
Http://opendatacommunities.org/id/metropolitan-district-council/leeds,Leeds City Council,31/10/2019,Children and Families,Social Care  ,Supplies and Services,Food & Drink,231,12/09/2019,1910-00732,0.00,18.99,R,Aldi 40 779,Yes
Http://opendatacommunities.org/id/metropolitan-district-council/leeds,Leeds City Council,31/10/2019,Children and Families,Social Care  ,Supplies and Services,Food & Drink,231,16/09/2019,1910-00733,0.00,4.63,R,Aldi 40 779,Yes
Http://opendatacommunities.org/id/metropolitan-district-council/leeds,Leeds City Council,31/10/2019,Children and Families,Social Care  ,Supplies and Services,Food & Drink,231,16/09/2019,1910-00734,0.00,53.28,R,Aldi 40 779,Yes
Http://opendatacommunities.org/id/metropolitan-district-council/leeds,Leeds City Council,31/10/2019,City Development,Libraries  Arts & Heritage  ,Supplies and Services,Resaleable Materials,204,25/09/2019,1910-00735,0.00,8.47,R,Aldi 40 779,Yes
Http://opendatacommunities.org/id/metropolitan-district-council/leeds,Leeds City Council,31/10/2019,Children and Families,Social Care  ,Supplies and Services,Food & Drink,231,27/09/2019,1910-00736,0.00,16.97,R,Aldi 40 779,Yes
Http://opendatacommunities.org/id/metropolitan-district-council/leeds,Leeds City Council,31/10/2019,Children and Families,Social Care  ,Premises,Cleaning Maintenance & Toiletries,127,27/09/2019,1910-00737,0.00,1.48,R,Aldi 40 779,Yes
Http://opendatacommunities.org/id/metropolitan-district-council/leeds,Leeds City Council,31/10/2019,Children and Families,Social Care  ,Supplies and Services,Food & Drink,231,28/09/2019,1910-00738,0.00,30.06,R,Aldi 40 779,Yes
Http://opendatacommunities.org/id/metropolitan-district-council/leeds,Leeds City Council,31/10/2019,Children and Families,Social Care  ,Third Party Payments,Section 17,551,30/08/2019,1910-00739,0.00,39.53,R,Aldi 49 779,Yes
Http://opendatacommunities.org/id/metropolitan-district-council/leeds,Leeds City Council,31/10/2019,Children and Families,Social Care  ,Supplies and Services,Food & Drink,231,31/08/2019,1910-00740,0.00,1.75,R,Aldi 49 779,Yes
Http://opendatacommunities.org/id/metropolitan-district-council/leeds,Leeds City Council,31/10/2019,Children and Families,Social Care  ,Supplies and Services,Food & Drink,231,31/08/2019,1910-00741,0.00,11.02,R,Aldi 49 779,Yes
Http://opendatacommunities.org/id/metropolitan-district-council/leeds,Leeds City Council,31/10/2019,Children and Families,Social Care  ,Supplies and Services,Food & Drink,231,04/09/2019,1910-00742,0.00,8.31,R,Aldi 71 779,Yes
Http://opendatacommunities.org/id/metropolitan-district-council/leeds,Leeds City Council,31/10/2019,Adults and Health,Home Care Services  ,Supplies and Services,Food & Drink,231,05/09/2019,1910-00743,0.00,10.38,R,Aldi 85 779,Yes
Http://opendatacommunities.org/id/metropolitan-district-council/leeds,Leeds City Council,31/10/2019,Children and Families,Social Care  ,Supplies and Services,Food & Drink,231,26/09/2019,1910-00744,0.00,1.94,R,Aldi 85 779,Yes
Http://opendatacommunities.org/id/metropolitan-district-council/leeds,Leeds City Council,31/10/2019,Children and Families,Social Care  ,Supplies and Services,Operational Furniture And Equipment,203,11/09/2019,1910-00745,0.00,12.04,R,Aldi 88 779,Yes
Http://opendatacommunities.org/id/metropolitan-district-council/leeds,Leeds City Council,31/10/2019,Communities and Environment,Customer Access  ,Supplies and Services,Food & Drink,231,30/08/2019,1910-00746,0.00,2.76,R,Aldi 89 779,Yes
Http://opendatacommunities.org/id/metropolitan-district-council/leeds,Leeds City Council,31/10/2019,Resources and Housing,Strategic Housing Partnership & Support  ,Supplies and Services,Other Hired And Contracted Services,265,10/09/2019,1910-00747,0.00,10.56,R,Aldi 89 779,Yes
Http://opendatacommunities.org/id/metropolitan-district-council/leeds,Leeds City Council,31/10/2019,Children and Families,Social Care  ,Transfer Payments,Leaving Care Allowances,634,11/09/2019,1910-00748,0.00,3.11,R,Aldi Stores,Yes
Http://opendatacommunities.org/id/metropolitan-district-council/leeds,Leeds City Council,31/10/2019,Children and Families,Social Care,Transport,Car & Motorcycle Allowances,311,03/10/2019,1910-00749,0.00,63.45,R,REDACTED PERSONAL DATA,No
Http://opendatacommunities.org/id/metropolitan-district-council/leeds,Leeds City Council,31/10/2019,Communities and Environment,Customer Access,Supplies and Services,Bought In Professional Services,277,07/10/2019,1910-00750,0.00,26.40,R,Alena Zueva,No
Http://opendatacommunities.org/id/metropolitan-district-council/leeds,Leeds City Council,31/10/2019,Communities and Environment,Customer Access,Supplies and Services,Bought In Professional Services,277,07/10/2019,1910-00751,0.00,25.50,R,Alena Zueva,No
Http://opendatacommunities.org/id/metropolitan-district-council/leeds,Leeds City Council,31/10/2019,Communities and Environment,Customer Access,Supplies and Services,Bought In Professional Services,277,07/10/2019,1910-00752,0.00,43.50,R,Alena Zueva,No
Http://opendatacommunities.org/id/metropolitan-district-council/leeds,Leeds City Council,31/10/2019,Communities and Environment,Customer Access,Supplies and Services,Bought In Professional Services,277,07/10/2019,1910-00753,0.00,30.00,R,Alena Zueva,No
Http://opendatacommunities.org/id/metropolitan-district-council/leeds,Leeds City Council,31/10/2019,Communities and Environment,Customer Access,Supplies and Services,Bought In Professional Services,277,16/10/2019,1910-00754,0.00,31.50,R,Alena Zueva,No
Http://opendatacommunities.org/id/metropolitan-district-council/leeds,Leeds City Council,31/10/2019,Communities and Environment,Customer Access,Supplies and Services,Bought In Professional Services,277,16/10/2019,1910-00755,0.00,18.00,R,Alena Zueva,No
Http://opendatacommunities.org/id/metropolitan-district-council/leeds,Leeds City Council,31/10/2019,Communities and Environment,Customer Access,Supplies and Services,Bought In Professional Services,277,18/10/2019,1910-00756,0.00,37.50,R,Alena Zueva,No
Http://opendatacommunities.org/id/metropolitan-district-council/leeds,Leeds City Council,31/10/2019,Communities and Environment,Customer Access,Supplies and Services,Bought In Professional Services,277,18/10/2019,1910-00757,0.00,34.50,R,Alena Zueva,No
Http://opendatacommunities.org/id/metropolitan-district-council/leeds,Leeds City Council,31/10/2019,Communities and Environment,Customer Access,Supplies and Services,Bought In Professional Services,277,18/10/2019,1910-00758,0.00,25.50,R,Alena Zueva,No
Http://opendatacommunities.org/id/metropolitan-district-council/leeds,Leeds City Council,31/10/2019,Communities and Environment,Customer Access,Supplies and Services,Bought In Professional Services,277,18/10/2019,1910-00759,0.00,34.50,R,Alena Zueva,No
Http://opendatacommunities.org/id/metropolitan-district-council/leeds,Leeds City Council,31/10/2019,Communities and Environment,Customer Access,Supplies and Services,Bought In Professional Services,277,18/10/2019,1910-00760,0.00,25.50,R,Alena Zueva,No
Http://opendatacommunities.org/id/metropolitan-district-council/leeds,Leeds City Council,31/10/2019,Communities and Environment,Customer Access,Supplies and Services,Bought In Professional Services,277,18/10/2019,1910-00761,0.00,7.50,R,Alena Zueva,No
Http://opendatacommunities.org/id/metropolitan-district-council/leeds,Leeds City Council,31/10/2019,Children and Families,Social Care,Support Services,Legal Disbursements,411,04/10/2019,1910-00762,0.00,90.20,R,Alere Toxicology Plc,No
Http://opendatacommunities.org/id/metropolitan-district-council/leeds,Leeds City Council,31/10/2019,Children and Families,Social Care,Support Services,Legal Disbursements,411,11/10/2019,1910-00763,0.00,23.75,R,Alere Toxicology Plc,No
Http://opendatacommunities.org/id/metropolitan-district-council/leeds,Leeds City Council,31/10/2019,Children and Families,Social Care,Transfer Payments,16 Plus Top Up Allowance,625,03/10/2019,1910-00764,0.00,30.00,R,REDACTED PERSONAL DATA,No
Http://opendatacommunities.org/id/metropolitan-district-council/leeds,Leeds City Council,31/10/2019,Children and Families,Social Care,Transfer Payments,16 Plus Top Up Allowance,625,11/10/2019,1910-00765,0.00,30.00,R,REDACTED PERSONAL DATA,No
Http://opendatacommunities.org/id/metropolitan-district-council/leeds,Leeds City Council,31/10/2019,Children and Families,Social Care,Transfer Payments,16 Plus Top Up Allowance,625,18/10/2019,1910-00766,0.00,30.00,R,REDACTED PERSONAL DATA,No
Http://opendatacommunities.org/id/metropolitan-district-council/leeds,Leeds City Council,31/10/2019,Children and Families,Social Care,Transfer Payments,16 Plus Top Up Allowance,625,25/10/2019,1910-00767,0.00,30.00,R,REDACTED PERSONAL DATA,No
Http://opendatacommunities.org/id/metropolitan-district-council/leeds,Leeds City Council,31/10/2019,Communities and Environment,Car Parking Services,Income,Penalties  Fines & Car Parking Charges,934,14/10/2019,1910-00768,0.00,6.25,R,REDACTED PERSONAL DATA,No
